Workbook

Sheet InputC - Operations
F1: Project IRR
F2: Equity IRR
D3: Active Scenario | F3: 1 | K3: ='InputC-Financing'!K3 -> Base Case | L3: ='InputC-Financing'!L3 -> P90 Debt Size Case | M3: ='InputC-Financing'!M3 -> P99 Debt Size Case | N3: ='InputC-Financing'!N3 -> Maximum Debt to Capital Case | O3: ='InputC-Financing'!O3 -> Stress Case for Credit | P3: ='InputC-Financing'!P3 -> P90 and No Inflation | Q3: ='InputC-Financing'!Q3 -> Higher EPC | R3: ='InputC-Financing'!R3 -> Lower PPA | S3: ='InputC-Financing'!S3 -> Shareholder Loan
E4: Applied (Fixed) | F4: From Index | K4: 1 | L4: 2 | M4: 3 | N4: 4 | O4: 5 | P4: 6 | Q4: 7 | R4: 8 | S4: 9
B6: Model Timeline
D7: Financial Close Date | E7: 2023-01-01 | F7: =INDEX($K7:$S7,case_active) -> 2023-01-01 | G7: Date | K7: 2023-01-01 | L7: 2023-01-01 | M7: 2023-01-01 | N7: 2023-01-01 | O7: 2023-01-01 | P7: 2023-01-01 | Q7: 2023-01-01 | R7: 2023-01-01 | S7: 2023-01-01
D8: Construction Period | E8: 11 | F8: =INDEX(K8:S8,case_active) -> 11 | G8: Month | K8: 11 | L8: =K8 -> 11 | M8: 11 | N8: 11 | O8: 11 | P8: 11 | Q8: 14 | R8: 14 | S8: 14
D9: Commerical Operation Date | G9: Date
D10: Operating Life | E10: 35 | F10: =INDEX(K10:S10,case_active) -> 35 | G10: Years | K10: 35 | L10: 35 | M10: 35 | N10: 30 | O10: 35 | P10: 35 | Q10: 35 | R10: 35 | S10: 35
D11: Period After Operating Life | F11: =INDEX(K11:S11,case_active) -> 00:00:00 | G11: Date
D13: Months in Period for Semi-Annual | E13: 6 | F13: =INDEX(K13:S13,case_active) -> 6 | G13: Months | K13: 6 | L13: 6 | M13: 6 | N13: 6 | O13: 6 | P13: 6 | Q13: 6 | R13: 6 | S13: 6
D14: Months in Period pre-COD | E14: 1 | F14: =INDEX(K14:S14,case_active) -> 1 | G14: Months | K14: 1 | L14: 1 | M14: 1 | N14: 1 | O14: 1 | P14: 1 | Q14: 1 | R14: 1 | S14: 1
B16: Simple Data for Illustration
D17: Annual Generation =EBITDA - P50 | E17: 100 | F17: =INDEX(K17:S17,case_active) -> 100 | G17: Euro | K17: 100 | L17: 100 | M17: 100 | N17: 100 | O17: 100 | P17: 100 | Q17: 100 | R17: 100 | S17: 100
D19: Standard Deviation in Resoruce | E19: 0.1 | F19: =INDEX(K19:S19,case_active) -> 0.1 | G19: % | K19: 0.1 | L19: 0.1 | M19: 0.1 | N19: 0.1 | O19: 0.1 | P19: 0.1 | Q19: 0.1 | R19: 0.1 | S19: 0.1
D20: Complement of P Value | E20: 0.5 | F20: =INDEX(K20:S20,case_active) -> 0.5 | G20: % | K20: 0.5 | L20: 0.1 | M20: 0.01 | N20: 0.1 | O20: 0.05 | P20: 0.1 | Q20: 0.1 | R20: 0.1 | S20: 0.1
D22: Annual EBITDA Applied | F22: =INDEX(K22:S22,case_active) -> 0 | G22: Euro
D24: Seasonality Code to InputS | E24: 1 | F24: =INDEX(K24:S24,case_active) -> 1 | G24: Code | H24: =InputS!D35 -> Base Degradation | K24: 1 | L24: 1 | M24: 1 | N24: 3 | O24: 2 | P24: 1 | Q24: 1 | R24: 1 | S24: 1
D25: Degradation Code to InputS | E25: =INDEX(InputS!D31:D33,'InputC - Operations'!F25) -> Base Degradation | F25: =INDEX(K25:S25,case_active) -> 1 | G25: Code | H25: =InputS!D36 -> 0 | K25: 1 | L25: 1 | M25: 1 | N25: 3 | O25: 2 | P25: 1 | Q25: 1 | R25: 1 | S25: 1
D27: PPA Inflation Rate Code to InputS | E27: =INDEX(InputS!D44:D46,'InputC - Operations'!F27) -> Low Inflation | F27: =INDEX(K27:S27,case_active) -> 3 | G27: % p.a. | H27: On costs and Revenues | K27: 3 | L27: 3 | M27: 3 | N27: 3 | O27: 3 | P27: 3 | Q27: 3 | R27: 3 | S27: 3
D29: Total EPC Cost | E29: 1800 | F29: =INDEX(K29:S29,case_active) -> 1800 | G29: Euro | K29: 1800 | L29: 1800 | M29: 1800 | N29: 1800 | O29: 1800 | P29: 1800 | Q29: 1800 | R29: 1800 | S29: 1800
D30: S-curve Code to InputS | E30: 1 | F30: =INDEX(K30:S30,case_active) -> 1 | G30: Code | H30: Detailed in Input-S | K30: 1 | L30: 1 | M30: 3 | N30: 3 | O30: 1 | P30: 1 | Q30: 1 | R30: 1 | S30: 1
E31: to applied | F31: from Index
B32: Constants
D33: Months in Year | F33: 12 | G33: Months
D34: Inflation Days in Year | F34: 365 | G34: Days Inflation
D35: Semi-Annual Periods | F35: 2 | G35: Semi
D36: Days in 360 Year | F36: 360 | G36: Year 360

Sheet InputC-Financing
E1: Project IRR
E2: Equity IRR
B3: Active Scenario | E3: =case_active -> 1 | K3: Base Case | L3: P90 Debt Size Case | M3: P99 Debt Size Case | N3: Maximum Debt to Capital Case | O3: Stress Case for Credit | P3: P90 and No Inflation | Q3: Higher EPC | R3: Lower PPA | S3: Shareholder Loan
E4: Applied | F4: Index | K4: 1 | L4: 2 | M4: 3 | N4: 4 | O4: 5 | P4: 6 | Q4: 7 | R4: 8 | S4: 9
B5: Dates
C6: Financial Close | E6: 2023-01-01 | F6: =INDEX(K6:S6,$E$3) -> 00:00:00 | G6: Date | K6: ='InputC - Operations'!$E$9 -> 00:00:00 | L6: ='InputC - Operations'!$E$9 -> 00:00:00 | M6: ='InputC - Operations'!$E$9 -> 00:00:00 | N6: ='InputC - Operations'!$E$9 -> 00:00:00 | O6: ='InputC - Operations'!$E$9 -> 00:00:00 | P6: ='InputC - Operations'!$E$9 -> 00:00:00 | Q6: ='InputC - Operations'!$E$9 -> 00:00:00 | R6: ='InputC - Operations'!$E$9 -> 00:00:00 | S6: ='InputC - Operations'!$E$9 -> 00:00:00
C7: Commercial Operation | E7: 2023-12-01 | F7: =INDEX(K7:S7,$E$3) -> 00:00:00 | G7: Date | K7: ='InputC - Operations'!K9 -> 00:00:00 | L7: ='InputC - Operations'!L9 -> 00:00:00 | M7: ='InputC - Operations'!M9 -> 00:00:00 | N7: ='InputC - Operations'!N9 -> 00:00:00 | O7: ='InputC - Operations'!O9 -> 00:00:00 | P7: ='InputC - Operations'!P9 -> 00:00:00 | Q7: ='InputC - Operations'!Q9 -> 00:00:00 | R7: ='InputC - Operations'!R9 -> 00:00:00 | S7: ='InputC - Operations'!S9 -> 00:00:00
B9: Funding
C10: First Repayment Month (Use 5 and not 6 Months) | E10: 5 | F10: =INDEX(K10:S10,$E$3) -> 0 | G10: Month
C11: Second Repayment Month (Use 11 and not 12 Months) | E11: 11 | F11: =INDEX(K11:S11,$E$3) -> 0 | G11: Month
C13: Senior Debt
D14: Maximum Debt to Capital | E14: 0.8 | F14: =INDEX(K14:S14,$E$3) -> 0.8 | G14: % | H14: Tested through DSCR | K14: 0.8 | L14: 0.8 | M14: 0.8 | N14: 0.8 | O14: 0.8 | P14: 0.8 | Q14: 0.8 | R14: 0.8 | S14: 0.8
D16: Debt Tenor | E16: 25 | F16: =INDEX(K16:S16,$E$3) -> 25 | G16: Years | K16: 25 | L16: 25 | M16: 25 | N16: 25 | O16: 25 | P16: 25 | Q16: 25 | R16: 25 | S16: 25
D17: End of Debt Repayment | E17: 2048-12-01 | F17: =INDEX(K17:S17,$E$3) -> 1924-12-31 | K17: =EDATE(K7,K16*Months) -> 1924-12-31 | L17: 1924-12-31 | M17: 1924-12-31 | N17: 1924-12-31 | O17: 1924-12-31 | P17: 1924-12-31 | Q17: 1924-12-31 | R17: 1924-12-31 | S17: 1924-12-31
D18: Interest and Principal Repayments Timing | E18: 6 | F18: =INDEX(K18:S18,$E$3) -> 6 | G18: Months | H18: Every 6 Months | K18: 6 | L18: 6 | M18: 6 | N18: 6 | O18: 6 | P18: 6 | Q18: 6 | R18: 6 | S18: 6
D20: Interest Rate | E20: 0.043 | F20: =INDEX(K20:S20,$E$3) -> 0.043 | G20: % p.a. | H20: Annual Rate | K20: 0.043 | L20: 0.043 | M20: 0.043 | N20: 0.043 | O20: 0.043 | P20: 0.043 | Q20: 0.043 | R20: 0.043 | S20: 0.043

Sheet InputS
A1: =RIGHT(CELL("filename",A1),LEN(CELL("filename",A1))- SEARCH("]",CELL("filename",A1))) -> InputS
C3: EPC - S-Curve
B5: Construction Operation
D6: Construction Period | G6: Month | L6: 1 | M6: 2 | N6: 3 | O6: 4 | P6: 5 | Q6: 6 | R6: 7 | S6: 8 | T6: 9 | U6: 10 | V6: 11 | W6: 12 | X6: 13 | Y6: 14 | Z6: 15 | AA6: 16 | AB6: 17 | AC6: 18 | AD6: 19 | AE6: 20 | AF6: 21 | AG6: 22 | AH6: 23 | AI6: 24
D7: Construction Year | G7: Year | L7: =ROUNDUP(L6/12,0) -> 1 | M7: =ROUNDUP(M6/12,0) -> 1 | N7: 1 | O7: 1 | P7: 1 | Q7: 1 | R7: 1 | S7: 1 | T7: 1 | U7: 1 | V7: 1 | W7: 1 | X7: 2 | Y7: 2 | Z7: 2 | AA7: 2 | AB7: 2 | AC7: 2 | AD7: 2 | AE7: 2 | AF7: 2 | AG7: 2 | AH7: 2 | AI7: 2
D8: Construction Months | G8: Flag | H8: ='InputC - Operations'!E8 -> 11 | L8: =L6<=$H$8 -> TRUE | M8: TRUE | N8: TRUE | O8: TRUE | P8: TRUE | Q8: TRUE | R8: TRUE | S8: TRUE | T8: TRUE | U8: TRUE | V8: TRUE | W8: FALSE | X8: FALSE | Y8: FALSE | Z8: FALSE | AA8: FALSE | AB8: FALSE | AC8: FALSE | AD8: FALSE | AE8: FALSE | AF8: FALSE | AG8: FALSE | AH8: FALSE | AI8: FALSE
C10: S-Curve - Scenario Number | G10: Code
D12: S-Curve - Base Case | F12: 1 | G12: % | H12: =SUM(L12:BI12) -> 1 | L12: 0.25 | M12: 0.1 | N12: 0 | O12: 0.15 | P12: 0.2 | Q12: 0.3 | R12: 0 | S12: 0 | T12: 0 | U12: 0 | V12: 0 | W12: 0 | X12: 0 | Y12: 0 | Z12: 0 | AA12: 0 | AB12: 0 | AC12: 0 | AD12: 0 | AE12: 0 | AF12: 0 | AG12: 0 | AH12: 0 | AI12: 0
D13: S-Curve - Flat Case | F13: 2 | G13: % | H13: =SUM(L13:BI13) -> 1 | L13: =1/$H$8*L8 -> 0.09090909091 | M13: 0.09090909091 | N13: 0.09090909091 | O13: 0.09090909091 | P13: 0.09090909091 | Q13: 0.09090909091 | R13: 0.09090909091 | S13: 0.09090909091 | T13: 0.09090909091 | U13: 0.09090909091 | V13: 0.09090909091 | W13: 0 | X13: 0 | Y13: 0 | Z13: 0 | AA13: 0 | AB13: 0 | AC13: 0 | AD13: 0 | AE13: 0 | AF13: 0 | AG13: 0 | AH13: 0 | AI13: 0
D14: S-Curve - Front Loaded Case | F14: 3 | G14: % | H14: =SUM(L14:BI14) -> 1 | L14: 0.4 | M14: 0.3 | N14: 0.2 | O14: 0.1 | P14: 0 | Q14: 0 | R14: 0 | S14: 0 | T14: 0 | U14: 0 | V14: 0 | W14: 0 | X14: 0 | Y14: 0 | Z14: 0 | AA14: 0 | AB14: 0 | AC14: 0 | AD14: 0 | AE14: 0 | AF14: 0 | AG14: 0 | AH14: 0 | AI14: 0
C18: Solar Seasonality
D19: Month Name | K19: 1 | L19: Jan | M19: Feb | N19: March | O19: April | P19: May | Q19: June | R19: July | S19: August | T19: Sept | U19: October | V19: Nov | W19: Dec
D20: Month Number | G20: Counter | L20: 1 | M20: 2 | N20: 3 | O20: 4 | P20: 5 | Q20: 6 | R20: 7 | S20: 8 | T20: 9 | U20: 10 | V20: 11 | W20: 12
D21: Resource Availability 1 | G21: % | H21: =SUM(L21:W21) -> 1 | L21: 0.06666666667 | M21: 0.06666666667 | N21: 0.08 | O21: 0.085 | P21: 0.09 | Q21: 0.12 | R21: 0.12 | S21: 0.09 | T21: 0.08 | U21: 0.07 | V21: 0.065 | W21: 0.06666666667
D22: Resource Availability 2 | H22: =SUM(L22:W22) -> 1 | L22: 0.07 | M22: 0.07 | N22: 0.07 | O22: 0.09 | P22: 0.09 | Q22: 0.1 | R22: 0.1 | S22: 0.1 | T22: 0.09 | U22: 0.07 | V22: 0.07 | W22: 0.08
D23: Resource Availability 3 | H23: =SUM(L23:W23) -> 0.99 | L23: 0.04 | M23: 0.05 | N23: 0.05 | O23: 0.09 | P23: 0.09 | Q23: 0.15 | R23: 0.15 | S23: 0.15 | T23: 0.06 | U23: 0.06 | V23: 0.06 | W23: 0.04
C27: Degradation Rate | G27: Code | H27: ='InputC - Operations'!E24 -> 1
D29: Age - Annual | G29: Year | K29: 0 | L29: 1 | M29: 2 | N29: 3 | O29: 4 | P29: 5 | Q29: 6 | R29: 7 | S29: 8 | T29: 9 | U29: 10 | V29: 11 | W29: 12
D31: Base Degradation | F31: 1 | G31: % | L31: 0.0075 | M31: 0.005 | N31: 0.005 | O31: 0.005 | P31: 0.005 | Q31: 0.005 | R31: 0.005 | S31: 0.005 | T31: 0.005 | U31: 0.005 | V31: 0.005 | W31: 0.005
D32: High Degradation | F32: 2 | G32: % | L32: 0.0075 | M32: 0.0075 | N32: 0.0075 | O32: 0.0075 | P32: 0.0075 | Q32: 0.0075 | R32: 0.0075 | S32: 0.0075 | T32: 0.0075 | U32: 0.0075 | V32: 0.0075 | W32: 0.0075
D33: Low Degredation | F33: 3 | G33: % | L33: 0.004 | M33: 0.004 | N33: 0.004 | O33: 0.004 | P33: 0.004 | Q33: 0.004 | R33: 0.004 | S33: 0.004 | T33: 0.004 | U33: 0.004 | V33: 0.004 | W33: 0.004
D35: =INDEX(D31:D33,$H$27) -> Base Degradation | G35: % | L35: =INDEX(L31:L33,$H$27) -> 0.0075 | M35: =INDEX(M31:M33,$H$27) -> 0.005 | N35: =INDEX(N31:N33,$H$27) -> 0.005 | O35: =INDEX(O31:O33,$H$27) -> 0.005 | P35: =INDEX(P31:P33,$H$27) -> 0.005 | Q35: =INDEX(Q31:Q33,$H$27) -> 0.005 | R35: =INDEX(R31:R33,$H$27) -> 0.005 | S35: =INDEX(S31:S33,$H$27) -> 0.005 | T35: =INDEX(T31:T33,$H$27) -> 0.005 | U35: =INDEX(U31:U33,$H$27) -> 0.005 | V35: =INDEX(V31:V33,$H$27) -> 0.005 | W35: =INDEX(W31:W33,$H$27) -> 0.005
B40: Macro Economic
C41: General Inflation Rate | G41: Code | H41: ='InputC - Operations'!F27 -> 3
D43: Year | L43: 2021 | M43: 2022 | N43: 2023 | O43: 2024 | P43: 2025 | Q43: 2026 | R43: 2027 | S43: 2028 | T43: 2029
D44: Base Case | F44: 1 | G44: % | L44: 0.015 | M44: 0.04 | N44: 0.035 | O44: 0.03 | P44: 0.03 | Q44: 0.03 | R44: 0.03 | S44: 0.03 | T44: 0.03
D45: High Inflation | F45: 2 | G45: % | L45: 0.015 | M45: 0.04 | N45: 0.04 | O45: 0.04 | P45: 0.04 | Q45: 0.04 | R45: 0.04 | S45: 0.04 | T45: 0.04
D46: Low Inflation | F46: 3 | G46: % | L46: 0.015 | M46: 0.04 | N46: 0.02 | O46: 0.02 | P46: 0.015 | Q46: 0.015 | R46: 0.015 | S46: 0.015 | T46: 0.015
D48: =INDEX(D44:D46,$H$41) -> Low Inflation | G48: % | L48: =INDEX(L44:L46,$H$41) -> 0.015 | M48: =INDEX(M44:M46,$H$41) -> 0.04 | N48: =INDEX(N44:N46,$H$41) -> 0.02 | O48: =INDEX(O44:O46,$H$41) -> 0.02 | P48: =INDEX(P44:P46,$H$41) -> 0.015 | Q48: =INDEX(Q44:Q46,$H$41) -> 0.015 | R48: =INDEX(R44:R46,$H$41) -> 0.015 | S48: =INDEX(S44:S46,$H$41) -> 0.015 | T48: =INDEX(T44:T46,$H$41) -> 0.015

Sheet Operation Monthly
E2: Constant | F2: Constant | G2: Unit | H2: Check | J2: Sum/Total
D3: Period Number (800) | G3: Number | L3: 1 | M3: 2 | N3: 3 | O3: 4 | P3: 5 | Q3: 6 | R3: 7 | S3: 8 | T3: 9 | U3: 10 | V3: 11 | W3: 12 | X3: 13 | Y3: 14 | Z3: 15 | AA3: 16 | AB3: 17 | AC3: 18 | AD3: 19 | AE3: 20 | AF3: 21 | AG3: 22 | AH3: 23 | AI3: 24 | AJ3: 25 | AK3: 26 | AL3: 27 | AM3: 28 | AN3: 29 | AO3: 30 | AP3: 31 | AQ3: 32 | AR3: 33 | AS3: 34 | AT3: 35 | AU3: 36 | AV3: 37 | AW3: 38 | AX3: 39 | AY3: 40 | AZ3: 41 | BA3: 42 | BB3: 43 | BC3: 44 | BD3: 45 | BE3: 46 | BF3: 47 | BG3: 48 | BH3: 49 | BI3: 50 | BJ3: 51 | BK3: 52 | BL3: 53 | BM3: 54 | BN3: 55 | BO3: 56 | BP3: 57 | BQ3: 58 | BR3: 59 | BS3: 60 | BT3: 61 | BU3: 62 | BV3: 63 | BW3: 64 | BX3: 65 | BY3: 66 | BZ3: 67 | CA3: 68 | CB3: 69 | CC3: 70 | CD3: 71 | CE3: 72 | CF3: 73 | CG3: 74 | CH3: 75 | CI3: 76 | CJ3: 77 | CK3: 78 | CL3: 79 | CM3: 80 | CN3: 81 | CO3: 82 | CP3: 83 | CQ3: 84 | CR3: 85 | CS3: 86 | CT3: 87 | CU3: 88 | CV3: 89 | CW3: 90 | CX3: 91 | CY3: 92 | CZ3: 93 | DA3: 94 | DB3: 95 | DC3: 96 | DD3: 97 | DE3: 98 | DF3: 99 | DG3: 100 | DH3: 101 | DI3: 102 | DJ3: 103 | DK3: 104 | DL3: 105 | DM3: 106 | DN3: 107 | DO3: 108 | DP3: 109 | DQ3: 110 | DR3: 111 | DS3: 112 | DT3: 113 | DU3: 114 | DV3: 115 | DW3: 116 | DX3: 117 | DY3: 118 | DZ3: 119 | EA3: 120 | EB3: 121 | EC3: 122 | ED3: 123 | EE3: 124 | EF3: 125 | EG3: 126 | EH3: 127 | EI3: 128 | EJ3: 129 | EK3: 130 | EL3: 131 | EM3: 132 | EN3: 133 | EO3: 134 | EP3: 135 | EQ3: 136 | ER3: 137 | ES3: 138 | ET3: 139 | EU3: 140 | EV3: 141 | EW3: 142 | EX3: 143 | EY3: 144 | EZ3: 145 | FA3: 146 | FB3: 147 | FC3: 148 | FD3: 149 | FE3: 150 | FF3: 151 | FG3: 152 | FH3: 153 | FI3: 154 | FJ3: 155 | FK3: 156 | FL3: 157 | FM3: 158 | FN3: 159 | FO3: 160 | FP3: 161 | FQ3: 162 | FR3: 163 | FS3: 164 | FT3: 165 | FU3: 166 | FV3: 167 | FW3: 168 | FX3: 169 | FY3: 170 | FZ3: 171 | GA3: 172 | GB3: 173 | GC3: 174 | GD3: 175 | GE3: 176 | GF3: 177 | GG3: 178 | GH3: 179 | GI3: 180 | GJ3: 181 | GK3: 182 | GL3: 183 | GM3: 184 | GN3: 185 | GO3: 186 | GP3: 187 | GQ3: 188 | GR3: 189 | GS3: 190 | GT3: 191 | GU3: 192 | GV3: 193 | GW3: 194 | GX3: 195 | GY3: 196 | GZ3: 197 | HA3: 198 | HB3: 199 | HC3: 200 | HD3: 201 | HE3: 202 | HF3: 203 | HG3: 204 | HH3: 205 | HI3: 206 | HJ3: 207 | HK3: 208 | HL3: 209 | HM3: 210 | HN3: 211 | HO3: 212 | HP3: 213 | HQ3: 214 | HR3: 215 | HS3: 216 | HT3: 217 | HU3: 218 | HV3: 219 | HW3: 220 | HX3: 221 | HY3: 222 | HZ3: 223 | IA3: 224 | IB3: 225 | IC3: 226 | ID3: 227 | IE3: 228 | IF3: 229 | IG3: 230 | IH3: 231 | II3: 232 | IJ3: 233 | IK3: 234 | IL3: 235 | IM3: 236 | IN3: 237 | IO3: 238 | IP3: 239 | IQ3: 240 | IR3: 241 | IS3: 242 | IT3: 243 | IU3: 244 | IV3: 245 | IW3: 246 | IX3: 247 | IY3: 248 | IZ3: 249 | JA3: 250 | JB3: 251 | JC3: 252 | JD3: 253 | JE3: 254 | JF3: 255 | JG3: 256 | JH3: 257 | JI3: 258 | JJ3: 259 | JK3: 260 | JL3: 261 | JM3: 262 | JN3: 263 | JO3: 264 | JP3: 265 | JQ3: 266 | JR3: 267 | JS3: 268 | JT3: 269 | JU3: 270 | JV3: 271 | JW3: 272 | JX3: 273 | JY3: 274 | JZ3: 275 | KA3: 276 | KB3: 277 | KC3: 278 | KD3: 279 | KE3: 280 | KF3: 281 | KG3: 282 | KH3: 283 | KI3: 284 | KJ3: 285 | KK3: 286 | KL3: 287 | KM3: 288 | KN3: 289 | KO3: 290 | KP3: 291 | KQ3: 292 | KR3: 293 | KS3: 294 | KT3: 295 | KU3: 296 | KV3: 297 | KW3: 298 | KX3: 299 | KY3: 300 | KZ3: 301 | LA3: 302 | LB3: 303 | LC3: 304 | LD3: 305 | LE3: 306 | LF3: 307 | LG3: 308 | LH3: 309 | LI3: 310 | LJ3: 311 | LK3: 312 | LL3: 313 | LM3: 314 | LN3: 315 | LO3: 316 | LP3: 317 | LQ3: 318 | LR3: 319 | LS3: 320 | LT3: 321 | LU3: 322 | LV3: 323 | LW3: 324 | LX3: 325 | LY3: 326 | LZ3: 327 | MA3: 328 | MB3: 329 | MC3: 330 | MD3: 331 | ME3: 332 | MF3: 333 | MG3: 334 | MH3: 335 | MI3: 336 | MJ3: 337 | MK3: 338 | ML3: 339 | MM3: 340 | MN3: 341 | MO3: 342 | MP3: 343 | MQ3: 344 | MR3: 345 | MS3: 346 | MT3: 347 | MU3: 348 | MV3: 349 | MW3: 350 | MX3: 351 | MY3: 352 | MZ3: 353 | NA3: 354 | NB3: 355 | NC3: 356 | ND3: 357 | NE3: 358 | NF3: 359 | NG3: 360 | NH3: 361 | NI3: 362 | NJ3: 363 | NK3: 364 | NL3: 365 | NM3: 366 | NN3: 367 | NO3: 368 | NP3: 369 | NQ3: 370 | NR3: 371 | NS3: 372 | NT3: 373 | NU3: 374 | NV3: 375 | NW3: 376 | NX3: 377 | NY3: 378 | NZ3: 379 | OA3: 380 | OB3: 381 | OC3: 382 | OD3: 383 | OE3: 384 | OF3: 385 | OG3: 386 | OH3: 387 | OI3: 388 | OJ3: 389 | OK3: 390 | OL3: 391 | OM3: 392 | ON3: 393 | OO3: 394 | OP3: 395 | OQ3: 396 | OR3: 397 | OS3: 398 | OT3: 399 | OU3: 400 | OV3: 401 | OW3: 402 | OX3: 403 | OY3: 404 | OZ3: 405 | PA3: 406 | PB3: 407 | PC3: 408 | PD3: 409 | PE3: 410 | PF3: 411 | PG3: 412 | PH3: 413 | PI3: 414 | PJ3: 415 | PK3: 416 | PL3: 417 | PM3: 418 | PN3: 419 | PO3: 420 | PP3: 421 | PQ3: 422 | PR3: 423 | PS3: 424 | PT3: 425 | PU3: 426 | PV3: 427 | PW3: 428 | PX3: 429 | PY3: 430 | PZ3: 431 | QA3: 432 | QB3: 433 | QC3: 434 | QD3: 435 | QE3: 436 | QF3: 437 | QG3: 438 | QH3: 439 | QI3: 440 | QJ3: 441 | QK3: 442 | QL3: 443 | QM3: 444 | QN3: 445 | QO3: 446 | QP3: 447 | QQ3: 448 | QR3: 449 | QS3: 450 | QT3: 451 | QU3: 452 | QV3: 453 | QW3: 454 | QX3: 455 | QY3: 456 | QZ3: 457 | RA3: 458 | RB3: 459 | RC3: 460 | RD3: 461 | RE3: 462 | RF3: 463 | RG3: 464 | RH3: 465 | RI3: 466 | RJ3: 467 | RK3: 468 | RL3: 469 | RM3: 470 | RN3: 471 | RO3: 472 | RP3: 473 | RQ3: 474 | RR3: 475 | RS3: 476 | RT3: 477 | RU3: 478 | RV3: 479 | RW3: 480 | RX3: 481 | RY3: 482 | RZ3: 483 | SA3: 484 | SB3: 485 | SC3: 486 | SD3: 487 | SE3: 488 | SF3: 489 | SG3: 490 | SH3: 491 | SI3: 492 | SJ3: 493 | SK3: 494 | SL3: 495 | SM3: 496 | SN3: 497 | SO3: 498 | SP3: 499 | SQ3: 500 | SR3: 501 | SS3: 502 | ST3: 503 | SU3: 504 | SV3: 505 | SW3: 506 | SX3: 507 | SY3: 508 | SZ3: 509 | TA3: 510 | TB3: 511 | TC3: 512 | TD3: 513 | TE3: 514 | TF3: 515 | TG3: 516 | TH3: 517 | TI3: 518 | TJ3: 519 | TK3: 520 | TL3: 521 | TM3: 522 | TN3: 523 | TO3: 524 | TP3: 525 | TQ3: 526 | TR3: 527 | TS3: 528 | TT3: 529 | TU3: 530 | TV3: 531 | TW3: 532 | TX3: 533 | TY3: 534 | TZ3: 535 | UA3: 536 | UB3: 537 | UC3: 538 | UD3: 539 | UE3: 540 | UF3: 541 | UG3: 542 | UH3: 543 | UI3: 544 | UJ3: 545 | UK3: 546 | UL3: 547 | UM3: 548 | UN3: 549 | UO3: 550 | UP3: 551 | UQ3: 552 | UR3: 553 | US3: 554 | UT3: 555 | UU3: 556 | UV3: 557 | UW3: 558 | UX3: 559 | UY3: 560 | UZ3: 561 | VA3: 562 | VB3: 563 | VC3: 564 | VD3: 565 | VE3: 566 | VF3: 567 | VG3: 568 | VH3: 569 | VI3: 570 | VJ3: 571 | VK3: 572 | VL3: 573 | VM3: 574 | VN3: 575 | VO3: 576 | VP3: 577 | VQ3: 578 | VR3: 579 | VS3: 580 | VT3: 581 | VU3: 582 | VV3: 583 | VW3: 584 | VX3: 585 | VY3: 586 | VZ3: 587 | WA3: 588 | WB3: 589 | WC3: 590 | WD3: 591 | WE3: 592 | WF3: 593 | WG3: 594 | WH3: 595 | WI3: 596 | WJ3: 597 | WK3: 598 | WL3: 599 | WM3: 600 | WN3: 601 | WO3: 602 | WP3: 603 | WQ3: 604 | WR3: 605 | WS3: 606 | WT3: 607 | WU3: 608 | WV3: 609 | WW3: 610 | WX3: 611 | WY3: 612 | WZ3: 613 | XA3: 614 | XB3: 615 | XC3: 616 | XD3: 617 | XE3: 618 | XF3: 619 | XG3: 620 | XH3: 621 | XI3: 622 | XJ3: 623 | XK3: 624 | XL3: 625 | XM3: 626 | XN3: 627 | XO3: 628 | XP3: 629 | XQ3: 630 | XR3: 631 | XS3: 632 | XT3: 633 | XU3: 634 | XV3: 635 | XW3: 636 | XX3: 637 | XY3: 638 | XZ3: 639 | YA3: 640 | YB3: 641 | YC3: 642 | YD3: 643 | YE3: 644 | YF3: 645 | YG3: 646 | YH3: 647 | YI3: 648 | YJ3: 649 | YK3: 650 | YL3: 651 | YM3: 652 | YN3: 653 | YO3: 654 | YP3: 655 | YQ3: 656 | YR3: 657 | YS3: 658 | YT3: 659 | YU3: 660 | YV3: 661 | YW3: 662 | YX3: 663 | YY3: 664 | YZ3: 665 | ZA3: 666 | ZB3: 667 | ZC3: 668 | ZD3: 669 | ZE3: 670 | ZF3: 671 | ZG3: 672 | ZH3: 673 | ZI3: 674 | ZJ3: 675 | ZK3: 676 | ZL3: 677 | ZM3: 678 | ZN3: 679 | ZO3: 680 | ZP3: 681 | ZQ3: 682 | ZR3: 683 | ZS3: 684 | ZT3: 685 | ZU3: 686 | ZV3: 687 | ZW3: 688 | ZX3: 689 | ZY3: 690 | ZZ3: 691 | AAA3: 692 | AAB3: 693 | AAC3: 694 | AAD3: 695 | AAE3: 696 | AAF3: 697 | AAG3: 698 | AAH3: 699 | AAI3: 700 | AAJ3: 701 | AAK3: 702 | AAL3: 703 | AAM3: 704 | AAN3: 705 | AAO3: 706 | AAP3: 707 | AAQ3: 708 | AAR3: 709 | AAS3: 710 | AAT3: 711 | AAU3: 712 | AAV3: 713 | AAW3: 714 | AAX3: 715 | AAY3: 716 | AAZ3: 717 | ABA3: 718 | ABB3: 719 | ABC3: 720 | ABD3: 721 | ABE3: 722 | ABF3: 723 | ABG3: 724 | ABH3: 725 | ABI3: 726 | ABJ3: 727 | ABK3: 728 | ABL3: 729 | ABM3: 730 | ABN3: 731 | ABO3: 732 | ABP3: 733 | ABQ3: 734 | ABR3: 735 | ABS3: 736 | ABT3: 737 | ABU3: 738 | ABV3: 739 | ABW3: 740 | ABX3: 741 | ABY3: 742 | ABZ3: 743 | ACA3: 744 | ACB3: 745 | ACC3: 746 | ACD3: 747 | ACE3: 748 | ACF3: 749 | ACG3: 750 | ACH3: 751 | ACI3: 752 | ACJ3: 753 | ACK3: 754 | ACL3: 755 | ACM3: 756 | ACN3: 757 | ACO3: 758 | ACP3: 759 | ACQ3: 760 | ACR3: 761 | ACS3: 762 | ACT3: 763 | ACU3: 764 | ACV3: 765 | ACW3: 766 | ACX3: 767 | ACY3: 768 | ACZ3: 769 | ADA3: 770 | ADB3: 771 | ADC3: 772 | ADD3: 773 | ADE3: 774 | ADF3: 775 | ADG3: 776 | ADH3: 777 | ADI3: 778 | ADJ3: 779 | ADK3: 780 | ADL3: 781 | ADM3: 782 | ADN3: 783 | ADO3: 784 | ADP3: 785 | ADQ3: 786 | ADR3: 787 | ADS3: 788 | ADT3: 789 | ADU3: 790 | ADV3: 791 | ADW3: 792 | ADX3: 793 | ADY3: 794 | ADZ3: 795 | AEA3: 796 | AEB3: 797 | AEC3: 798 | AED3: 799 | AEE3: 800
D4: Start of Period | G4: Date
D5: End of Period | G5: Date | K5: ='InputC - Operations'!E7-1 -> 2022-12-31
D6: Pre-COD Flag | G6: Flag
D7: Operations Flag | G7: Flag
D8: Year | G8: Year
B10: Monthly and Semi-Annual Date for Financing
D11: Month Number
D12: Flag for Semi Annual Period Post COD | E12: ='InputC-Financing'!E10 -> 5 | F12: ='InputC-Financing'!E11 -> 11 | G12: Flag
D13: COD Flag | E13: =E7 -> 00:00:00 | G13: Flag
D15: Key Flag - IF pre cod -1, COD, Last Monthly Flag
D16: Starting Date (Day b/4 COD) | E16: =EDATE(E6,0)-1 -> -1
D17: Forward Semi-Annual Date with Same Dates | E17: =E16 -> -1 | F17: ='InputC - Operations'!E13 -> 6 | G17: Date | K17: =E17 -> -1
D18: Final Semi-Annual Date | G18: Date
B20: Capacity and Production
D21: EBITDA Annual | G21: ='InputC - Operations'!G17 -> Euro
D23: Month Number | G23: Month | L23: =MONTH(L4) -> 1 | M23: 1 | N23: 1 | O23: 1 | P23: 1 | Q23: 1 | R23: 1 | S23: 1 | T23: 1 | U23: 1 | V23: 1 | W23: 1 | X23: 1 | Y23: 1 | Z23: 1 | AA23: 1 | AB23: 1 | AC23: 1 | AD23: 1 | AE23: 1 | AF23: 1 | AG23: 1 | AH23: 1 | AI23: 1 | AJ23: 1 | AK23: 1 | AL23: 1 | AM23: 1 | AN23: 1 | AO23: 1 | AP23: 1 | AQ23: 1 | AR23: 1 | AS23: 1 | AT23: 1 | AU23: 1 | AV23: 1 | AW23: 1 | AX23: 1 | AY23: 1 | AZ23: 1 | BA23: 1 | BB23: 1 | BC23: 1 | BD23: 1 | BE23: 1 | BF23: 1 | BG23: 1 | BH23: 1 | BI23: 1 | BJ23: 1 | BK23: 1 | BL23: 1 | BM23: 1 | BN23: 1 | BO23: 1 | BP23: 1 | BQ23: 1 | BR23: 1 | BS23: 1 | BT23: 1 | BU23: 1 | BV23: 1 | BW23: 1 | BX23: =MONTH(BX4) -> 1 | BY23: 1 | BZ23: 1 | CA23: 1 | CB23: 1 | CC23: 1 | CD23: 1 | CE23: 1 | CF23: 1 | CG23: 1 | CH23: 1 | CI23: 1 | CJ23: 1 | CK23: 1 | CL23: 1 | CM23: 1 | CN23: 1 | CO23: 1 | CP23: 1 | CQ23: 1 | CR23: 1 | CS23: 1 | CT23: 1 | CU23: 1 | CV23: 1 | CW23: 1 | CX23: 1 | CY23: 1 | CZ23: 1 | DA23: 1 | DB23: 1 | DC23: 1 | DD23: 1 | DE23: 1 | DF23: 1 | DG23: 1 | DH23: 1 | DI23: 1 | DJ23: 1 | DK23: 1 | DL23: 1 | DM23: 1 | DN23: 1 | DO23: 1 | DP23: 1 | DQ23: 1 | DR23: 1 | DS23: 1 | DT23: 1 | DU23: 1 | DV23: 1 | DW23: 1 | DX23: 1 | DY23: 1 | DZ23: 1 | EA23: 1 | EB23: 1 | EC23: 1 | ED23: 1 | EE23: 1 | EF23: 1 | EG23: 1 | EH23: 1 | EI23: 1 | EJ23: =MONTH(EJ4) -> 1 | EK23: 1 | EL23: 1 | EM23: 1 | EN23: 1 | EO23: 1 | EP23: 1 | EQ23: 1 | ER23: 1 | ES23: 1 | ET23: 1 | EU23: 1 | EV23: 1 | EW23: 1 | EX23: 1 | EY23: 1 | EZ23: 1 | FA23: 1 | FB23: 1 | FC23: 1 | FD23: 1 | FE23: 1 | FF23: 1 | FG23: 1 | FH23: 1 | FI23: 1 | FJ23: 1 | FK23: 1 | FL23: 1 | FM23: 1 | FN23: 1 | FO23: 1 | FP23: 1 | FQ23: 1 | FR23: 1 | FS23: 1 | FT23: 1 | FU23: 1 | FV23: 1 | FW23: 1 | FX23: 1 | FY23: 1 | FZ23: 1 | GA23: 1 | GB23: 1 | GC23: 1 | GD23: 1 | GE23: 1 | GF23: 1 | GG23: 1 | GH23: 1 | GI23: 1 | GJ23: 1 | GK23: 1 | GL23: 1 | GM23: 1 | GN23: 1 | GO23: 1 | GP23: 1 | GQ23: 1 | GR23: 1 | GS23: 1 | GT23: 1 | GU23: 1 | GV23: =MONTH(GV4) -> 1 | GW23: 1 | GX23: 1 | GY23: 1 | GZ23: 1 | HA23: 1 | HB23: 1 | HC23: 1 | HD23: 1 | HE23: 1 | HF23: 1 | HG23: 1 | HH23: 1 | HI23: 1 | HJ23: 1 | HK23: 1 | HL23: 1 | HM23: 1 | HN23: 1 | HO23: 1 | HP23: 1 | HQ23: 1 | HR23: 1 | HS23: 1 | HT23: 1 | HU23: 1 | HV23: 1 | HW23: 1 | HX23: 1 | HY23: 1 | HZ23: 1 | IA23: 1 | IB23: 1 | IC23: 1 | ID23: 1 | IE23: 1 | IF23: 1 | IG23: 1 | IH23: 1 | II23: 1 | IJ23: 1 | IK23: 1 | IL23: 1 | IM23: 1 | IN23: 1 | IO23: 1 | IP23: 1 | IQ23: 1 | IR23: 1 | IS23: 1 | IT23: 1 | IU23: 1 | IV23: 1 | IW23: 1 | IX23: 1 | IY23: 1 | IZ23: 1 | JA23: 1 | JB23: 1 | JC23: 1 | JD23: 1 | JE23: 1 | JF23: 1 | JG23: 1 | JH23: =MONTH(JH4) -> 1 | JI23: 1 | JJ23: 1 | JK23: 1 | JL23: 1 | JM23: 1 | JN23: 1 | JO23: 1 | JP23: 1 | JQ23: 1 | JR23: 1 | JS23: 1 | JT23: 1 | JU23: 1 | JV23: 1 | JW23: 1 | JX23: 1 | JY23: 1 | JZ23: 1 | KA23: 1 | KB23: 1 | KC23: 1 | KD23: 1 | KE23: 1 | KF23: 1 | KG23: 1 | KH23: 1 | KI23: 1 | KJ23: 1 | KK23: 1 | KL23: 1 | KM23: 1 | KN23: 1 | KO23: 1 | KP23: 1 | KQ23: 1 | KR23: 1 | KS23: 1 | KT23: 1 | KU23: 1 | KV23: 1 | KW23: 1 | KX23: 1 | KY23: 1 | KZ23: 1 | LA23: 1 | LB23: 1 | LC23: 1 | LD23: 1 | LE23: 1 | LF23: 1 | LG23: 1 | LH23: 1 | LI23: 1 | LJ23: 1 | LK23: 1 | LL23: 1 | LM23: 1 | LN23: 1 | LO23: 1 | LP23: 1 | LQ23: 1 | LR23: 1 | LS23: 1 | LT23: =MONTH(LT4) -> 1 | LU23: 1 | LV23: 1 | LW23: 1 | LX23: 1 | LY23: 1 | LZ23: 1 | MA23: 1 | MB23: 1 | MC23: 1 | MD23: 1 | ME23: 1 | MF23: 1 | MG23: 1 | MH23: 1 | MI23: 1 | MJ23: 1 | MK23: 1 | ML23: 1 | MM23: 1 | MN23: 1 | MO23: 1 | MP23: 1 | MQ23: 1 | MR23: 1 | MS23: 1 | MT23: 1 | MU23: 1 | MV23: 1 | MW23: 1 | MX23: 1 | MY23: 1 | MZ23: 1 | NA23: 1 | NB23: 1 | NC23: 1 | ND23: 1 | NE23: 1 | NF23: 1 | NG23: 1 | NH23: 1 | NI23: 1 | NJ23: 1 | NK23: 1 | NL23: 1 | NM23: 1 | NN23: 1 | NO23: 1 | NP23: 1 | NQ23: 1 | NR23: 1 | NS23: 1 | NT23: 1 | NU23: 1 | NV23: 1 | NW23: 1 | NX23: 1 | NY23: 1 | NZ23: 1 | OA23: 1 | OB23: 1 | OC23: 1 | OD23: 1 | OE23: 1 | OF23: =MONTH(OF4) -> 1 | OG23: 1 | OH23: 1 | OI23: 1 | OJ23: 1 | OK23: 1 | OL23: 1 | OM23: 1 | ON23: 1 | OO23: 1 | OP23: 1 | OQ23: 1 | OR23: 1 | OS23: 1 | OT23: 1 | OU23: 1 | OV23: 1 | OW23: 1 | OX23: 1 | OY23: 1 | OZ23: 1 | PA23: 1 | PB23: 1 | PC23: 1 | PD23: 1 | PE23: 1 | PF23: 1 | PG23: 1 | PH23: 1 | PI23: 1 | PJ23: 1 | PK23: 1 | PL23: 1 | PM23: 1 | PN23: 1 | PO23: 1 | PP23: 1 | PQ23: 1 | PR23: 1 | PS23: 1 | PT23: 1 | PU23: 1 | PV23: 1 | PW23: 1 | PX23: 1 | PY23: 1 | PZ23: 1 | QA23: 1 | QB23: 1 | QC23: 1 | QD23: 1 | QE23: 1 | QF23: 1 | QG23: 1 | QH23: 1 | QI23: 1 | QJ23: 1 | QK23: 1 | QL23: 1 | QM23: 1 | QN23: 1 | QO23: 1 | QP23: 1 | QQ23: 1 | QR23: =MONTH(QR4) -> 1 | QS23: 1 | QT23: 1 | QU23: 1 | QV23: 1 | QW23: 1 | QX23: 1 | QY23: 1 | QZ23: 1 | RA23: 1 | RB23: 1 | RC23: 1 | RD23: 1 | RE23: 1 | RF23: 1 | RG23: 1 | RH23: 1 | RI23: 1 | RJ23: 1 | RK23: 1 | RL23: 1 | RM23: 1 | RN23: 1 | RO23: 1 | RP23: 1 | RQ23: 1 | RR23: 1 | RS23: 1 | RT23: 1 | RU23: 1 | RV23: 1 | RW23: 1 | RX23: 1 | RY23: 1 | RZ23: 1 | SA23: 1 | SB23: 1 | SC23: 1 | SD23: 1 | SE23: 1 | SF23: 1 | SG23: 1 | SH23: 1 | SI23: 1 | SJ23: 1 | SK23: 1 | SL23: 1 | SM23: 1 | SN23: 1 | SO23: 1 | SP23: 1 | SQ23: 1 | SR23: 1 | SS23: 1 | ST23: 1 | SU23: 1 | SV23: 1 | SW23: 1 | SX23: 1 | SY23: 1 | SZ23: 1 | TA23: 1 | TB23: 1 | TC23: 1 | TD23: =MONTH(TD4) -> 1 | TE23: 1 | TF23: 1 | TG23: 1 | TH23: 1 | TI23: 1 | TJ23: 1 | TK23: 1 | TL23: 1 | TM23: 1 | TN23: 1 | TO23: 1 | TP23: 1 | TQ23: 1 | TR23: 1 | TS23: 1 | TT23: 1 | TU23: 1 | TV23: 1 | TW23: 1 | TX23: 1 | TY23: 1 | TZ23: 1 | UA23: 1 | UB23: 1 | UC23: 1 | UD23: 1 | UE23: 1 | UF23: 1 | UG23: 1 | UH23: 1 | UI23: 1 | UJ23: 1 | UK23: 1 | UL23: 1 | UM23: 1 | UN23: 1 | UO23: 1 | UP23: 1 | UQ23: 1 | UR23: 1 | US23: 1 | UT23: 1 | UU23: 1 | UV23: 1 | UW23: 1 | UX23: 1 | UY23: 1 | UZ23: 1 | VA23: 1 | VB23: 1 | VC23: 1 | VD23: 1 | VE23: 1 | VF23: 1 | VG23: 1 | VH23: 1 | VI23: 1 | VJ23: 1 | VK23: 1 | VL23: 1 | VM23: 1 | VN23: 1 | VO23: 1 | VP23: =MONTH(VP4) -> 1 | VQ23: 1 | VR23: 1 | VS23: 1 | VT23: 1 | VU23: 1 | VV23: 1 | VW23: 1 | VX23: 1 | VY23: 1 | VZ23: 1 | WA23: 1 | WB23: 1 | WC23: 1 | WD23: 1 | WE23: 1 | WF23: 1 | WG23: 1 | WH23: 1 | WI23: 1 | WJ23: 1 | WK23: 1 | WL23: 1 | WM23: 1 | WN23: 1 | WO23: 1 | WP23: 1 | WQ23: 1 | WR23: 1 | WS23: 1 | WT23: 1 | WU23: 1 | WV23: 1 | WW23: 1 | WX23: 1 | WY23: 1 | WZ23: 1 | XA23: 1 | XB23: 1 | XC23: 1 | XD23: 1 | XE23: 1 | XF23: 1 | XG23: 1 | XH23: 1 | XI23: 1 | XJ23: 1 | XK23: 1 | XL23: 1 | XM23: 1 | XN23: 1 | XO23: 1 | XP23: 1 | XQ23: 1 | XR23: 1 | XS23: 1 | XT23: 1 | XU23: 1 | XV23: 1 | XW23: 1 | XX23: 1 | XY23: 1 | XZ23: 1 | YA23: 1 | YB23: =MONTH(YB4) -> 1 | YC23: 1 | YD23: 1 | YE23: 1 | YF23: 1 | YG23: 1 | YH23: 1 | YI23: 1 | YJ23: 1 | YK23: 1 | YL23: 1 | YM23: 1 | YN23: 1 | YO23: 1 | YP23: 1 | YQ23: 1 | YR23: 1 | YS23: 1 | YT23: 1 | YU23: 1 | YV23: 1 | YW23: 1 | YX23: 1 | YY23: 1 | YZ23: 1 | ZA23: 1 | ZB23: 1 | ZC23: 1 | ZD23: 1 | ZE23: 1 | ZF23: 1 | ZG23: 1 | ZH23: 1 | ZI23: 1 | ZJ23: 1 | ZK23: 1 | ZL23: 1 | ZM23: 1 | ZN23: 1 | ZO23: 1 | ZP23: 1 | ZQ23: 1 | ZR23: 1 | ZS23: 1 | ZT23: 1 | ZU23: 1 | ZV23: 1 | ZW23: 1 | ZX23: 1 | ZY23: 1 | ZZ23: 1 | AAA23: 1 | AAB23: 1 | AAC23: 1 | AAD23: 1 | AAE23: 1 | AAF23: 1 | AAG23: 1 | AAH23: 1 | AAI23: 1 | AAJ23: 1 | AAK23: 1 | AAL23: 1 | AAM23: 1 | AAN23: =MONTH(AAN4) -> 1 | AAO23: 1 | AAP23: 1 | AAQ23: 1 | AAR23: 1 | AAS23: 1 | AAT23: 1 | AAU23: 1 | AAV23: 1 | AAW23: 1 | AAX23: 1 | AAY23: 1 | AAZ23: 1 | ABA23: 1 | ABB23: 1 | ABC23: 1 | ABD23: 1 | ABE23: 1 | ABF23: 1 | ABG23: 1 | ABH23: 1 | ABI23: 1 | ABJ23: 1 | ABK23: 1 | ABL23: 1 | ABM23: 1 | ABN23: 1 | ABO23: 1 | ABP23: 1 | ABQ23: 1 | ABR23: 1 | ABS23: 1 | ABT23: 1 | ABU23: 1 | ABV23: 1 | ABW23: 1 | ABX23: 1 | ABY23: 1 | ABZ23: 1 | ACA23: 1 | ACB23: 1 | ACC23: 1 | ACD23: 1 | ACE23: 1 | ACF23: 1 | ACG23: 1 | ACH23: 1 | ACI23: 1 | ACJ23: 1 | ACK23: 1 | ACL23: 1 | ACM23: 1 | ACN23: 1 | ACO23: 1 | ACP23: 1 | ACQ23: 1 | ACR23: 1 | ACS23: 1 | ACT23: 1 | ACU23: 1 | ACV23: 1 | ACW23: 1 | ACX23: 1 | ACY23: 1 | ACZ23: =MONTH(ACZ4) -> 1 | ADA23: 1 | ADB23: 1 | ADC23: 1 | ADD23: 1 | ADE23: 1 | ADF23: 1 | ADG23: 1 | ADH23: 1 | ADI23: 1 | ADJ23: 1 | ADK23: 1 | ADL23: 1 | ADM23: 1 | ADN23: 1 | ADO23: 1 | ADP23: 1 | ADQ23: 1 | ADR23: 1 | ADS23: 1 | ADT23: 1 | ADU23: 1 | ADV23: 1 | ADW23: 1 | ADX23: 1 | ADY23: 1 | ADZ23: 1 | AEA23: 1 | AEB23: 1 | AEC23: 1 | AED23: 1 | AEE23: 1
D24: Seasonality | G24: %
D25: Seasonal EBITDA | G25: Euro | J25: =SUM(K25:XFD25) -> 0
C27: Inflation Index
D28: Year | G28: Year
D29: Annual Inflation Rate | E29: ='InputC - Operations'!E27 -> Low Inflation | G29: % p.a.
D30: Monthly Inflation Rate | G30: % p.p.
D32: Inflation Index from COD | G32: Index | K32: 1 | L32: =K32*(1+L30*L7) -> 1 | M32: 1 | N32: 1 | O32: 1 | P32: 1 | Q32: 1 | R32: 1 | S32: 1 | T32: 1 | U32: 1 | V32: 1 | W32: 1 | X32: 1 | Y32: 1 | Z32: 1 | AA32: 1 | AB32: 1 | AC32: 1 | AD32: 1 | AE32: 1 | AF32: 1 | AG32: 1 | AH32: 1 | AI32: 1 | AJ32: 1 | AK32: 1 | AL32: 1 | AM32: 1 | AN32: 1 | AO32: 1 | AP32: 1 | AQ32: 1 | AR32: 1 | AS32: 1 | AT32: 1 | AU32: 1 | AV32: 1 | AW32: 1 | AX32: 1 | AY32: 1 | AZ32: 1 | BA32: 1 | BB32: 1 | BC32: 1 | BD32: 1 | BE32: 1 | BF32: 1 | BG32: 1 | BH32: 1 | BI32: 1 | BJ32: 1 | BK32: 1 | BL32: 1 | BM32: 1 | BN32: 1 | BO32: 1 | BP32: 1 | BQ32: 1 | BR32: 1 | BS32: 1 | BT32: 1 | BU32: 1 | BV32: 1 | BW32: 1 | BX32: =BW32*(1+BX30*BX7) -> 1 | BY32: 1 | BZ32: 1 | CA32: 1 | CB32: 1 | CC32: 1 | CD32: 1 | CE32: 1 | CF32: 1 | CG32: 1 | CH32: 1 | CI32: 1 | CJ32: 1 | CK32: 1 | CL32: 1 | CM32: 1 | CN32: 1 | CO32: 1 | CP32: 1 | CQ32: 1 | CR32: 1 | CS32: 1 | CT32: 1 | CU32: 1 | CV32: 1 | CW32: 1 | CX32: 1 | CY32: 1 | CZ32: 1 | DA32: 1 | DB32: 1 | DC32: 1 | DD32: 1 | DE32: 1 | DF32: 1 | DG32: 1 | DH32: 1 | DI32: 1 | DJ32: 1 | DK32: 1 | DL32: 1 | DM32: 1 | DN32: 1 | DO32: 1 | DP32: 1 | DQ32: 1 | DR32: 1 | DS32: 1 | DT32: 1 | DU32: 1 | DV32: 1 | DW32: 1 | DX32: 1 | DY32: 1 | DZ32: 1 | EA32: 1 | EB32: 1 | EC32: 1 | ED32: 1 | EE32: 1 | EF32: 1 | EG32: 1 | EH32: 1 | EI32: 1 | EJ32: =EI32*(1+EJ30*EJ7) -> 1 | EK32: 1 | EL32: 1 | EM32: 1 | EN32: 1 | EO32: 1 | EP32: 1 | EQ32: 1 | ER32: 1 | ES32: 1 | ET32: 1 | EU32: 1 | EV32: 1 | EW32: 1 | EX32: 1 | EY32: 1 | EZ32: 1 | FA32: 1 | FB32: 1 | FC32: 1 | FD32: 1 | FE32: 1 | FF32: 1 | FG32: 1 | FH32: 1 | FI32: 1 | FJ32: 1 | FK32: 1 | FL32: 1 | FM32: 1 | FN32: 1 | FO32: 1 | FP32: 1 | FQ32: 1 | FR32: 1 | FS32: 1 | FT32: 1 | FU32: 1 | FV32: 1 | FW32: 1 | FX32: 1 | FY32: 1 | FZ32: 1 | GA32: 1 | GB32: 1 | GC32: 1 | GD32: 1 | GE32: 1 | GF32: 1 | GG32: 1 | GH32: 1 | GI32: 1 | GJ32: 1 | GK32: 1 | GL32: 1 | GM32: 1 | GN32: 1 | GO32: 1 | GP32: 1 | GQ32: 1 | GR32: 1 | GS32: 1 | GT32: 1 | GU32: 1 | GV32: =GU32*(1+GV30*GV7) -> 1 | GW32: 1 | GX32: 1 | GY32: 1 | GZ32: 1 | HA32: 1 | HB32: 1 | HC32: 1 | HD32: 1 | HE32: 1 | HF32: 1 | HG32: 1 | HH32: 1 | HI32: 1 | HJ32: 1 | HK32: 1 | HL32: 1 | HM32: 1 | HN32: 1 | HO32: 1 | HP32: 1 | HQ32: 1 | HR32: 1 | HS32: 1 | HT32: 1 | HU32: 1 | HV32: 1 | HW32: 1 | HX32: 1 | HY32: 1 | HZ32: 1 | IA32: 1 | IB32: 1 | IC32: 1 | ID32: 1 | IE32: 1 | IF32: 1 | IG32: 1 | IH32: 1 | II32: 1 | IJ32: 1 | IK32: 1 | IL32: 1 | IM32: 1 | IN32: 1 | IO32: 1 | IP32: 1 | IQ32: 1 | IR32: 1 | IS32: 1 | IT32: 1 | IU32: 1 | IV32: 1 | IW32: 1 | IX32: 1 | IY32: 1 | IZ32: 1 | JA32: 1 | JB32: 1 | JC32: 1 | JD32: 1 | JE32: 1 | JF32: 1 | JG32: 1 | JH32: =JG32*(1+JH30*JH7) -> 1 | JI32: 1 | JJ32: 1 | JK32: 1 | JL32: 1 | JM32: 1 | JN32: 1 | JO32: 1 | JP32: 1 | JQ32: 1 | JR32: 1 | JS32: 1 | JT32: 1 | JU32: 1 | JV32: 1 | JW32: 1 | JX32: 1 | JY32: 1 | JZ32: 1 | KA32: 1 | KB32: 1 | KC32: 1 | KD32: 1 | KE32: 1 | KF32: 1 | KG32: 1 | KH32: 1 | KI32: 1 | KJ32: 1 | KK32: 1 | KL32: 1 | KM32: 1 | KN32: 1 | KO32: 1 | KP32: 1 | KQ32: 1 | KR32: 1 | KS32: 1 | KT32: 1 | KU32: 1 | KV32: 1 | KW32: 1 | KX32: 1 | KY32: 1 | KZ32: 1 | LA32: 1 | LB32: 1 | LC32: 1 | LD32: 1 | LE32: 1 | LF32: 1 | LG32: 1 | LH32: 1 | LI32: 1 | LJ32: 1 | LK32: 1 | LL32: 1 | LM32: 1 | LN32: 1 | LO32: 1 | LP32: 1 | LQ32: 1 | LR32: 1 | LS32: 1 | LT32: =LS32*(1+LT30*LT7) -> 1 | LU32: 1 | LV32: 1 | LW32: 1 | LX32: 1 | LY32: 1 | LZ32: 1 | MA32: 1 | MB32: 1 | MC32: 1 | MD32: 1 | ME32: 1 | MF32: 1 | MG32: 1 | MH32: 1 | MI32: 1 | MJ32: 1 | MK32: 1 | ML32: 1 | MM32: 1 | MN32: 1 | MO32: 1 | MP32: 1 | MQ32: 1 | MR32: 1 | MS32: 1 | MT32: 1 | MU32: 1 | MV32: 1 | MW32: 1 | MX32: 1 | MY32: 1 | MZ32: 1 | NA32: 1 | NB32: 1 | NC32: 1 | ND32: 1 | NE32: 1 | NF32: 1 | NG32: 1 | NH32: 1 | NI32: 1 | NJ32: 1 | NK32: 1 | NL32: 1 | NM32: 1 | NN32: 1 | NO32: 1 | NP32: 1 | NQ32: 1 | NR32: 1 | NS32: 1 | NT32: 1 | NU32: 1 | NV32: 1 | NW32: 1 | NX32: 1 | NY32: 1 | NZ32: 1 | OA32: 1 | OB32: 1 | OC32: 1 | OD32: 1 | OE32: 1 | OF32: =OE32*(1+OF30*OF7) -> 1 | OG32: 1 | OH32: 1 | OI32: 1 | OJ32: 1 | OK32: 1 | OL32: 1 | OM32: 1 | ON32: 1 | OO32: 1 | OP32: 1 | OQ32: 1 | OR32: 1 | OS32: 1 | OT32: 1 | OU32: 1 | OV32: 1 | OW32: 1 | OX32: 1 | OY32: 1 | OZ32: 1 | PA32: 1 | PB32: 1 | PC32: 1 | PD32: 1 | PE32: 1 | PF32: 1 | PG32: 1 | PH32: 1 | PI32: 1 | PJ32: 1 | PK32: 1 | PL32: 1 | PM32: 1 | PN32: 1 | PO32: 1 | PP32: 1 | PQ32: 1 | PR32: 1 | PS32: 1 | PT32: 1 | PU32: 1 | PV32: 1 | PW32: 1 | PX32: 1 | PY32: 1 | PZ32: 1 | QA32: 1 | QB32: 1 | QC32: 1 | QD32: 1 | QE32: 1 | QF32: 1 | QG32: 1 | QH32: 1 | QI32: 1 | QJ32: 1 | QK32: 1 | QL32: 1 | QM32: 1 | QN32: 1 | QO32: 1 | QP32: 1 | QQ32: 1 | QR32: =QQ32*(1+QR30*QR7) -> 1 | QS32: 1 | QT32: 1 | QU32: 1 | QV32: 1 | QW32: 1 | QX32: 1 | QY32: 1 | QZ32: 1 | RA32: 1 | RB32: 1 | RC32: 1 | RD32: 1 | RE32: 1 | RF32: 1 | RG32: 1 | RH32: 1 | RI32: 1 | RJ32: 1 | RK32: 1 | RL32: 1 | RM32: 1 | RN32: 1 | RO32: 1 | RP32: 1 | RQ32: 1 | RR32: 1 | RS32: 1 | RT32: 1 | RU32: 1 | RV32: 1 | RW32: 1 | RX32: 1 | RY32: 1 | RZ32: 1 | SA32: 1 | SB32: 1 | SC32: 1 | SD32: 1 | SE32: 1 | SF32: 1 | SG32: 1 | SH32: 1 | SI32: 1 | SJ32: 1 | SK32: 1 | SL32: 1 | SM32: 1 | SN32: 1 | SO32: 1 | SP32: =SO32*(1+SP30*SP7) -> 1 | SQ32: =SP32*(1+SQ30*SQ7) -> 1 | SR32: =SQ32*(1+SR30*SR7) -> 1 | SS32: =SR32*(1+SS30*SS7) -> 1 | ST32: =SS32*(1+ST30*ST7) -> 1 | SU32: =ST32*(1+SU30*SU7) -> 1 | SV32: =SU32*(1+SV30*SV7) -> 1 | SW32: =SV32*(1+SW30*SW7) -> 1 | SX32: =SW32*(1+SX30*SX7) -> 1 | SY32: =SX32*(1+SY30*SY7) -> 1 | SZ32: =SY32*(1+SZ30*SZ7) -> 1 | TA32: =SZ32*(1+TA30*TA7) -> 1 | TB32: =TA32*(1+TB30*TB7) -> 1 | TC32: =TB32*(1+TC30*TC7) -> 1 | TD32: =TC32*(1+TD30*TD7) -> 1 | TE32: =TD32*(1+TE30*TE7) -> 1 | TF32: =TE32*(1+TF30*TF7) -> 1 | TG32: =TF32*(1+TG30*TG7) -> 1 | TH32: =TG32*(1+TH30*TH7) -> 1 | TI32: =TH32*(1+TI30*TI7) -> 1 | TJ32: =TI32*(1+TJ30*TJ7) -> 1 | TK32: =TJ32*(1+TK30*TK7) -> 1 | TL32: =TK32*(1+TL30*TL7) -> 1 | TM32: =TL32*(1+TM30*TM7) -> 1 | TN32: =TM32*(1+TN30*TN7) -> 1 | TO32: =TN32*(1+TO30*TO7) -> 1 | TP32: =TO32*(1+TP30*TP7) -> 1 | TQ32: =TP32*(1+TQ30*TQ7) -> 1 | TR32: =TQ32*(1+TR30*TR7) -> 1 | TS32: =TR32*(1+TS30*TS7) -> 1 | TT32: =TS32*(1+TT30*TT7) -> 1 | TU32: =TT32*(1+TU30*TU7) -> 1 | TV32: =TU32*(1+TV30*TV7) -> 1 | TW32: =TV32*(1+TW30*TW7) -> 1 | TX32: =TW32*(1+TX30*TX7) -> 1 | TY32: =TX32*(1+TY30*TY7) -> 1 | TZ32: =TY32*(1+TZ30*TZ7) -> 1 | UA32: =TZ32*(1+UA30*UA7) -> 1 | UB32: =UA32*(1+UB30*UB7) -> 1 | UC32: =UB32*(1+UC30*UC7) -> 1 | UD32: =UC32*(1+UD30*UD7) -> 1 | UE32: =UD32*(1+UE30*UE7) -> 1 | UF32: =UE32*(1+UF30*UF7) -> 1 | UG32: =UF32*(1+UG30*UG7) -> 1 | UH32: =UG32*(1+UH30*UH7) -> 1 | UI32: =UH32*(1+UI30*UI7) -> 1 | UJ32: =UI32*(1+UJ30*UJ7) -> 1 | UK32: =UJ32*(1+UK30*UK7) -> 1 | UL32: =UK32*(1+UL30*UL7) -> 1 | UM32: =UL32*(1+UM30*UM7) -> 1 | UN32: =UM32*(1+UN30*UN7) -> 1 | UO32: =UN32*(1+UO30*UO7) -> 1 | UP32: =UO32*(1+UP30*UP7) -> 1 | UQ32: =UP32*(1+UQ30*UQ7) -> 1 | UR32: =UQ32*(1+UR30*UR7) -> 1 | US32: =UR32*(1+US30*US7) -> 1 | UT32: =US32*(1+UT30*UT7) -> 1 | UU32: =UT32*(1+UU30*UU7) -> 1 | UV32: =UU32*(1+UV30*UV7) -> 1 | UW32: =UV32*(1+UW30*UW7) -> 1 | UX32: =UW32*(1+UX30*UX7) -> 1 | UY32: =UX32*(1+UY30*UY7) -> 1 | UZ32: =UY32*(1+UZ30*UZ7) -> 1 | VA32: =UZ32*(1+VA30*VA7) -> 1 | VB32: =VA32*(1+VB30*VB7) -> 1 | VC32: =VB32*(1+VC30*VC7) -> 1 | VD32: =VC32*(1+VD30*VD7) -> 1 | VE32: =VD32*(1+VE30*VE7) -> 1 | VF32: =VE32*(1+VF30*VF7) -> 1 | VG32: =VF32*(1+VG30*VG7) -> 1 | VH32: =VG32*(1+VH30*VH7) -> 1 | VI32: =VH32*(1+VI30*VI7) -> 1 | VJ32: =VI32*(1+VJ30*VJ7) -> 1 | VK32: =VJ32*(1+VK30*VK7) -> 1 | VL32: =VK32*(1+VL30*VL7) -> 1 | VM32: =VL32*(1+VM30*VM7) -> 1 | VN32: =VM32*(1+VN30*VN7) -> 1 | VO32: =VN32*(1+VO30*VO7) -> 1 | VP32: =VO32*(1+VP30*VP7) -> 1 | VQ32: =VP32*(1+VQ30*VQ7) -> 1 | VR32: =VQ32*(1+VR30*VR7) -> 1 | VS32: =VR32*(1+VS30*VS7) -> 1 | VT32: =VS32*(1+VT30*VT7) -> 1 | VU32: =VT32*(1+VU30*VU7) -> 1 | VV32: =VU32*(1+VV30*VV7) -> 1 | VW32: =VV32*(1+VW30*VW7) -> 1 | VX32: =VW32*(1+VX30*VX7) -> 1 | VY32: =VX32*(1+VY30*VY7) -> 1 | VZ32: =VY32*(1+VZ30*VZ7) -> 1 | WA32: =VZ32*(1+WA30*WA7) -> 1 | WB32: =WA32*(1+WB30*WB7) -> 1 | WC32: =WB32*(1+WC30*WC7) -> 1 | WD32: =WC32*(1+WD30*WD7) -> 1 | WE32: =WD32*(1+WE30*WE7) -> 1 | WF32: =WE32*(1+WF30*WF7) -> 1 | WG32: =WF32*(1+WG30*WG7) -> 1 | WH32: =WG32*(1+WH30*WH7) -> 1 | WI32: =WH32*(1+WI30*WI7) -> 1 | WJ32: =WI32*(1+WJ30*WJ7) -> 1 | WK32: =WJ32*(1+WK30*WK7) -> 1 | WL32: =WK32*(1+WL30*WL7) -> 1 | WM32: =WL32*(1+WM30*WM7) -> 1 | WN32: =WM32*(1+WN30*WN7) -> 1 | WO32: =WN32*(1+WO30*WO7) -> 1 | WP32: =WO32*(1+WP30*WP7) -> 1 | WQ32: =WP32*(1+WQ30*WQ7) -> 1 | WR32: =WQ32*(1+WR30*WR7) -> 1 | WS32: =WR32*(1+WS30*WS7) -> 1 | WT32: =WS32*(1+WT30*WT7) -> 1 | WU32: =WT32*(1+WU30*WU7) -> 1 | WV32: =WU32*(1+WV30*WV7) -> 1 | WW32: =WV32*(1+WW30*WW7) -> 1 | WX32: =WW32*(1+WX30*WX7) -> 1 | WY32: =WX32*(1+WY30*WY7) -> 1 | WZ32: =WY32*(1+WZ30*WZ7) -> 1 | XA32: =WZ32*(1+XA30*XA7) -> 1 | XB32: =XA32*(1+XB30*XB7) -> 1 | XC32: =XB32*(1+XC30*XC7) -> 1 | XD32: =XC32*(1+XD30*XD7) -> 1 | XE32: =XD32*(1+XE30*XE7) -> 1 | XF32: =XE32*(1+XF30*XF7) -> 1 | XG32: =XF32*(1+XG30*XG7) -> 1 | XH32: =XG32*(1+XH30*XH7) -> 1 | XI32: =XH32*(1+XI30*XI7) -> 1 | XJ32: =XI32*(1+XJ30*XJ7) -> 1 | XK32: =XJ32*(1+XK30*XK7) -> 1 | XL32: =XK32*(1+XL30*XL7) -> 1 | XM32: =XL32*(1+XM30*XM7) -> 1 | XN32: =XM32*(1+XN30*XN7) -> 1 | XO32: =XN32*(1+XO30*XO7) -> 1 | XP32: =XO32*(1+XP30*XP7) -> 1 | XQ32: =XP32*(1+XQ30*XQ7) -> 1 | XR32: =XQ32*(1+XR30*XR7) -> 1 | XS32: =XR32*(1+XS30*XS7) -> 1 | XT32: =XS32*(1+XT30*XT7) -> 1 | XU32: =XT32*(1+XU30*XU7) -> 1 | XV32: =XU32*(1+XV30*XV7) -> 1 | XW32: =XV32*(1+XW30*XW7) -> 1 | XX32: =XW32*(1+XX30*XX7) -> 1 | XY32: =XX32*(1+XY30*XY7) -> 1 | XZ32: =XY32*(1+XZ30*XZ7) -> 1 | YA32: =XZ32*(1+YA30*YA7) -> 1 | YB32: =YA32*(1+YB30*YB7) -> 1 | YC32: =YB32*(1+YC30*YC7) -> 1 | YD32: =YC32*(1+YD30*YD7) -> 1 | YE32: =YD32*(1+YE30*YE7) -> 1 | YF32: =YE32*(1+YF30*YF7) -> 1 | YG32: =YF32*(1+YG30*YG7) -> 1 | YH32: =YG32*(1+YH30*YH7) -> 1 | YI32: =YH32*(1+YI30*YI7) -> 1 | YJ32: =YI32*(1+YJ30*YJ7) -> 1 | YK32: =YJ32*(1+YK30*YK7) -> 1 | YL32: =YK32*(1+YL30*YL7) -> 1 | YM32: =YL32*(1+YM30*YM7) -> 1 | YN32: =YM32*(1+YN30*YN7) -> 1 | YO32: =YN32*(1+YO30*YO7) -> 1 | YP32: =YO32*(1+YP30*YP7) -> 1 | YQ32: =YP32*(1+YQ30*YQ7) -> 1 | YR32: =YQ32*(1+YR30*YR7) -> 1 | YS32: =YR32*(1+YS30*YS7) -> 1 | YT32: =YS32*(1+YT30*YT7) -> 1 | YU32: =YT32*(1+YU30*YU7) -> 1 | YV32: =YU32*(1+YV30*YV7) -> 1 | YW32: =YV32*(1+YW30*YW7) -> 1 | YX32: =YW32*(1+YX30*YX7) -> 1 | YY32: =YX32*(1+YY30*YY7) -> 1 | YZ32: =YY32*(1+YZ30*YZ7) -> 1 | ZA32: =YZ32*(1+ZA30*ZA7) -> 1 | ZB32: =ZA32*(1+ZB30*ZB7) -> 1 | ZC32: =ZB32*(1+ZC30*ZC7) -> 1 | ZD32: =ZC32*(1+ZD30*ZD7) -> 1 | ZE32: =ZD32*(1+ZE30*ZE7) -> 1 | ZF32: =ZE32*(1+ZF30*ZF7) -> 1 | ZG32: =ZF32*(1+ZG30*ZG7) -> 1 | ZH32: =ZG32*(1+ZH30*ZH7) -> 1 | ZI32: =ZH32*(1+ZI30*ZI7) -> 1 | ZJ32: =ZI32*(1+ZJ30*ZJ7) -> 1 | ZK32: =ZJ32*(1+ZK30*ZK7) -> 1 | ZL32: =ZK32*(1+ZL30*ZL7) -> 1 | ZM32: =ZL32*(1+ZM30*ZM7) -> 1 | ZN32: =ZM32*(1+ZN30*ZN7) -> 1 | ZO32: =ZN32*(1+ZO30*ZO7) -> 1 | ZP32: =ZO32*(1+ZP30*ZP7) -> 1 | ZQ32: =ZP32*(1+ZQ30*ZQ7) -> 1 | ZR32: =ZQ32*(1+ZR30*ZR7) -> 1 | ZS32: =ZR32*(1+ZS30*ZS7) -> 1 | ZT32: =ZS32*(1+ZT30*ZT7) -> 1 | ZU32: =ZT32*(1+ZU30*ZU7) -> 1 | ZV32: =ZU32*(1+ZV30*ZV7) -> 1 | ZW32: =ZV32*(1+ZW30*ZW7) -> 1 | ZX32: =ZW32*(1+ZX30*ZX7) -> 1 | ZY32: =ZX32*(1+ZY30*ZY7) -> 1 | ZZ32: =ZY32*(1+ZZ30*ZZ7) -> 1 | AAA32: =ZZ32*(1+AAA30*AAA7) -> 1 | AAB32: =AAA32*(1+AAB30*AAB7) -> 1 | AAC32: =AAB32*(1+AAC30*AAC7) -> 1 | AAD32: =AAC32*(1+AAD30*AAD7) -> 1 | AAE32: =AAD32*(1+AAE30*AAE7) -> 1 | AAF32: =AAE32*(1+AAF30*AAF7) -> 1 | AAG32: =AAF32*(1+AAG30*AAG7) -> 1 | AAH32: =AAG32*(1+AAH30*AAH7) -> 1 | AAI32: =AAH32*(1+AAI30*AAI7) -> 1 | AAJ32: =AAI32*(1+AAJ30*AAJ7) -> 1 | AAK32: =AAJ32*(1+AAK30*AAK7) -> 1 | AAL32: =AAK32*(1+AAL30*AAL7) -> 1 | AAM32: =AAL32*(1+AAM30*AAM7) -> 1 | AAN32: =AAM32*(1+AAN30*AAN7) -> 1 | AAO32: =AAN32*(1+AAO30*AAO7) -> 1 | AAP32: =AAO32*(1+AAP30*AAP7) -> 1 | AAQ32: =AAP32*(1+AAQ30*AAQ7) -> 1 | AAR32: =AAQ32*(1+AAR30*AAR7) -> 1 | AAS32: =AAR32*(1+AAS30*AAS7) -> 1 | AAT32: =AAS32*(1+AAT30*AAT7) -> 1 | AAU32: =AAT32*(1+AAU30*AAU7) -> 1 | AAV32: =AAU32*(1+AAV30*AAV7) -> 1 | AAW32: =AAV32*(1+AAW30*AAW7) -> 1 | AAX32: =AAW32*(1+AAX30*AAX7) -> 1 | AAY32: =AAX32*(1+AAY30*AAY7) -> 1 | AAZ32: =AAY32*(1+AAZ30*AAZ7) -> 1 | ABA32: =AAZ32*(1+ABA30*ABA7) -> 1 | ABB32: =ABA32*(1+ABB30*ABB7) -> 1 | ABC32: =ABB32*(1+ABC30*ABC7) -> 1 | ABD32: =ABC32*(1+ABD30*ABD7) -> 1 | ABE32: =ABD32*(1+ABE30*ABE7) -> 1 | ABF32: =ABE32*(1+ABF30*ABF7) -> 1 | ABG32: =ABF32*(1+ABG30*ABG7) -> 1 | ABH32: =ABG32*(1+ABH30*ABH7) -> 1 | ABI32: =ABH32*(1+ABI30*ABI7) -> 1 | ABJ32: =ABI32*(1+ABJ30*ABJ7) -> 1 | ABK32: =ABJ32*(1+ABK30*ABK7) -> 1 | ABL32: =ABK32*(1+ABL30*ABL7) -> 1 | ABM32: =ABL32*(1+ABM30*ABM7) -> 1 | ABN32: =ABM32*(1+ABN30*ABN7) -> 1 | ABO32: =ABN32*(1+ABO30*ABO7) -> 1 | ABP32: =ABO32*(1+ABP30*ABP7) -> 1 | ABQ32: =ABP32*(1+ABQ30*ABQ7) -> 1 | ABR32: =ABQ32*(1+ABR30*ABR7) -> 1 | ABS32: =ABR32*(1+ABS30*ABS7) -> 1 | ABT32: =ABS32*(1+ABT30*ABT7) -> 1 | ABU32: =ABT32*(1+ABU30*ABU7) -> 1 | ABV32: =ABU32*(1+ABV30*ABV7) -> 1 | ABW32: =ABV32*(1+ABW30*ABW7) -> 1 | ABX32: =ABW32*(1+ABX30*ABX7) -> 1 | ABY32: =ABX32*(1+ABY30*ABY7) -> 1 | ABZ32: =ABY32*(1+ABZ30*ABZ7) -> 1 | ACA32: =ABZ32*(1+ACA30*ACA7) -> 1 | ACB32: =ACA32*(1+ACB30*ACB7) -> 1 | ACC32: =ACB32*(1+ACC30*ACC7) -> 1 | ACD32: =ACC32*(1+ACD30*ACD7) -> 1 | ACE32: =ACD32*(1+ACE30*ACE7) -> 1 | ACF32: =ACE32*(1+ACF30*ACF7) -> 1 | ACG32: =ACF32*(1+ACG30*ACG7) -> 1 | ACH32: =ACG32*(1+ACH30*ACH7) -> 1 | ACI32: =ACH32*(1+ACI30*ACI7) -> 1 | ACJ32: =ACI32*(1+ACJ30*ACJ7) -> 1 | ACK32: =ACJ32*(1+ACK30*ACK7) -> 1 | ACL32: =ACK32*(1+ACL30*ACL7) -> 1 | ACM32: =ACL32*(1+ACM30*ACM7) -> 1 | ACN32: =ACM32*(1+ACN30*ACN7) -> 1 | ACO32: =ACN32*(1+ACO30*ACO7) -> 1 | ACP32: =ACO32*(1+ACP30*ACP7) -> 1 | ACQ32: =ACP32*(1+ACQ30*ACQ7) -> 1 | ACR32: =ACQ32*(1+ACR30*ACR7) -> 1 | ACS32: =ACR32*(1+ACS30*ACS7) -> 1 | ACT32: =ACS32*(1+ACT30*ACT7) -> 1 | ACU32: =ACT32*(1+ACU30*ACU7) -> 1 | ACV32: =ACU32*(1+ACV30*ACV7) -> 1 | ACW32: =ACV32*(1+ACW30*ACW7) -> 1 | ACX32: =ACW32*(1+ACX30*ACX7) -> 1 | ACY32: =ACX32*(1+ACY30*ACY7) -> 1 | ACZ32: =ACY32*(1+ACZ30*ACZ7) -> 1 | ADA32: =ACZ32*(1+ADA30*ADA7) -> 1 | ADB32: =ADA32*(1+ADB30*ADB7) -> 1 | ADC32: =ADB32*(1+ADC30*ADC7) -> 1 | ADD32: =ADC32*(1+ADD30*ADD7) -> 1 | ADE32: =ADD32*(1+ADE30*ADE7) -> 1 | ADF32: =ADE32*(1+ADF30*ADF7) -> 1 | ADG32: =ADF32*(1+ADG30*ADG7) -> 1 | ADH32: =ADG32*(1+ADH30*ADH7) -> 1 | ADI32: =ADH32*(1+ADI30*ADI7) -> 1 | ADJ32: =ADI32*(1+ADJ30*ADJ7) -> 1 | ADK32: =ADJ32*(1+ADK30*ADK7) -> 1 | ADL32: =ADK32*(1+ADL30*ADL7) -> 1 | ADM32: =ADL32*(1+ADM30*ADM7) -> 1 | ADN32: =ADM32*(1+ADN30*ADN7) -> 1 | ADO32: =ADN32*(1+ADO30*ADO7) -> 1 | ADP32: =ADO32*(1+ADP30*ADP7) -> 1 | ADQ32: =ADP32*(1+ADQ30*ADQ7) -> 1 | ADR32: =ADQ32*(1+ADR30*ADR7) -> 1 | ADS32: =ADR32*(1+ADS30*ADS7) -> 1 | ADT32: =ADS32*(1+ADT30*ADT7) -> 1 | ADU32: =ADT32*(1+ADU30*ADU7) -> 1 | ADV32: =ADU32*(1+ADV30*ADV7) -> 1 | ADW32: =ADV32*(1+ADW30*ADW7) -> 1 | ADX32: =ADW32*(1+ADX30*ADX7) -> 1 | ADY32: =ADX32*(1+ADY30*ADY7) -> 1 | ADZ32: =ADY32*(1+ADZ30*ADZ7) -> 1 | AEA32: =ADZ32*(1+AEA30*AEA7) -> 1 | AEB32: =AEA32*(1+AEB30*AEB7) -> 1 | AEC32: =AEB32*(1+AEC30*AEC7) -> 1 | AED32: =AEC32*(1+AED30*AED7) -> 1 | AEE32: =AED32*(1+AEE30*AEE7) -> 1
D33: Inflation Index from Start Date | G33: Index | K33: 1 | L33: =K33*(1+L30) -> 1 | M33: =L33*(1+M30) -> 1 | N33: 1 | O33: 1 | P33: 1 | Q33: 1 | R33: 1 | S33: 1 | T33: 1 | U33: 1 | V33: 1 | W33: 1 | X33: 1 | Y33: 1 | Z33: 1 | AA33: 1 | AB33: 1 | AC33: 1 | AD33: 1 | AE33: 1 | AF33: 1 | AG33: 1 | AH33: 1 | AI33: 1 | AJ33: 1 | AK33: 1 | AL33: 1 | AM33: 1 | AN33: 1 | AO33: 1 | AP33: 1 | AQ33: 1 | AR33: 1 | AS33: 1 | AT33: 1 | AU33: 1 | AV33: 1 | AW33: 1 | AX33: 1 | AY33: 1 | AZ33: 1 | BA33: 1 | BB33: 1 | BC33: 1 | BD33: 1 | BE33: 1 | BF33: 1 | BG33: 1 | BH33: 1 | BI33: 1 | BJ33: 1 | BK33: 1 | BL33: 1 | BM33: 1 | BN33: 1 | BO33: 1 | BP33: 1 | BQ33: 1 | BR33: 1 | BS33: 1 | BT33: 1 | BU33: 1 | BV33: 1 | BW33: 1 | BX33: 1 | BY33: =BX33*(1+BY30) -> 1 | BZ33: 1 | CA33: 1 | CB33: 1 | CC33: 1 | CD33: 1 | CE33: 1 | CF33: 1 | CG33: 1 | CH33: 1 | CI33: 1 | CJ33: 1 | CK33: 1 | CL33: 1 | CM33: 1 | CN33: 1 | CO33: 1 | CP33: 1 | CQ33: 1 | CR33: 1 | CS33: 1 | CT33: 1 | CU33: 1 | CV33: 1 | CW33: 1 | CX33: 1 | CY33: 1 | CZ33: 1 | DA33: 1 | DB33: 1 | DC33: 1 | DD33: 1 | DE33: 1 | DF33: 1 | DG33: 1 | DH33: 1 | DI33: 1 | DJ33: 1 | DK33: 1 | DL33: 1 | DM33: 1 | DN33: 1 | DO33: 1 | DP33: 1 | DQ33: 1 | DR33: 1 | DS33: 1 | DT33: 1 | DU33: 1 | DV33: 1 | DW33: 1 | DX33: 1 | DY33: 1 | DZ33: 1 | EA33: 1 | EB33: 1 | EC33: 1 | ED33: 1 | EE33: 1 | EF33: 1 | EG33: 1 | EH33: 1 | EI33: 1 | EJ33: 1 | EK33: =EJ33*(1+EK30) -> 1 | EL33: 1 | EM33: 1 | EN33: 1 | EO33: 1 | EP33: 1 | EQ33: 1 | ER33: 1 | ES33: 1 | ET33: 1 | EU33: 1 | EV33: 1 | EW33: 1 | EX33: 1 | EY33: 1 | EZ33: 1 | FA33: 1 | FB33: 1 | FC33: 1 | FD33: 1 | FE33: 1 | FF33: 1 | FG33: 1 | FH33: 1 | FI33: 1 | FJ33: 1 | FK33: 1 | FL33: 1 | FM33: 1 | FN33: 1 | FO33: 1 | FP33: 1 | FQ33: 1 | FR33: 1 | FS33: 1 | FT33: 1 | FU33: 1 | FV33: 1 | FW33: 1 | FX33: 1 | FY33: 1 | FZ33: 1 | GA33: 1 | GB33: 1 | GC33: 1 | GD33: 1 | GE33: 1 | GF33: 1 | GG33: 1 | GH33: 1 | GI33: 1 | GJ33: 1 | GK33: 1 | GL33: 1 | GM33: 1 | GN33: 1 | GO33: 1 | GP33: 1 | GQ33: 1 | GR33: 1 | GS33: 1 | GT33: 1 | GU33: 1 | GV33: 1 | GW33: =GV33*(1+GW30) -> 1 | GX33: 1 | GY33: 1 | GZ33: 1 | HA33: 1 | HB33: 1 | HC33: 1 | HD33: 1 | HE33: 1 | HF33: 1 | HG33: 1 | HH33: 1 | HI33: 1 | HJ33: 1 | HK33: 1 | HL33: 1 | HM33: 1 | HN33: 1 | HO33: 1 | HP33: 1 | HQ33: 1 | HR33: 1 | HS33: 1 | HT33: 1 | HU33: 1 | HV33: 1 | HW33: 1 | HX33: 1 | HY33: 1 | HZ33: 1 | IA33: 1 | IB33: 1 | IC33: 1 | ID33: 1 | IE33: 1 | IF33: 1 | IG33: 1 | IH33: 1 | II33: 1 | IJ33: 1 | IK33: 1 | IL33: 1 | IM33: 1 | IN33: 1 | IO33: 1 | IP33: 1 | IQ33: 1 | IR33: 1 | IS33: 1 | IT33: 1 | IU33: 1 | IV33: 1 | IW33: 1 | IX33: 1 | IY33: 1 | IZ33: 1 | JA33: 1 | JB33: 1 | JC33: 1 | JD33: 1 | JE33: 1 | JF33: 1 | JG33: 1 | JH33: 1 | JI33: =JH33*(1+JI30) -> 1 | JJ33: 1 | JK33: 1 | JL33: 1 | JM33: 1 | JN33: 1 | JO33: 1 | JP33: 1 | JQ33: 1 | JR33: 1 | JS33: 1 | JT33: 1 | JU33: 1 | JV33: 1 | JW33: 1 | JX33: 1 | JY33: 1 | JZ33: 1 | KA33: 1 | KB33: 1 | KC33: 1 | KD33: 1 | KE33: 1 | KF33: 1 | KG33: 1 | KH33: 1 | KI33: 1 | KJ33: 1 | KK33: 1 | KL33: 1 | KM33: 1 | KN33: 1 | KO33: 1 | KP33: 1 | KQ33: 1 | KR33: 1 | KS33: 1 | KT33: 1 | KU33: 1 | KV33: 1 | KW33: 1 | KX33: 1 | KY33: 1 | KZ33: 1 | LA33: 1 | LB33: 1 | LC33: 1 | LD33: 1 | LE33: 1 | LF33: 1 | LG33: 1 | LH33: 1 | LI33: 1 | LJ33: 1 | LK33: 1 | LL33: 1 | LM33: 1 | LN33: 1 | LO33: 1 | LP33: 1 | LQ33: 1 | LR33: 1 | LS33: 1 | LT33: 1 | LU33: =LT33*(1+LU30) -> 1 | LV33: 1 | LW33: 1 | LX33: 1 | LY33: 1 | LZ33: 1 | MA33: 1 | MB33: 1 | MC33: 1 | MD33: 1 | ME33: 1 | MF33: 1 | MG33: 1 | MH33: 1 | MI33: 1 | MJ33: 1 | MK33: 1 | ML33: 1 | MM33: 1 | MN33: 1 | MO33: 1 | MP33: 1 | MQ33: 1 | MR33: 1 | MS33: 1 | MT33: 1 | MU33: 1 | MV33: 1 | MW33: 1 | MX33: 1 | MY33: 1 | MZ33: 1 | NA33: 1 | NB33: 1 | NC33: 1 | ND33: 1 | NE33: 1 | NF33: 1 | NG33: 1 | NH33: 1 | NI33: 1 | NJ33: 1 | NK33: 1 | NL33: 1 | NM33: 1 | NN33: 1 | NO33: 1 | NP33: 1 | NQ33: 1 | NR33: 1 | NS33: 1 | NT33: 1 | NU33: 1 | NV33: 1 | NW33: 1 | NX33: 1 | NY33: 1 | NZ33: 1 | OA33: 1 | OB33: 1 | OC33: 1 | OD33: 1 | OE33: 1 | OF33: 1 | OG33: =OF33*(1+OG30) -> 1 | OH33: 1 | OI33: 1 | OJ33: 1 | OK33: 1 | OL33: 1 | OM33: 1 | ON33: 1 | OO33: 1 | OP33: 1 | OQ33: 1 | OR33: 1 | OS33: 1 | OT33: 1 | OU33: 1 | OV33: 1 | OW33: 1 | OX33: 1 | OY33: 1 | OZ33: 1 | PA33: 1 | PB33: 1 | PC33: 1 | PD33: 1 | PE33: 1 | PF33: 1 | PG33: 1 | PH33: 1 | PI33: 1 | PJ33: 1 | PK33: 1 | PL33: 1 | PM33: 1 | PN33: 1 | PO33: 1 | PP33: 1 | PQ33: 1 | PR33: 1 | PS33: 1 | PT33: 1 | PU33: 1 | PV33: 1 | PW33: 1 | PX33: 1 | PY33: 1 | PZ33: 1 | QA33: 1 | QB33: 1 | QC33: 1 | QD33: 1 | QE33: 1 | QF33: 1 | QG33: 1 | QH33: 1 | QI33: 1 | QJ33: 1 | QK33: 1 | QL33: 1 | QM33: 1 | QN33: 1 | QO33: 1 | QP33: 1 | QQ33: 1 | QR33: 1 | QS33: =QR33*(1+QS30) -> 1 | QT33: 1 | QU33: 1 | QV33: 1 | QW33: 1 | QX33: 1 | QY33: 1 | QZ33: 1 | RA33: 1 | RB33: 1 | RC33: 1 | RD33: 1 | RE33: 1 | RF33: 1 | RG33: 1 | RH33: 1 | RI33: 1 | RJ33: 1 | RK33: 1 | RL33: 1 | RM33: 1 | RN33: 1 | RO33: 1 | RP33: 1 | RQ33: 1 | RR33: 1 | RS33: 1 | RT33: 1 | RU33: 1 | RV33: 1 | RW33: 1 | RX33: 1 | RY33: 1 | RZ33: 1 | SA33: 1 | SB33: 1 | SC33: 1 | SD33: 1 | SE33: 1 | SF33: 1 | SG33: 1 | SH33: 1 | SI33: 1 | SJ33: 1 | SK33: 1 | SL33: 1 | SM33: 1 | SN33: 1 | SO33: 1 | SP33: 1 | SQ33: =SP33*(1+SQ30) -> 1 | SR33: =SQ33*(1+SR30) -> 1 | SS33: =SR33*(1+SS30) -> 1 | ST33: =SS33*(1+ST30) -> 1 | SU33: =ST33*(1+SU30) -> 1 | SV33: =SU33*(1+SV30) -> 1 | SW33: =SV33*(1+SW30) -> 1 | SX33: =SW33*(1+SX30) -> 1 | SY33: =SX33*(1+SY30) -> 1 | SZ33: =SY33*(1+SZ30) -> 1 | TA33: =SZ33*(1+TA30) -> 1 | TB33: =TA33*(1+TB30) -> 1 | TC33: =TB33*(1+TC30) -> 1 | TD33: =TC33*(1+TD30) -> 1 | TE33: =TD33*(1+TE30) -> 1 | TF33: =TE33*(1+TF30) -> 1 | TG33: =TF33*(1+TG30) -> 1 | TH33: =TG33*(1+TH30) -> 1 | TI33: =TH33*(1+TI30) -> 1 | TJ33: =TI33*(1+TJ30) -> 1 | TK33: =TJ33*(1+TK30) -> 1 | TL33: =TK33*(1+TL30) -> 1 | TM33: =TL33*(1+TM30) -> 1 | TN33: =TM33*(1+TN30) -> 1 | TO33: =TN33*(1+TO30) -> 1 | TP33: =TO33*(1+TP30) -> 1 | TQ33: =TP33*(1+TQ30) -> 1 | TR33: =TQ33*(1+TR30) -> 1 | TS33: =TR33*(1+TS30) -> 1 | TT33: =TS33*(1+TT30) -> 1 | TU33: =TT33*(1+TU30) -> 1 | TV33: =TU33*(1+TV30) -> 1 | TW33: =TV33*(1+TW30) -> 1 | TX33: =TW33*(1+TX30) -> 1 | TY33: =TX33*(1+TY30) -> 1 | TZ33: =TY33*(1+TZ30) -> 1 | UA33: =TZ33*(1+UA30) -> 1 | UB33: =UA33*(1+UB30) -> 1 | UC33: =UB33*(1+UC30) -> 1 | UD33: =UC33*(1+UD30) -> 1 | UE33: =UD33*(1+UE30) -> 1 | UF33: =UE33*(1+UF30) -> 1 | UG33: =UF33*(1+UG30) -> 1 | UH33: =UG33*(1+UH30) -> 1 | UI33: =UH33*(1+UI30) -> 1 | UJ33: =UI33*(1+UJ30) -> 1 | UK33: =UJ33*(1+UK30) -> 1 | UL33: =UK33*(1+UL30) -> 1 | UM33: =UL33*(1+UM30) -> 1 | UN33: =UM33*(1+UN30) -> 1 | UO33: =UN33*(1+UO30) -> 1 | UP33: =UO33*(1+UP30) -> 1 | UQ33: =UP33*(1+UQ30) -> 1 | UR33: =UQ33*(1+UR30) -> 1 | US33: =UR33*(1+US30) -> 1 | UT33: =US33*(1+UT30) -> 1 | UU33: =UT33*(1+UU30) -> 1 | UV33: =UU33*(1+UV30) -> 1 | UW33: =UV33*(1+UW30) -> 1 | UX33: =UW33*(1+UX30) -> 1 | UY33: =UX33*(1+UY30) -> 1 | UZ33: =UY33*(1+UZ30) -> 1 | VA33: =UZ33*(1+VA30) -> 1 | VB33: =VA33*(1+VB30) -> 1 | VC33: =VB33*(1+VC30) -> 1 | VD33: =VC33*(1+VD30) -> 1 | VE33: =VD33*(1+VE30) -> 1 | VF33: =VE33*(1+VF30) -> 1 | VG33: =VF33*(1+VG30) -> 1 | VH33: =VG33*(1+VH30) -> 1 | VI33: =VH33*(1+VI30) -> 1 | VJ33: =VI33*(1+VJ30) -> 1 | VK33: =VJ33*(1+VK30) -> 1 | VL33: =VK33*(1+VL30) -> 1 | VM33: =VL33*(1+VM30) -> 1 | VN33: =VM33*(1+VN30) -> 1 | VO33: =VN33*(1+VO30) -> 1 | VP33: =VO33*(1+VP30) -> 1 | VQ33: =VP33*(1+VQ30) -> 1 | VR33: =VQ33*(1+VR30) -> 1 | VS33: =VR33*(1+VS30) -> 1 | VT33: =VS33*(1+VT30) -> 1 | VU33: =VT33*(1+VU30) -> 1 | VV33: =VU33*(1+VV30) -> 1 | VW33: =VV33*(1+VW30) -> 1 | VX33: =VW33*(1+VX30) -> 1 | VY33: =VX33*(1+VY30) -> 1 | VZ33: =VY33*(1+VZ30) -> 1 | WA33: =VZ33*(1+WA30) -> 1 | WB33: =WA33*(1+WB30) -> 1 | WC33: =WB33*(1+WC30) -> 1 | WD33: =WC33*(1+WD30) -> 1 | WE33: =WD33*(1+WE30) -> 1 | WF33: =WE33*(1+WF30) -> 1 | WG33: =WF33*(1+WG30) -> 1 | WH33: =WG33*(1+WH30) -> 1 | WI33: =WH33*(1+WI30) -> 1 | WJ33: =WI33*(1+WJ30) -> 1 | WK33: =WJ33*(1+WK30) -> 1 | WL33: =WK33*(1+WL30) -> 1 | WM33: =WL33*(1+WM30) -> 1 | WN33: =WM33*(1+WN30) -> 1 | WO33: =WN33*(1+WO30) -> 1 | WP33: =WO33*(1+WP30) -> 1 | WQ33: =WP33*(1+WQ30) -> 1 | WR33: =WQ33*(1+WR30) -> 1 | WS33: =WR33*(1+WS30) -> 1 | WT33: =WS33*(1+WT30) -> 1 | WU33: =WT33*(1+WU30) -> 1 | WV33: =WU33*(1+WV30) -> 1 | WW33: =WV33*(1+WW30) -> 1 | WX33: =WW33*(1+WX30) -> 1 | WY33: =WX33*(1+WY30) -> 1 | WZ33: =WY33*(1+WZ30) -> 1 | XA33: =WZ33*(1+XA30) -> 1 | XB33: =XA33*(1+XB30) -> 1 | XC33: =XB33*(1+XC30) -> 1 | XD33: =XC33*(1+XD30) -> 1 | XE33: =XD33*(1+XE30) -> 1 | XF33: =XE33*(1+XF30) -> 1 | XG33: =XF33*(1+XG30) -> 1 | XH33: =XG33*(1+XH30) -> 1 | XI33: =XH33*(1+XI30) -> 1 | XJ33: =XI33*(1+XJ30) -> 1 | XK33: =XJ33*(1+XK30) -> 1 | XL33: =XK33*(1+XL30) -> 1 | XM33: =XL33*(1+XM30) -> 1 | XN33: =XM33*(1+XN30) -> 1 | XO33: =XN33*(1+XO30) -> 1 | XP33: =XO33*(1+XP30) -> 1 | XQ33: =XP33*(1+XQ30) -> 1 | XR33: =XQ33*(1+XR30) -> 1 | XS33: =XR33*(1+XS30) -> 1 | XT33: =XS33*(1+XT30) -> 1 | XU33: =XT33*(1+XU30) -> 1 | XV33: =XU33*(1+XV30) -> 1 | XW33: =XV33*(1+XW30) -> 1 | XX33: =XW33*(1+XX30) -> 1 | XY33: =XX33*(1+XY30) -> 1 | XZ33: =XY33*(1+XZ30) -> 1 | YA33: =XZ33*(1+YA30) -> 1 | YB33: =YA33*(1+YB30) -> 1 | YC33: =YB33*(1+YC30) -> 1 | YD33: =YC33*(1+YD30) -> 1 | YE33: =YD33*(1+YE30) -> 1 | YF33: =YE33*(1+YF30) -> 1 | YG33: =YF33*(1+YG30) -> 1 | YH33: =YG33*(1+YH30) -> 1 | YI33: =YH33*(1+YI30) -> 1 | YJ33: =YI33*(1+YJ30) -> 1 | YK33: =YJ33*(1+YK30) -> 1 | YL33: =YK33*(1+YL30) -> 1 | YM33: =YL33*(1+YM30) -> 1 | YN33: =YM33*(1+YN30) -> 1 | YO33: =YN33*(1+YO30) -> 1 | YP33: =YO33*(1+YP30) -> 1 | YQ33: =YP33*(1+YQ30) -> 1 | YR33: =YQ33*(1+YR30) -> 1 | YS33: =YR33*(1+YS30) -> 1 | YT33: =YS33*(1+YT30) -> 1 | YU33: =YT33*(1+YU30) -> 1 | YV33: =YU33*(1+YV30) -> 1 | YW33: =YV33*(1+YW30) -> 1 | YX33: =YW33*(1+YX30) -> 1 | YY33: =YX33*(1+YY30) -> 1 | YZ33: =YY33*(1+YZ30) -> 1 | ZA33: =YZ33*(1+ZA30) -> 1 | ZB33: =ZA33*(1+ZB30) -> 1 | ZC33: =ZB33*(1+ZC30) -> 1 | ZD33: =ZC33*(1+ZD30) -> 1 | ZE33: =ZD33*(1+ZE30) -> 1 | ZF33: =ZE33*(1+ZF30) -> 1 | ZG33: =ZF33*(1+ZG30) -> 1 | ZH33: =ZG33*(1+ZH30) -> 1 | ZI33: =ZH33*(1+ZI30) -> 1 | ZJ33: =ZI33*(1+ZJ30) -> 1 | ZK33: =ZJ33*(1+ZK30) -> 1 | ZL33: =ZK33*(1+ZL30) -> 1 | ZM33: =ZL33*(1+ZM30) -> 1 | ZN33: =ZM33*(1+ZN30) -> 1 | ZO33: =ZN33*(1+ZO30) -> 1 | ZP33: =ZO33*(1+ZP30) -> 1 | ZQ33: =ZP33*(1+ZQ30) -> 1 | ZR33: =ZQ33*(1+ZR30) -> 1 | ZS33: =ZR33*(1+ZS30) -> 1 | ZT33: =ZS33*(1+ZT30) -> 1 | ZU33: =ZT33*(1+ZU30) -> 1 | ZV33: =ZU33*(1+ZV30) -> 1 | ZW33: =ZV33*(1+ZW30) -> 1 | ZX33: =ZW33*(1+ZX30) -> 1 | ZY33: =ZX33*(1+ZY30) -> 1 | ZZ33: =ZY33*(1+ZZ30) -> 1 | AAA33: =ZZ33*(1+AAA30) -> 1 | AAB33: =AAA33*(1+AAB30) -> 1 | AAC33: =AAB33*(1+AAC30) -> 1 | AAD33: =AAC33*(1+AAD30) -> 1 | AAE33: =AAD33*(1+AAE30) -> 1 | AAF33: =AAE33*(1+AAF30) -> 1 | AAG33: =AAF33*(1+AAG30) -> 1 | AAH33: =AAG33*(1+AAH30) -> 1 | AAI33: =AAH33*(1+AAI30) -> 1 | AAJ33: =AAI33*(1+AAJ30) -> 1 | AAK33: =AAJ33*(1+AAK30) -> 1 | AAL33: =AAK33*(1+AAL30) -> 1 | AAM33: =AAL33*(1+AAM30) -> 1 | AAN33: =AAM33*(1+AAN30) -> 1 | AAO33: =AAN33*(1+AAO30) -> 1 | AAP33: =AAO33*(1+AAP30) -> 1 | AAQ33: =AAP33*(1+AAQ30) -> 1 | AAR33: =AAQ33*(1+AAR30) -> 1 | AAS33: =AAR33*(1+AAS30) -> 1 | AAT33: =AAS33*(1+AAT30) -> 1 | AAU33: =AAT33*(1+AAU30) -> 1 | AAV33: =AAU33*(1+AAV30) -> 1 | AAW33: =AAV33*(1+AAW30) -> 1 | AAX33: =AAW33*(1+AAX30) -> 1 | AAY33: =AAX33*(1+AAY30) -> 1 | AAZ33: =AAY33*(1+AAZ30) -> 1 | ABA33: =AAZ33*(1+ABA30) -> 1 | ABB33: =ABA33*(1+ABB30) -> 1 | ABC33: =ABB33*(1+ABC30) -> 1 | ABD33: =ABC33*(1+ABD30) -> 1 | ABE33: =ABD33*(1+ABE30) -> 1 | ABF33: =ABE33*(1+ABF30) -> 1 | ABG33: =ABF33*(1+ABG30) -> 1 | ABH33: =ABG33*(1+ABH30) -> 1 | ABI33: =ABH33*(1+ABI30) -> 1 | ABJ33: =ABI33*(1+ABJ30) -> 1 | ABK33: =ABJ33*(1+ABK30) -> 1 | ABL33: =ABK33*(1+ABL30) -> 1 | ABM33: =ABL33*(1+ABM30) -> 1 | ABN33: =ABM33*(1+ABN30) -> 1 | ABO33: =ABN33*(1+ABO30) -> 1 | ABP33: =ABO33*(1+ABP30) -> 1 | ABQ33: =ABP33*(1+ABQ30) -> 1 | ABR33: =ABQ33*(1+ABR30) -> 1 | ABS33: =ABR33*(1+ABS30) -> 1 | ABT33: =ABS33*(1+ABT30) -> 1 | ABU33: =ABT33*(1+ABU30) -> 1 | ABV33: =ABU33*(1+ABV30) -> 1 | ABW33: =ABV33*(1+ABW30) -> 1 | ABX33: =ABW33*(1+ABX30) -> 1 | ABY33: =ABX33*(1+ABY30) -> 1 | ABZ33: =ABY33*(1+ABZ30) -> 1 | ACA33: =ABZ33*(1+ACA30) -> 1 | ACB33: =ACA33*(1+ACB30) -> 1 | ACC33: =ACB33*(1+ACC30) -> 1 | ACD33: =ACC33*(1+ACD30) -> 1 | ACE33: =ACD33*(1+ACE30) -> 1 | ACF33: =ACE33*(1+ACF30) -> 1 | ACG33: =ACF33*(1+ACG30) -> 1 | ACH33: =ACG33*(1+ACH30) -> 1 | ACI33: =ACH33*(1+ACI30) -> 1 | ACJ33: =ACI33*(1+ACJ30) -> 1 | ACK33: =ACJ33*(1+ACK30) -> 1 | ACL33: =ACK33*(1+ACL30) -> 1 | ACM33: =ACL33*(1+ACM30) -> 1 | ACN33: =ACM33*(1+ACN30) -> 1 | ACO33: =ACN33*(1+ACO30) -> 1 | ACP33: =ACO33*(1+ACP30) -> 1 | ACQ33: =ACP33*(1+ACQ30) -> 1 | ACR33: =ACQ33*(1+ACR30) -> 1 | ACS33: =ACR33*(1+ACS30) -> 1 | ACT33: =ACS33*(1+ACT30) -> 1 | ACU33: =ACT33*(1+ACU30) -> 1 | ACV33: =ACU33*(1+ACV30) -> 1 | ACW33: =ACV33*(1+ACW30) -> 1 | ACX33: =ACW33*(1+ACX30) -> 1 | ACY33: =ACX33*(1+ACY30) -> 1 | ACZ33: =ACY33*(1+ACZ30) -> 1 | ADA33: =ACZ33*(1+ADA30) -> 1 | ADB33: =ADA33*(1+ADB30) -> 1 | ADC33: =ADB33*(1+ADC30) -> 1 | ADD33: =ADC33*(1+ADD30) -> 1 | ADE33: =ADD33*(1+ADE30) -> 1 | ADF33: =ADE33*(1+ADF30) -> 1 | ADG33: =ADF33*(1+ADG30) -> 1 | ADH33: =ADG33*(1+ADH30) -> 1 | ADI33: =ADH33*(1+ADI30) -> 1 | ADJ33: =ADI33*(1+ADJ30) -> 1 | ADK33: =ADJ33*(1+ADK30) -> 1 | ADL33: =ADK33*(1+ADL30) -> 1 | ADM33: =ADL33*(1+ADM30) -> 1 | ADN33: =ADM33*(1+ADN30) -> 1 | ADO33: =ADN33*(1+ADO30) -> 1 | ADP33: =ADO33*(1+ADP30) -> 1 | ADQ33: =ADP33*(1+ADQ30) -> 1 | ADR33: =ADQ33*(1+ADR30) -> 1 | ADS33: =ADR33*(1+ADS30) -> 1 | ADT33: =ADS33*(1+ADT30) -> 1 | ADU33: =ADT33*(1+ADU30) -> 1 | ADV33: =ADU33*(1+ADV30) -> 1 | ADW33: =ADV33*(1+ADW30) -> 1 | ADX33: =ADW33*(1+ADX30) -> 1 | ADY33: =ADX33*(1+ADY30) -> 1 | ADZ33: =ADY33*(1+ADZ30) -> 1 | AEA33: =ADZ33*(1+AEA30) -> 1 | AEB33: =AEA33*(1+AEB30) -> 1 | AEC33: =AEB33*(1+AEC30) -> 1 | AED33: =AEC33*(1+AED30) -> 1 | AEE33: =AED33*(1+AEE30) -> 1
C35: Inflated EBITDA
D36: EBITDA Real | G36: Euro | J36: =SUM(L36:XFD36) -> 0 | L36: =L25 -> 0 | M36: =M25 -> 0 | N36: 0 | O36: 0 | P36: 0 | Q36: 0 | R36: 0 | S36: 0 | T36: 0 | U36: 0 | V36: 0 | W36: 0 | X36: 0 | Y36: 0 | Z36: 0 | AA36: 0 | AB36: 0 | AC36: 0 | AD36: 0 | AE36: 0 | AF36: 0 | AG36: 0 | AH36: 0 | AI36: 0 | AJ36: 0 | AK36: 0 | AL36: 0 | AM36: 0 | AN36: 0 | AO36: 0 | AP36: 0 | AQ36: 0 | AR36: 0 | AS36: 0 | AT36: 0 | AU36: 0 | AV36: 0 | AW36: 0 | AX36: 0 | AY36: 0 | AZ36: 0 | BA36: 0 | BB36: 0 | BC36: 0 | BD36: 0 | BE36: 0 | BF36: 0 | BG36: 0 | BH36: 0 | BI36: 0 | BJ36: 0 | BK36: 0 | BL36: 0 | BM36: 0 | BN36: 0 | BO36: 0 | BP36: 0 | BQ36: 0 | BR36: 0 | BS36: 0 | BT36: 0 | BU36: 0 | BV36: 0 | BW36: 0 | BX36: 0 | BY36: =BY25 -> 0 | BZ36: 0 | CA36: 0 | CB36: 0 | CC36: 0 | CD36: 0 | CE36: 0 | CF36: 0 | CG36: 0 | CH36: 0 | CI36: 0 | CJ36: 0 | CK36: 0 | CL36: 0 | CM36: 0 | CN36: 0 | CO36: 0 | CP36: 0 | CQ36: 0 | CR36: 0 | CS36: 0 | CT36: 0 | CU36: 0 | CV36: 0 | CW36: 0 | CX36: 0 | CY36: 0 | CZ36: 0 | DA36: 0 | DB36: 0 | DC36: 0 | DD36: 0 | DE36: 0 | DF36: 0 | DG36: 0 | DH36: 0 | DI36: 0 | DJ36: 0 | DK36: 0 | DL36: 0 | DM36: 0 | DN36: 0 | DO36: 0 | DP36: 0 | DQ36: 0 | DR36: 0 | DS36: 0 | DT36: 0 | DU36: 0 | DV36: 0 | DW36: 0 | DX36: 0 | DY36: 0 | DZ36: 0 | EA36: 0 | EB36: 0 | EC36: 0 | ED36: 0 | EE36: 0 | EF36: 0 | EG36: 0 | EH36: 0 | EI36: 0 | EJ36: 0 | EK36: =EK25 -> 0 | EL36: 0 | EM36: 0 | EN36: 0 | EO36: 0 | EP36: 0 | EQ36: 0 | ER36: 0 | ES36: 0 | ET36: 0 | EU36: 0 | EV36: 0 | EW36: 0 | EX36: 0 | EY36: 0 | EZ36: 0 | FA36: 0 | FB36: 0 | FC36: 0 | FD36: 0 | FE36: 0 | FF36: 0 | FG36: 0 | FH36: 0 | FI36: 0 | FJ36: 0 | FK36: 0 | FL36: 0 | FM36: 0 | FN36: 0 | FO36: 0 | FP36: 0 | FQ36: 0 | FR36: 0 | FS36: 0 | FT36: 0 | FU36: 0 | FV36: 0 | FW36: 0 | FX36: 0 | FY36: 0 | FZ36: 0 | GA36: 0 | GB36: 0 | GC36: 0 | GD36: 0 | GE36: 0 | GF36: 0 | GG36: 0 | GH36: 0 | GI36: 0 | GJ36: 0 | GK36: 0 | GL36: 0 | GM36: 0 | GN36: 0 | GO36: 0 | GP36: 0 | GQ36: 0 | GR36: 0 | GS36: 0 | GT36: 0 | GU36: 0 | GV36: 0 | GW36: =GW25 -> 0 | GX36: 0 | GY36: 0 | GZ36: 0 | HA36: 0 | HB36: 0 | HC36: 0 | HD36: 0 | HE36: 0 | HF36: 0 | HG36: 0 | HH36: 0 | HI36: 0 | HJ36: 0 | HK36: 0 | HL36: 0 | HM36: 0 | HN36: 0 | HO36: 0 | HP36: 0 | HQ36: 0 | HR36: 0 | HS36: 0 | HT36: 0 | HU36: 0 | HV36: 0 | HW36: 0 | HX36: 0 | HY36: 0 | HZ36: 0 | IA36: 0 | IB36: 0 | IC36: 0 | ID36: 0 | IE36: 0 | IF36: 0 | IG36: 0 | IH36: 0 | II36: 0 | IJ36: 0 | IK36: 0 | IL36: 0 | IM36: 0 | IN36: 0 | IO36: 0 | IP36: 0 | IQ36: 0 | IR36: 0 | IS36: 0 | IT36: 0 | IU36: 0 | IV36: 0 | IW36: 0 | IX36: 0 | IY36: 0 | IZ36: 0 | JA36: 0 | JB36: 0 | JC36: 0 | JD36: 0 | JE36: 0 | JF36: 0 | JG36: 0 | JH36: 0 | JI36: =JI25 -> 0 | JJ36: 0 | JK36: 0 | JL36: 0 | JM36: 0 | JN36: 0 | JO36: 0 | JP36: 0 | JQ36: 0 | JR36: 0 | JS36: 0 | JT36: 0 | JU36: 0 | JV36: 0 | JW36: 0 | JX36: 0 | JY36: 0 | JZ36: 0 | KA36: 0 | KB36: 0 | KC36: 0 | KD36: 0 | KE36: 0 | KF36: 0 | KG36: 0 | KH36: 0 | KI36: 0 | KJ36: 0 | KK36: 0 | KL36: 0 | KM36: 0 | KN36: 0 | KO36: 0 | KP36: 0 | KQ36: 0 | KR36: 0 | KS36: 0 | KT36: 0 | KU36: 0 | KV36: 0 | KW36: 0 | KX36: 0 | KY36: 0 | KZ36: 0 | LA36: 0 | LB36: 0 | LC36: 0 | LD36: 0 | LE36: 0 | LF36: 0 | LG36: 0 | LH36: 0 | LI36: 0 | LJ36: 0 | LK36: 0 | LL36: 0 | LM36: 0 | LN36: 0 | LO36: 0 | LP36: 0 | LQ36: 0 | LR36: 0 | LS36: 0 | LT36: 0 | LU36: =LU25 -> 0 | LV36: 0 | LW36: 0 | LX36: 0 | LY36: 0 | LZ36: 0 | MA36: 0 | MB36: 0 | MC36: 0 | MD36: 0 | ME36: 0 | MF36: 0 | MG36: 0 | MH36: 0 | MI36: 0 | MJ36: 0 | MK36: 0 | ML36: 0 | MM36: 0 | MN36: 0 | MO36: 0 | MP36: 0 | MQ36: 0 | MR36: 0 | MS36: 0 | MT36: 0 | MU36: 0 | MV36: 0 | MW36: 0 | MX36: 0 | MY36: 0 | MZ36: 0 | NA36: 0 | NB36: 0 | NC36: 0 | ND36: 0 | NE36: 0 | NF36: 0 | NG36: 0 | NH36: 0 | NI36: 0 | NJ36: 0 | NK36: 0 | NL36: 0 | NM36: 0 | NN36: 0 | NO36: 0 | NP36: 0 | NQ36: 0 | NR36: 0 | NS36: 0 | NT36: 0 | NU36: 0 | NV36: 0 | NW36: 0 | NX36: 0 | NY36: 0 | NZ36: 0 | OA36: 0 | OB36: 0 | OC36: 0 | OD36: 0 | OE36: 0 | OF36: 0 | OG36: =OG25 -> 0 | OH36: 0 | OI36: 0 | OJ36: 0 | OK36: 0 | OL36: 0 | OM36: 0 | ON36: 0 | OO36: 0 | OP36: 0 | OQ36: 0 | OR36: 0 | OS36: 0 | OT36: 0 | OU36: 0 | OV36: 0 | OW36: 0 | OX36: 0 | OY36: 0 | OZ36: 0 | PA36: 0 | PB36: 0 | PC36: 0 | PD36: 0 | PE36: 0 | PF36: 0 | PG36: 0 | PH36: 0 | PI36: 0 | PJ36: 0 | PK36: 0 | PL36: 0 | PM36: 0 | PN36: 0 | PO36: 0 | PP36: 0 | PQ36: 0 | PR36: 0 | PS36: 0 | PT36: 0 | PU36: 0 | PV36: 0 | PW36: 0 | PX36: 0 | PY36: 0 | PZ36: 0 | QA36: 0 | QB36: 0 | QC36: 0 | QD36: 0 | QE36: 0 | QF36: 0 | QG36: 0 | QH36: 0 | QI36: 0 | QJ36: 0 | QK36: 0 | QL36: 0 | QM36: 0 | QN36: 0 | QO36: 0 | QP36: 0 | QQ36: 0 | QR36: 0 | QS36: =QS25 -> 0 | QT36: 0 | QU36: 0 | QV36: 0 | QW36: 0 | QX36: 0 | QY36: 0 | QZ36: 0 | RA36: 0 | RB36: 0 | RC36: 0 | RD36: 0 | RE36: 0 | RF36: 0 | RG36: 0 | RH36: 0 | RI36: 0 | RJ36: 0 | RK36: 0 | RL36: 0 | RM36: 0 | RN36: 0 | RO36: 0 | RP36: 0 | RQ36: 0 | RR36: 0 | RS36: 0 | RT36: 0 | RU36: 0 | RV36: 0 | RW36: 0 | RX36: 0 | RY36: 0 | RZ36: 0 | SA36: 0 | SB36: 0 | SC36: 0 | SD36: 0 | SE36: 0 | SF36: 0 | SG36: 0 | SH36: 0 | SI36: 0 | SJ36: 0 | SK36: 0 | SL36: 0 | SM36: 0 | SN36: 0 | SO36: 0 | SP36: 0 | SQ36: 0 | SR36: 0 | SS36: 0 | ST36: 0 | SU36: 0 | SV36: 0 | SW36: 0 | SX36: 0 | SY36: 0 | SZ36: 0 | TA36: 0 | TB36: 0 | TC36: 0 | TD36: 0 | TE36: =TE25 -> 0 | TF36: 0 | TG36: 0 | TH36: 0 | TI36: 0 | TJ36: 0 | TK36: 0 | TL36: 0 | TM36: 0 | TN36: 0 | TO36: 0 | TP36: 0 | TQ36: 0 | TR36: 0 | TS36: 0 | TT36: 0 | TU36: 0 | TV36: 0 | TW36: 0 | TX36: 0 | TY36: 0 | TZ36: 0 | UA36: 0 | UB36: 0 | UC36: 0 | UD36: 0 | UE36: 0 | UF36: 0 | UG36: 0 | UH36: 0 | UI36: 0 | UJ36: 0 | UK36: 0 | UL36: 0 | UM36: 0 | UN36: 0 | UO36: 0 | UP36: 0 | UQ36: 0 | UR36: 0 | US36: 0 | UT36: 0 | UU36: 0 | UV36: 0 | UW36: 0 | UX36: 0 | UY36: 0 | UZ36: 0 | VA36: 0 | VB36: 0 | VC36: 0 | VD36: 0 | VE36: 0 | VF36: 0 | VG36: 0 | VH36: 0 | VI36: 0 | VJ36: 0 | VK36: 0 | VL36: 0 | VM36: 0 | VN36: 0 | VO36: 0 | VP36: 0 | VQ36: =VQ25 -> 0 | VR36: 0 | VS36: 0 | VT36: 0 | VU36: 0 | VV36: 0 | VW36: 0 | VX36: 0 | VY36: 0 | VZ36: 0 | WA36: 0 | WB36: 0 | WC36: 0 | WD36: 0 | WE36: 0 | WF36: 0 | WG36: 0 | WH36: 0 | WI36: 0 | WJ36: 0 | WK36: 0 | WL36: 0 | WM36: 0 | WN36: 0 | WO36: 0 | WP36: 0 | WQ36: 0 | WR36: 0 | WS36: 0 | WT36: 0 | WU36: 0 | WV36: 0 | WW36: 0 | WX36: 0 | WY36: 0 | WZ36: 0 | XA36: 0 | XB36: 0 | XC36: 0 | XD36: 0 | XE36: 0 | XF36: 0 | XG36: 0 | XH36: 0 | XI36: 0 | XJ36: 0 | XK36: 0 | XL36: 0 | XM36: 0 | XN36: 0 | XO36: 0 | XP36: 0 | XQ36: 0 | XR36: 0 | XS36: 0 | XT36: 0 | XU36: 0 | XV36: 0 | XW36: 0 | XX36: 0 | XY36: 0 | XZ36: 0 | YA36: 0 | YB36: 0 | YC36: =YC25 -> 0 | YD36: 0 | YE36: 0 | YF36: 0 | YG36: 0 | YH36: 0 | YI36: 0 | YJ36: 0 | YK36: 0 | YL36: 0 | YM36: 0 | YN36: 0 | YO36: 0 | YP36: 0 | YQ36: 0 | YR36: 0 | YS36: 0 | YT36: 0 | YU36: 0 | YV36: 0 | YW36: 0 | YX36: 0 | YY36: 0 | YZ36: 0 | ZA36: 0 | ZB36: 0 | ZC36: 0 | ZD36: 0 | ZE36: 0 | ZF36: 0 | ZG36: 0 | ZH36: 0 | ZI36: 0 | ZJ36: 0 | ZK36: 0 | ZL36: 0 | ZM36: 0 | ZN36: 0 | ZO36: 0 | ZP36: 0 | ZQ36: 0 | ZR36: 0 | ZS36: 0 | ZT36: 0 | ZU36: 0 | ZV36: 0 | ZW36: 0 | ZX36: 0 | ZY36: 0 | ZZ36: 0 | AAA36: 0 | AAB36: 0 | AAC36: 0 | AAD36: 0 | AAE36: 0 | AAF36: 0 | AAG36: 0 | AAH36: 0 | AAI36: 0 | AAJ36: 0 | AAK36: 0 | AAL36: 0 | AAM36: 0 | AAN36: 0 | AAO36: =AAO25 -> 0 | AAP36: 0 | AAQ36: 0 | AAR36: 0 | AAS36: 0 | AAT36: 0 | AAU36: 0 | AAV36: 0 | AAW36: 0 | AAX36: 0 | AAY36: 0 | AAZ36: 0 | ABA36: 0 | ABB36: 0 | ABC36: 0 | ABD36: 0 | ABE36: 0 | ABF36: 0 | ABG36: 0 | ABH36: 0 | ABI36: 0 | ABJ36: 0 | ABK36: 0 | ABL36: 0 | ABM36: 0 | ABN36: 0 | ABO36: 0 | ABP36: 0 | ABQ36: 0 | ABR36: 0 | ABS36: 0 | ABT36: 0 | ABU36: 0 | ABV36: 0 | ABW36: 0 | ABX36: 0 | ABY36: 0 | ABZ36: 0 | ACA36: 0 | ACB36: 0 | ACC36: 0 | ACD36: 0 | ACE36: 0 | ACF36: 0 | ACG36: 0 | ACH36: 0 | ACI36: 0 | ACJ36: 0 | ACK36: 0 | ACL36: 0 | ACM36: 0 | ACN36: 0 | ACO36: 0 | ACP36: 0 | ACQ36: 0 | ACR36: 0 | ACS36: 0 | ACT36: 0 | ACU36: 0 | ACV36: 0 | ACW36: 0 | ACX36: 0 | ACY36: 0 | ACZ36: 0 | ADA36: =ADA25 -> 0 | ADB36: 0 | ADC36: 0 | ADD36: 0 | ADE36: 0 | ADF36: 0 | ADG36: 0 | ADH36: 0 | ADI36: 0 | ADJ36: 0 | ADK36: 0 | ADL36: 0 | ADM36: 0 | ADN36: 0 | ADO36: 0 | ADP36: 0 | ADQ36: 0 | ADR36: 0 | ADS36: 0 | ADT36: 0 | ADU36: 0 | ADV36: 0 | ADW36: 0 | ADX36: 0 | ADY36: 0 | ADZ36: 0 | AEA36: 0 | AEB36: 0 | AEC36: 0 | AED36: 0 | AEE36: 0
D37: EBITDA Inflated | G37: Euro | J37: =SUM(L37:XFD37) -> 0
C40: Capital Expenditures
D41: Construction Period | G41: Period | L41: =K41+L6 -> 0 | M41: 0 | N41: 0 | O41: 0 | P41: 0 | Q41: 0 | R41: 0 | S41: 0 | T41: 0 | U41: 0 | V41: 0 | W41: 0 | X41: 0 | Y41: 0 | Z41: 0 | AA41: 0 | AB41: 0 | AC41: 0 | AD41: 0 | AE41: 0 | AF41: 0 | AG41: 0 | AH41: 0 | AI41: 0 | AJ41: 0 | AK41: 0 | AL41: 0 | AM41: 0 | AN41: 0 | AO41: 0 | AP41: 0 | AQ41: 0 | AR41: 0 | AS41: 0 | AT41: 0 | AU41: 0 | AV41: 0 | AW41: 0 | AX41: 0 | AY41: 0 | AZ41: 0 | BA41: 0 | BB41: 0 | BC41: 0 | BD41: 0 | BE41: 0 | BF41: 0 | BG41: 0 | BH41: 0 | BI41: 0 | BJ41: 0 | BK41: 0 | BL41: 0 | BM41: 0 | BN41: 0 | BO41: 0 | BP41: 0 | BQ41: 0 | BR41: 0 | BS41: 0 | BT41: 0 | BU41: 0 | BV41: 0 | BW41: 0 | BX41: =BW41+BX6 -> 0 | BY41: 0 | BZ41: 0 | CA41: 0 | CB41: 0 | CC41: 0 | CD41: 0 | CE41: 0 | CF41: 0 | CG41: 0 | CH41: 0 | CI41: 0 | CJ41: 0 | CK41: 0 | CL41: 0 | CM41: 0 | CN41: 0 | CO41: 0 | CP41: 0 | CQ41: 0 | CR41: 0 | CS41: 0 | CT41: 0 | CU41: 0 | CV41: 0 | CW41: 0 | CX41: 0 | CY41: 0 | CZ41: 0 | DA41: 0 | DB41: 0 | DC41: 0 | DD41: 0 | DE41: 0 | DF41: 0 | DG41: 0 | DH41: 0 | DI41: 0 | DJ41: 0 | DK41: 0 | DL41: 0 | DM41: 0 | DN41: 0 | DO41: 0 | DP41: 0 | DQ41: 0 | DR41: 0 | DS41: 0 | DT41: 0 | DU41: 0 | DV41: 0 | DW41: 0 | DX41: 0 | DY41: 0 | DZ41: 0 | EA41: 0 | EB41: 0 | EC41: 0 | ED41: 0 | EE41: 0 | EF41: 0 | EG41: 0 | EH41: 0 | EI41: 0 | EJ41: =EI41+EJ6 -> 0 | EK41: 0 | EL41: 0 | EM41: 0 | EN41: 0 | EO41: 0 | EP41: 0 | EQ41: 0 | ER41: 0 | ES41: 0 | ET41: 0 | EU41: 0 | EV41: 0 | EW41: 0 | EX41: 0 | EY41: 0 | EZ41: 0 | FA41: 0 | FB41: 0 | FC41: 0 | FD41: 0 | FE41: 0 | FF41: 0 | FG41: 0 | FH41: 0 | FI41: 0 | FJ41: 0 | FK41: 0 | FL41: 0 | FM41: 0 | FN41: 0 | FO41: 0 | FP41: 0 | FQ41: 0 | FR41: 0 | FS41: 0 | FT41: 0 | FU41: 0 | FV41: 0 | FW41: 0 | FX41: 0 | FY41: 0 | FZ41: 0 | GA41: 0 | GB41: 0 | GC41: 0 | GD41: 0 | GE41: 0 | GF41: 0 | GG41: 0 | GH41: 0 | GI41: 0 | GJ41: 0 | GK41: 0 | GL41: 0 | GM41: 0 | GN41: 0 | GO41: 0 | GP41: 0 | GQ41: 0 | GR41: 0 | GS41: 0 | GT41: 0 | GU41: 0 | GV41: =GU41+GV6 -> 0 | GW41: 0 | GX41: 0 | GY41: 0 | GZ41: 0 | HA41: 0 | HB41: 0 | HC41: 0 | HD41: 0 | HE41: 0 | HF41: 0 | HG41: 0 | HH41: 0 | HI41: 0 | HJ41: 0 | HK41: 0 | HL41: 0 | HM41: 0 | HN41: 0 | HO41: 0 | HP41: 0 | HQ41: 0 | HR41: 0 | HS41: 0 | HT41: 0 | HU41: 0 | HV41: 0 | HW41: 0 | HX41: 0 | HY41: 0 | HZ41: 0 | IA41: 0 | IB41: 0 | IC41: 0 | ID41: 0 | IE41: 0 | IF41: 0 | IG41: 0 | IH41: 0 | II41: 0 | IJ41: 0 | IK41: 0 | IL41: 0 | IM41: 0 | IN41: 0 | IO41: 0 | IP41: 0 | IQ41: 0 | IR41: 0 | IS41: 0 | IT41: 0 | IU41: 0 | IV41: 0 | IW41: 0 | IX41: 0 | IY41: 0 | IZ41: 0 | JA41: 0 | JB41: 0 | JC41: 0 | JD41: 0 | JE41: 0 | JF41: 0 | JG41: 0 | JH41: =JG41+JH6 -> 0 | JI41: 0 | JJ41: 0 | JK41: 0 | JL41: 0 | JM41: 0 | JN41: 0 | JO41: 0 | JP41: 0 | JQ41: 0 | JR41: 0 | JS41: 0 | JT41: 0 | JU41: 0 | JV41: 0 | JW41: 0 | JX41: 0 | JY41: 0 | JZ41: 0 | KA41: 0 | KB41: 0 | KC41: 0 | KD41: 0 | KE41: 0 | KF41: 0 | KG41: 0 | KH41: 0 | KI41: 0 | KJ41: 0 | KK41: 0 | KL41: 0 | KM41: 0 | KN41: 0 | KO41: 0 | KP41: 0 | KQ41: 0 | KR41: 0 | KS41: 0 | KT41: 0 | KU41: 0 | KV41: 0 | KW41: 0 | KX41: 0 | KY41: 0 | KZ41: 0 | LA41: 0 | LB41: 0 | LC41: 0 | LD41: 0 | LE41: 0 | LF41: 0 | LG41: 0 | LH41: 0 | LI41: 0 | LJ41: 0 | LK41: 0 | LL41: 0 | LM41: 0 | LN41: 0 | LO41: 0 | LP41: 0 | LQ41: 0 | LR41: 0 | LS41: 0 | LT41: =LS41+LT6 -> 0 | LU41: 0 | LV41: 0 | LW41: 0 | LX41: 0 | LY41: 0 | LZ41: 0 | MA41: 0 | MB41: 0 | MC41: 0 | MD41: 0 | ME41: 0 | MF41: 0 | MG41: 0 | MH41: 0 | MI41: 0 | MJ41: 0 | MK41: 0 | ML41: 0 | MM41: 0 | MN41: 0 | MO41: 0 | MP41: 0 | MQ41: 0 | MR41: 0 | MS41: 0 | MT41: 0 | MU41: 0 | MV41: 0 | MW41: 0 | MX41: 0 | MY41: 0 | MZ41: 0 | NA41: 0 | NB41: 0 | NC41: 0 | ND41: 0 | NE41: 0 | NF41: 0 | NG41: 0 | NH41: 0 | NI41: 0 | NJ41: 0 | NK41: 0 | NL41: 0 | NM41: 0 | NN41: 0 | NO41: 0 | NP41: 0 | NQ41: 0 | NR41: 0 | NS41: 0 | NT41: 0 | NU41: 0 | NV41: 0 | NW41: 0 | NX41: 0 | NY41: 0 | NZ41: 0 | OA41: 0 | OB41: 0 | OC41: 0 | OD41: 0 | OE41: 0 | OF41: =OE41+OF6 -> 0 | OG41: 0 | OH41: 0 | OI41: 0 | OJ41: 0 | OK41: 0 | OL41: 0 | OM41: 0 | ON41: 0 | OO41: 0 | OP41: 0 | OQ41: 0 | OR41: 0 | OS41: 0 | OT41: 0 | OU41: 0 | OV41: 0 | OW41: 0 | OX41: 0 | OY41: 0 | OZ41: 0 | PA41: 0 | PB41: 0 | PC41: 0 | PD41: 0 | PE41: 0 | PF41: 0 | PG41: 0 | PH41: 0 | PI41: 0 | PJ41: 0 | PK41: 0 | PL41: 0 | PM41: 0 | PN41: 0 | PO41: 0 | PP41: 0 | PQ41: 0 | PR41: 0 | PS41: 0 | PT41: 0 | PU41: 0 | PV41: 0 | PW41: 0 | PX41: 0 | PY41: 0 | PZ41: 0 | QA41: 0 | QB41: 0 | QC41: 0 | QD41: 0 | QE41: 0 | QF41: 0 | QG41: 0 | QH41: 0 | QI41: 0 | QJ41: 0 | QK41: 0 | QL41: 0 | QM41: 0 | QN41: 0 | QO41: 0 | QP41: 0 | QQ41: 0 | QR41: =QQ41+QR6 -> 0 | QS41: 0 | QT41: 0 | QU41: 0 | QV41: 0 | QW41: 0 | QX41: 0 | QY41: 0 | QZ41: 0 | RA41: 0 | RB41: 0 | RC41: 0 | RD41: 0 | RE41: 0 | RF41: 0 | RG41: 0 | RH41: 0 | RI41: 0 | RJ41: 0 | RK41: 0 | RL41: 0 | RM41: 0 | RN41: 0 | RO41: 0 | RP41: 0 | RQ41: 0 | RR41: 0 | RS41: 0 | RT41: 0 | RU41: 0 | RV41: 0 | RW41: 0 | RX41: 0 | RY41: 0 | RZ41: 0 | SA41: 0 | SB41: 0 | SC41: 0 | SD41: 0 | SE41: 0 | SF41: 0 | SG41: 0 | SH41: 0 | SI41: 0 | SJ41: 0 | SK41: 0 | SL41: 0 | SM41: 0 | SN41: 0 | SO41: 0 | SP41: 0 | SQ41: 0 | SR41: =SQ41+SR6 -> 0 | SS41: =SR41+SS6 -> 0 | ST41: =SS41+ST6 -> 0 | SU41: =ST41+SU6 -> 0 | SV41: =SU41+SV6 -> 0 | SW41: =SV41+SW6 -> 0 | SX41: =SW41+SX6 -> 0 | SY41: =SX41+SY6 -> 0 | SZ41: =SY41+SZ6 -> 0 | TA41: =SZ41+TA6 -> 0 | TB41: =TA41+TB6 -> 0 | TC41: =TB41+TC6 -> 0 | TD41: =TC41+TD6 -> 0 | TE41: =TD41+TE6 -> 0 | TF41: =TE41+TF6 -> 0 | TG41: =TF41+TG6 -> 0 | TH41: =TG41+TH6 -> 0 | TI41: =TH41+TI6 -> 0 | TJ41: =TI41+TJ6 -> 0 | TK41: =TJ41+TK6 -> 0 | TL41: =TK41+TL6 -> 0 | TM41: =TL41+TM6 -> 0 | TN41: =TM41+TN6 -> 0 | TO41: =TN41+TO6 -> 0 | TP41: =TO41+TP6 -> 0 | TQ41: =TP41+TQ6 -> 0 | TR41: =TQ41+TR6 -> 0 | TS41: =TR41+TS6 -> 0 | TT41: =TS41+TT6 -> 0 | TU41: =TT41+TU6 -> 0 | TV41: =TU41+TV6 -> 0 | TW41: =TV41+TW6 -> 0 | TX41: =TW41+TX6 -> 0 | TY41: =TX41+TY6 -> 0 | TZ41: =TY41+TZ6 -> 0 | UA41: =TZ41+UA6 -> 0 | UB41: =UA41+UB6 -> 0 | UC41: =UB41+UC6 -> 0 | UD41: =UC41+UD6 -> 0 | UE41: =UD41+UE6 -> 0 | UF41: =UE41+UF6 -> 0 | UG41: =UF41+UG6 -> 0 | UH41: =UG41+UH6 -> 0 | UI41: =UH41+UI6 -> 0 | UJ41: =UI41+UJ6 -> 0 | UK41: =UJ41+UK6 -> 0 | UL41: =UK41+UL6 -> 0 | UM41: =UL41+UM6 -> 0 | UN41: =UM41+UN6 -> 0 | UO41: =UN41+UO6 -> 0 | UP41: =UO41+UP6 -> 0 | UQ41: =UP41+UQ6 -> 0 | UR41: =UQ41+UR6 -> 0 | US41: =UR41+US6 -> 0 | UT41: =US41+UT6 -> 0 | UU41: =UT41+UU6 -> 0 | UV41: =UU41+UV6 -> 0 | UW41: =UV41+UW6 -> 0 | UX41: =UW41+UX6 -> 0 | UY41: =UX41+UY6 -> 0 | UZ41: =UY41+UZ6 -> 0 | VA41: =UZ41+VA6 -> 0 | VB41: =VA41+VB6 -> 0 | VC41: =VB41+VC6 -> 0 | VD41: =VC41+VD6 -> 0 | VE41: =VD41+VE6 -> 0 | VF41: =VE41+VF6 -> 0 | VG41: =VF41+VG6 -> 0 | VH41: =VG41+VH6 -> 0 | VI41: =VH41+VI6 -> 0 | VJ41: =VI41+VJ6 -> 0 | VK41: =VJ41+VK6 -> 0 | VL41: =VK41+VL6 -> 0 | VM41: =VL41+VM6 -> 0 | VN41: =VM41+VN6 -> 0 | VO41: =VN41+VO6 -> 0 | VP41: =VO41+VP6 -> 0 | VQ41: =VP41+VQ6 -> 0 | VR41: =VQ41+VR6 -> 0 | VS41: =VR41+VS6 -> 0 | VT41: =VS41+VT6 -> 0 | VU41: =VT41+VU6 -> 0 | VV41: =VU41+VV6 -> 0 | VW41: =VV41+VW6 -> 0 | VX41: =VW41+VX6 -> 0 | VY41: =VX41+VY6 -> 0 | VZ41: =VY41+VZ6 -> 0 | WA41: =VZ41+WA6 -> 0 | WB41: =WA41+WB6 -> 0 | WC41: =WB41+WC6 -> 0 | WD41: =WC41+WD6 -> 0 | WE41: =WD41+WE6 -> 0 | WF41: =WE41+WF6 -> 0 | WG41: =WF41+WG6 -> 0 | WH41: =WG41+WH6 -> 0 | WI41: =WH41+WI6 -> 0 | WJ41: =WI41+WJ6 -> 0 | WK41: =WJ41+WK6 -> 0 | WL41: =WK41+WL6 -> 0 | WM41: =WL41+WM6 -> 0 | WN41: =WM41+WN6 -> 0 | WO41: =WN41+WO6 -> 0 | WP41: =WO41+WP6 -> 0 | WQ41: =WP41+WQ6 -> 0 | WR41: =WQ41+WR6 -> 0 | WS41: =WR41+WS6 -> 0 | WT41: =WS41+WT6 -> 0 | WU41: =WT41+WU6 -> 0 | WV41: =WU41+WV6 -> 0 | WW41: =WV41+WW6 -> 0 | WX41: =WW41+WX6 -> 0 | WY41: =WX41+WY6 -> 0 | WZ41: =WY41+WZ6 -> 0 | XA41: =WZ41+XA6 -> 0 | XB41: =XA41+XB6 -> 0 | XC41: =XB41+XC6 -> 0 | XD41: =XC41+XD6 -> 0 | XE41: =XD41+XE6 -> 0 | XF41: =XE41+XF6 -> 0 | XG41: =XF41+XG6 -> 0 | XH41: =XG41+XH6 -> 0 | XI41: =XH41+XI6 -> 0 | XJ41: =XI41+XJ6 -> 0 | XK41: =XJ41+XK6 -> 0 | XL41: =XK41+XL6 -> 0 | XM41: =XL41+XM6 -> 0 | XN41: =XM41+XN6 -> 0 | XO41: =XN41+XO6 -> 0 | XP41: =XO41+XP6 -> 0 | XQ41: =XP41+XQ6 -> 0 | XR41: =XQ41+XR6 -> 0 | XS41: =XR41+XS6 -> 0 | XT41: =XS41+XT6 -> 0 | XU41: =XT41+XU6 -> 0 | XV41: =XU41+XV6 -> 0 | XW41: =XV41+XW6 -> 0 | XX41: =XW41+XX6 -> 0 | XY41: =XX41+XY6 -> 0 | XZ41: =XY41+XZ6 -> 0 | YA41: =XZ41+YA6 -> 0 | YB41: =YA41+YB6 -> 0 | YC41: =YB41+YC6 -> 0 | YD41: =YC41+YD6 -> 0 | YE41: =YD41+YE6 -> 0 | YF41: =YE41+YF6 -> 0 | YG41: =YF41+YG6 -> 0 | YH41: =YG41+YH6 -> 0 | YI41: =YH41+YI6 -> 0 | YJ41: =YI41+YJ6 -> 0 | YK41: =YJ41+YK6 -> 0 | YL41: =YK41+YL6 -> 0 | YM41: =YL41+YM6 -> 0 | YN41: =YM41+YN6 -> 0 | YO41: =YN41+YO6 -> 0 | YP41: =YO41+YP6 -> 0 | YQ41: =YP41+YQ6 -> 0 | YR41: =YQ41+YR6 -> 0 | YS41: =YR41+YS6 -> 0 | YT41: =YS41+YT6 -> 0 | YU41: =YT41+YU6 -> 0 | YV41: =YU41+YV6 -> 0 | YW41: =YV41+YW6 -> 0 | YX41: =YW41+YX6 -> 0 | YY41: =YX41+YY6 -> 0 | YZ41: =YY41+YZ6 -> 0 | ZA41: =YZ41+ZA6 -> 0 | ZB41: =ZA41+ZB6 -> 0 | ZC41: =ZB41+ZC6 -> 0 | ZD41: =ZC41+ZD6 -> 0 | ZE41: =ZD41+ZE6 -> 0 | ZF41: =ZE41+ZF6 -> 0 | ZG41: =ZF41+ZG6 -> 0 | ZH41: =ZG41+ZH6 -> 0 | ZI41: =ZH41+ZI6 -> 0 | ZJ41: =ZI41+ZJ6 -> 0 | ZK41: =ZJ41+ZK6 -> 0 | ZL41: =ZK41+ZL6 -> 0 | ZM41: =ZL41+ZM6 -> 0 | ZN41: =ZM41+ZN6 -> 0 | ZO41: =ZN41+ZO6 -> 0 | ZP41: =ZO41+ZP6 -> 0 | ZQ41: =ZP41+ZQ6 -> 0 | ZR41: =ZQ41+ZR6 -> 0 | ZS41: =ZR41+ZS6 -> 0 | ZT41: =ZS41+ZT6 -> 0 | ZU41: =ZT41+ZU6 -> 0 | ZV41: =ZU41+ZV6 -> 0 | ZW41: =ZV41+ZW6 -> 0 | ZX41: =ZW41+ZX6 -> 0 | ZY41: =ZX41+ZY6 -> 0 | ZZ41: =ZY41+ZZ6 -> 0 | AAA41: =ZZ41+AAA6 -> 0 | AAB41: =AAA41+AAB6 -> 0 | AAC41: =AAB41+AAC6 -> 0 | AAD41: =AAC41+AAD6 -> 0 | AAE41: =AAD41+AAE6 -> 0 | AAF41: =AAE41+AAF6 -> 0 | AAG41: =AAF41+AAG6 -> 0 | AAH41: =AAG41+AAH6 -> 0 | AAI41: =AAH41+AAI6 -> 0 | AAJ41: =AAI41+AAJ6 -> 0 | AAK41: =AAJ41+AAK6 -> 0 | AAL41: =AAK41+AAL6 -> 0 | AAM41: =AAL41+AAM6 -> 0 | AAN41: =AAM41+AAN6 -> 0 | AAO41: =AAN41+AAO6 -> 0 | AAP41: =AAO41+AAP6 -> 0 | AAQ41: =AAP41+AAQ6 -> 0 | AAR41: =AAQ41+AAR6 -> 0 | AAS41: =AAR41+AAS6 -> 0 | AAT41: =AAS41+AAT6 -> 0 | AAU41: =AAT41+AAU6 -> 0 | AAV41: =AAU41+AAV6 -> 0 | AAW41: =AAV41+AAW6 -> 0 | AAX41: =AAW41+AAX6 -> 0 | AAY41: =AAX41+AAY6 -> 0 | AAZ41: =AAY41+AAZ6 -> 0 | ABA41: =AAZ41+ABA6 -> 0 | ABB41: =ABA41+ABB6 -> 0 | ABC41: =ABB41+ABC6 -> 0 | ABD41: =ABC41+ABD6 -> 0 | ABE41: =ABD41+ABE6 -> 0 | ABF41: =ABE41+ABF6 -> 0 | ABG41: =ABF41+ABG6 -> 0 | ABH41: =ABG41+ABH6 -> 0 | ABI41: =ABH41+ABI6 -> 0 | ABJ41: =ABI41+ABJ6 -> 0 | ABK41: =ABJ41+ABK6 -> 0 | ABL41: =ABK41+ABL6 -> 0 | ABM41: =ABL41+ABM6 -> 0 | ABN41: =ABM41+ABN6 -> 0 | ABO41: =ABN41+ABO6 -> 0 | ABP41: =ABO41+ABP6 -> 0 | ABQ41: =ABP41+ABQ6 -> 0 | ABR41: =ABQ41+ABR6 -> 0 | ABS41: =ABR41+ABS6 -> 0 | ABT41: =ABS41+ABT6 -> 0 | ABU41: =ABT41+ABU6 -> 0 | ABV41: =ABU41+ABV6 -> 0 | ABW41: =ABV41+ABW6 -> 0 | ABX41: =ABW41+ABX6 -> 0 | ABY41: =ABX41+ABY6 -> 0 | ABZ41: =ABY41+ABZ6 -> 0 | ACA41: =ABZ41+ACA6 -> 0 | ACB41: =ACA41+ACB6 -> 0 | ACC41: =ACB41+ACC6 -> 0 | ACD41: =ACC41+ACD6 -> 0 | ACE41: =ACD41+ACE6 -> 0 | ACF41: =ACE41+ACF6 -> 0 | ACG41: =ACF41+ACG6 -> 0 | ACH41: =ACG41+ACH6 -> 0 | ACI41: =ACH41+ACI6 -> 0 | ACJ41: =ACI41+ACJ6 -> 0 | ACK41: =ACJ41+ACK6 -> 0 | ACL41: =ACK41+ACL6 -> 0 | ACM41: =ACL41+ACM6 -> 0 | ACN41: =ACM41+ACN6 -> 0 | ACO41: =ACN41+ACO6 -> 0 | ACP41: =ACO41+ACP6 -> 0 | ACQ41: =ACP41+ACQ6 -> 0 | ACR41: =ACQ41+ACR6 -> 0 | ACS41: =ACR41+ACS6 -> 0 | ACT41: =ACS41+ACT6 -> 0 | ACU41: =ACT41+ACU6 -> 0 | ACV41: =ACU41+ACV6 -> 0 | ACW41: =ACV41+ACW6 -> 0 | ACX41: =ACW41+ACX6 -> 0 | ACY41: =ACX41+ACY6 -> 0 | ACZ41: =ACY41+ACZ6 -> 0 | ADA41: =ACZ41+ADA6 -> 0 | ADB41: =ADA41+ADB6 -> 0 | ADC41: =ADB41+ADC6 -> 0 | ADD41: =ADC41+ADD6 -> 0 | ADE41: =ADD41+ADE6 -> 0 | ADF41: =ADE41+ADF6 -> 0 | ADG41: =ADF41+ADG6 -> 0 | ADH41: =ADG41+ADH6 -> 0 | ADI41: =ADH41+ADI6 -> 0 | ADJ41: =ADI41+ADJ6 -> 0 | ADK41: =ADJ41+ADK6 -> 0 | ADL41: =ADK41+ADL6 -> 0 | ADM41: =ADL41+ADM6 -> 0 | ADN41: =ADM41+ADN6 -> 0 | ADO41: =ADN41+ADO6 -> 0 | ADP41: =ADO41+ADP6 -> 0 | ADQ41: =ADP41+ADQ6 -> 0 | ADR41: =ADQ41+ADR6 -> 0 | ADS41: =ADR41+ADS6 -> 0 | ADT41: =ADS41+ADT6 -> 0 | ADU41: =ADT41+ADU6 -> 0 | ADV41: =ADU41+ADV6 -> 0 | ADW41: =ADV41+ADW6 -> 0 | ADX41: =ADW41+ADX6 -> 0 | ADY41: =ADX41+ADY6 -> 0 | ADZ41: =ADY41+ADZ6 -> 0 | AEA41: =ADZ41+AEA6 -> 0 | AEB41: =AEA41+AEB6 -> 0 | AEC41: =AEB41+AEC6 -> 0 | AED41: =AEC41+AED6 -> 0 | AEE41: =AED41+AEE6 -> 0
D42: Total Cost | E42: ='InputC - Operations'!E29 -> 1800 | G42: Euro | L42: =$E$42 -> 1800 | M42: =$E$42 -> 1800 | N42: 1800 | O42: 1800 | P42: 1800 | Q42: 1800 | R42: 1800 | S42: 1800 | T42: 1800 | U42: 1800 | V42: 1800 | W42: 1800 | X42: 1800 | Y42: 1800 | Z42: 1800 | AA42: 1800 | AB42: 1800 | AC42: 1800 | AD42: 1800 | AE42: 1800 | AF42: 1800 | AG42: 1800 | AH42: 1800 | AI42: 1800 | AJ42: 1800 | AK42: 1800 | AL42: 1800 | AM42: 1800 | AN42: 1800 | AO42: 1800 | AP42: 1800 | AQ42: 1800 | AR42: 1800 | AS42: 1800 | AT42: 1800 | AU42: 1800 | AV42: 1800 | AW42: 1800 | AX42: 1800 | AY42: 1800 | AZ42: 1800 | BA42: 1800 | BB42: 1800 | BC42: 1800 | BD42: 1800 | BE42: 1800 | BF42: 1800 | BG42: 1800 | BH42: 1800 | BI42: 1800 | BJ42: 1800 | BK42: 1800 | BL42: 1800 | BM42: 1800 | BN42: 1800 | BO42: 1800 | BP42: 1800 | BQ42: 1800 | BR42: 1800 | BS42: 1800 | BT42: 1800 | BU42: 1800 | BV42: 1800 | BW42: 1800 | BX42: 1800 | BY42: =$E$42 -> 1800 | BZ42: 1800 | CA42: 1800 | CB42: 1800 | CC42: 1800 | CD42: 1800 | CE42: 1800 | CF42: 1800 | CG42: 1800 | CH42: 1800 | CI42: 1800 | CJ42: 1800 | CK42: 1800 | CL42: 1800 | CM42: 1800 | CN42: 1800 | CO42: 1800 | CP42: 1800 | CQ42: 1800 | CR42: 1800 | CS42: 1800 | CT42: 1800 | CU42: 1800 | CV42: 1800 | CW42: 1800 | CX42: 1800 | CY42: 1800 | CZ42: 1800 | DA42: 1800 | DB42: 1800 | DC42: 1800 | DD42: 1800 | DE42: 1800 | DF42: 1800 | DG42: 1800 | DH42: 1800 | DI42: 1800 | DJ42: 1800 | DK42: 1800 | DL42: 1800 | DM42: 1800 | DN42: 1800 | DO42: 1800 | DP42: 1800 | DQ42: 1800 | DR42: 1800 | DS42: 1800 | DT42: 1800 | DU42: 1800 | DV42: 1800 | DW42: 1800 | DX42: 1800 | DY42: 1800 | DZ42: 1800 | EA42: 1800 | EB42: 1800 | EC42: 1800 | ED42: 1800 | EE42: 1800 | EF42: 1800 | EG42: 1800 | EH42: 1800 | EI42: 1800 | EJ42: 1800 | EK42: =$E$42 -> 1800 | EL42: 1800 | EM42: 1800 | EN42: 1800 | EO42: 1800 | EP42: 1800 | EQ42: 1800 | ER42: 1800 | ES42: 1800 | ET42: 1800 | EU42: 1800 | EV42: 1800 | EW42: 1800 | EX42: 1800 | EY42: 1800 | EZ42: 1800 | FA42: 1800 | FB42: 1800 | FC42: 1800 | FD42: 1800 | FE42: 1800 | FF42: 1800 | FG42: 1800 | FH42: 1800 | FI42: 1800 | FJ42: 1800 | FK42: 1800 | FL42: 1800 | FM42: 1800 | FN42: 1800 | FO42: 1800 | FP42: 1800 | FQ42: 1800 | FR42: 1800 | FS42: 1800 | FT42: 1800 | FU42: 1800 | FV42: 1800 | FW42: 1800 | FX42: 1800 | FY42: 1800 | FZ42: 1800 | GA42: 1800 | GB42: 1800 | GC42: 1800 | GD42: 1800 | GE42: 1800 | GF42: 1800 | GG42: 1800 | GH42: 1800 | GI42: 1800 | GJ42: 1800 | GK42: 1800 | GL42: 1800 | GM42: 1800 | GN42: 1800 | GO42: 1800 | GP42: 1800 | GQ42: 1800 | GR42: 1800 | GS42: 1800 | GT42: 1800 | GU42: 1800 | GV42: 1800 | GW42: =$E$42 -> 1800 | GX42: 1800 | GY42: 1800 | GZ42: 1800 | HA42: 1800 | HB42: 1800 | HC42: 1800 | HD42: 1800 | HE42: 1800 | HF42: 1800 | HG42: 1800 | HH42: 1800 | HI42: 1800 | HJ42: 1800 | HK42: 1800 | HL42: 1800 | HM42: 1800 | HN42: 1800 | HO42: 1800 | HP42: 1800 | HQ42: 1800 | HR42: 1800 | HS42: 1800 | HT42: 1800 | HU42: 1800 | HV42: 1800 | HW42: 1800 | HX42: 1800 | HY42: 1800 | HZ42: 1800 | IA42: 1800 | IB42: 1800 | IC42: 1800 | ID42: 1800 | IE42: 1800 | IF42: 1800 | IG42: 1800 | IH42: 1800 | II42: 1800 | IJ42: 1800 | IK42: 1800 | IL42: 1800 | IM42: 1800 | IN42: 1800 | IO42: 1800 | IP42: 1800 | IQ42: 1800 | IR42: 1800 | IS42: 1800 | IT42: 1800 | IU42: 1800 | IV42: 1800 | IW42: 1800 | IX42: 1800 | IY42: 1800 | IZ42: 1800 | JA42: 1800 | JB42: 1800 | JC42: 1800 | JD42: 1800 | JE42: 1800 | JF42: 1800 | JG42: 1800 | JH42: 1800 | JI42: =$E$42 -> 1800 | JJ42: 1800 | JK42: 1800 | JL42: 1800 | JM42: 1800 | JN42: 1800 | JO42: 1800 | JP42: 1800 | JQ42: 1800 | JR42: 1800 | JS42: 1800 | JT42: 1800 | JU42: 1800 | JV42: 1800 | JW42: 1800 | JX42: 1800 | JY42: 1800 | JZ42: 1800 | KA42: 1800 | KB42: 1800 | KC42: 1800 | KD42: 1800 | KE42: 1800 | KF42: 1800 | KG42: 1800 | KH42: 1800 | KI42: 1800 | KJ42: 1800 | KK42: 1800 | KL42: 1800 | KM42: 1800 | KN42: 1800 | KO42: 1800 | KP42: 1800 | KQ42: 1800 | KR42: 1800 | KS42: 1800 | KT42: 1800 | KU42: 1800 | KV42: 1800 | KW42: 1800 | KX42: 1800 | KY42: 1800 | KZ42: 1800 | LA42: 1800 | LB42: 1800 | LC42: 1800 | LD42: 1800 | LE42: 1800 | LF42: 1800 | LG42: 1800 | LH42: 1800 | LI42: 1800 | LJ42: 1800 | LK42: 1800 | LL42: 1800 | LM42: 1800 | LN42: 1800 | LO42: 1800 | LP42: 1800 | LQ42: 1800 | LR42: 1800 | LS42: 1800 | LT42: 1800 | LU42: =$E$42 -> 1800 | LV42: 1800 | LW42: 1800 | LX42: 1800 | LY42: 1800 | LZ42: 1800 | MA42: 1800 | MB42: 1800 | MC42: 1800 | MD42: 1800 | ME42: 1800 | MF42: 1800 | MG42: 1800 | MH42: 1800 | MI42: 1800 | MJ42: 1800 | MK42: 1800 | ML42: 1800 | MM42: 1800 | MN42: 1800 | MO42: 1800 | MP42: 1800 | MQ42: 1800 | MR42: 1800 | MS42: 1800 | MT42: 1800 | MU42: 1800 | MV42: 1800 | MW42: 1800 | MX42: 1800 | MY42: 1800 | MZ42: 1800 | NA42: 1800 | NB42: 1800 | NC42: 1800 | ND42: 1800 | NE42: 1800 | NF42: 1800 | NG42: 1800 | NH42: 1800 | NI42: 1800 | NJ42: 1800 | NK42: 1800 | NL42: 1800 | NM42: 1800 | NN42: 1800 | NO42: 1800 | NP42: 1800 | NQ42: 1800 | NR42: 1800 | NS42: 1800 | NT42: 1800 | NU42: 1800 | NV42: 1800 | NW42: 1800 | NX42: 1800 | NY42: 1800 | NZ42: 1800 | OA42: 1800 | OB42: 1800 | OC42: 1800 | OD42: 1800 | OE42: 1800 | OF42: 1800 | OG42: =$E$42 -> 1800 | OH42: 1800 | OI42: 1800 | OJ42: 1800 | OK42: 1800 | OL42: 1800 | OM42: 1800 | ON42: 1800 | OO42: 1800 | OP42: 1800 | OQ42: 1800 | OR42: 1800 | OS42: 1800 | OT42: 1800 | OU42: 1800 | OV42: 1800 | OW42: 1800 | OX42: 1800 | OY42: 1800 | OZ42: 1800 | PA42: 1800 | PB42: 1800 | PC42: 1800 | PD42: 1800 | PE42: 1800 | PF42: 1800 | PG42: 1800 | PH42: 1800 | PI42: 1800 | PJ42: 1800 | PK42: 1800 | PL42: 1800 | PM42: 1800 | PN42: 1800 | PO42: 1800 | PP42: 1800 | PQ42: 1800 | PR42: 1800 | PS42: 1800 | PT42: 1800 | PU42: 1800 | PV42: 1800 | PW42: 1800 | PX42: 1800 | PY42: 1800 | PZ42: 1800 | QA42: 1800 | QB42: 1800 | QC42: 1800 | QD42: 1800 | QE42: 1800 | QF42: 1800 | QG42: 1800 | QH42: 1800 | QI42: 1800 | QJ42: 1800 | QK42: 1800 | QL42: 1800 | QM42: 1800 | QN42: 1800 | QO42: 1800 | QP42: 1800 | QQ42: 1800 | QR42: 1800 | QS42: =$E$42 -> 1800 | QT42: 1800 | QU42: 1800 | QV42: 1800 | QW42: 1800 | QX42: 1800 | QY42: 1800 | QZ42: 1800 | RA42: 1800 | RB42: 1800 | RC42: 1800 | RD42: 1800 | RE42: 1800 | RF42: 1800 | RG42: 1800 | RH42: 1800 | RI42: 1800 | RJ42: 1800 | RK42: 1800 | RL42: 1800 | RM42: 1800 | RN42: 1800 | RO42: 1800 | RP42: 1800 | RQ42: 1800 | RR42: 1800 | RS42: 1800 | RT42: 1800 | RU42: 1800 | RV42: 1800 | RW42: 1800 | RX42: 1800 | RY42: 1800 | RZ42: 1800 | SA42: 1800 | SB42: 1800 | SC42: 1800 | SD42: 1800 | SE42: 1800 | SF42: 1800 | SG42: 1800 | SH42: 1800 | SI42: 1800 | SJ42: 1800 | SK42: 1800 | SL42: 1800 | SM42: 1800 | SN42: 1800 | SO42: 1800 | SP42: 1800 | SQ42: 1800 | SR42: 1800 | SS42: 1800 | ST42: 1800 | SU42: 1800 | SV42: 1800 | SW42: 1800 | SX42: 1800 | SY42: 1800 | SZ42: 1800 | TA42: 1800 | TB42: 1800 | TC42: 1800 | TD42: 1800 | TE42: =$E$42 -> 1800 | TF42: 1800 | TG42: 1800 | TH42: 1800 | TI42: 1800 | TJ42: 1800 | TK42: 1800 | TL42: 1800 | TM42: 1800 | TN42: 1800 | TO42: 1800 | TP42: 1800 | TQ42: 1800 | TR42: 1800 | TS42: 1800 | TT42: 1800 | TU42: 1800 | TV42: 1800 | TW42: 1800 | TX42: 1800 | TY42: 1800 | TZ42: 1800 | UA42: 1800 | UB42: 1800 | UC42: 1800 | UD42: 1800 | UE42: 1800 | UF42: 1800 | UG42: 1800 | UH42: 1800 | UI42: 1800 | UJ42: 1800 | UK42: 1800 | UL42: 1800 | UM42: 1800 | UN42: 1800 | UO42: 1800 | UP42: 1800 | UQ42: 1800 | UR42: 1800 | US42: 1800 | UT42: 1800 | UU42: 1800 | UV42: 1800 | UW42: 1800 | UX42: 1800 | UY42: 1800 | UZ42: 1800 | VA42: 1800 | VB42: 1800 | VC42: 1800 | VD42: 1800 | VE42: 1800 | VF42: 1800 | VG42: 1800 | VH42: 1800 | VI42: 1800 | VJ42: 1800 | VK42: 1800 | VL42: 1800 | VM42: 1800 | VN42: 1800 | VO42: 1800 | VP42: 1800 | VQ42: =$E$42 -> 1800 | VR42: 1800 | VS42: 1800 | VT42: 1800 | VU42: 1800 | VV42: 1800 | VW42: 1800 | VX42: 1800 | VY42: 1800 | VZ42: 1800 | WA42: 1800 | WB42: 1800 | WC42: 1800 | WD42: 1800 | WE42: 1800 | WF42: 1800 | WG42: 1800 | WH42: 1800 | WI42: 1800 | WJ42: 1800 | WK42: 1800 | WL42: 1800 | WM42: 1800 | WN42: 1800 | WO42: 1800 | WP42: 1800 | WQ42: 1800 | WR42: 1800 | WS42: 1800 | WT42: 1800 | WU42: 1800 | WV42: 1800 | WW42: 1800 | WX42: 1800 | WY42: 1800 | WZ42: 1800 | XA42: 1800 | XB42: 1800 | XC42: 1800 | XD42: 1800 | XE42: 1800 | XF42: 1800 | XG42: 1800 | XH42: 1800 | XI42: 1800 | XJ42: 1800 | XK42: 1800 | XL42: 1800 | XM42: 1800 | XN42: 1800 | XO42: 1800 | XP42: 1800 | XQ42: 1800 | XR42: 1800 | XS42: 1800 | XT42: 1800 | XU42: 1800 | XV42: 1800 | XW42: 1800 | XX42: 1800 | XY42: 1800 | XZ42: 1800 | YA42: 1800 | YB42: 1800 | YC42: =$E$42 -> 1800 | YD42: 1800 | YE42: 1800 | YF42: 1800 | YG42: 1800 | YH42: 1800 | YI42: 1800 | YJ42: 1800 | YK42: 1800 | YL42: 1800 | YM42: 1800 | YN42: 1800 | YO42: 1800 | YP42: 1800 | YQ42: 1800 | YR42: 1800 | YS42: 1800 | YT42: 1800 | YU42: 1800 | YV42: 1800 | YW42: 1800 | YX42: 1800 | YY42: 1800 | YZ42: 1800 | ZA42: 1800 | ZB42: 1800 | ZC42: 1800 | ZD42: 1800 | ZE42: 1800 | ZF42: 1800 | ZG42: 1800 | ZH42: 1800 | ZI42: 1800 | ZJ42: 1800 | ZK42: 1800 | ZL42: 1800 | ZM42: 1800 | ZN42: 1800 | ZO42: 1800 | ZP42: 1800 | ZQ42: 1800 | ZR42: 1800 | ZS42: 1800 | ZT42: 1800 | ZU42: 1800 | ZV42: 1800 | ZW42: 1800 | ZX42: 1800 | ZY42: 1800 | ZZ42: 1800 | AAA42: 1800 | AAB42: 1800 | AAC42: 1800 | AAD42: 1800 | AAE42: 1800 | AAF42: 1800 | AAG42: 1800 | AAH42: 1800 | AAI42: 1800 | AAJ42: 1800 | AAK42: 1800 | AAL42: 1800 | AAM42: 1800 | AAN42: 1800 | AAO42: =$E$42 -> 1800 | AAP42: 1800 | AAQ42: 1800 | AAR42: 1800 | AAS42: 1800 | AAT42: 1800 | AAU42: 1800 | AAV42: 1800 | AAW42: 1800 | AAX42: 1800 | AAY42: 1800 | AAZ42: 1800 | ABA42: 1800 | ABB42: 1800 | ABC42: 1800 | ABD42: 1800 | ABE42: 1800 | ABF42: 1800 | ABG42: 1800 | ABH42: 1800 | ABI42: 1800 | ABJ42: 1800 | ABK42: 1800 | ABL42: 1800 | ABM42: 1800 | ABN42: 1800 | ABO42: 1800 | ABP42: 1800 | ABQ42: 1800 | ABR42: 1800 | ABS42: 1800 | ABT42: 1800 | ABU42: 1800 | ABV42: 1800 | ABW42: 1800 | ABX42: 1800 | ABY42: 1800 | ABZ42: 1800 | ACA42: 1800 | ACB42: 1800 | ACC42: 1800 | ACD42: 1800 | ACE42: 1800 | ACF42: 1800 | ACG42: 1800 | ACH42: 1800 | ACI42: 1800 | ACJ42: 1800 | ACK42: 1800 | ACL42: 1800 | ACM42: 1800 | ACN42: 1800 | ACO42: 1800 | ACP42: 1800 | ACQ42: 1800 | ACR42: 1800 | ACS42: 1800 | ACT42: 1800 | ACU42: 1800 | ACV42: 1800 | ACW42: 1800 | ACX42: 1800 | ACY42: 1800 | ACZ42: 1800 | ADA42: =$E$42 -> 1800 | ADB42: 1800 | ADC42: 1800 | ADD42: 1800 | ADE42: 1800 | ADF42: 1800 | ADG42: 1800 | ADH42: 1800 | ADI42: 1800 | ADJ42: 1800 | ADK42: 1800 | ADL42: 1800 | ADM42: 1800 | ADN42: 1800 | ADO42: 1800 | ADP42: 1800 | ADQ42: 1800 | ADR42: 1800 | ADS42: 1800 | ADT42: 1800 | ADU42: 1800 | ADV42: 1800 | ADW42: 1800 | ADX42: 1800 | ADY42: 1800 | ADZ42: 1800 | AEA42: 1800 | AEB42: 1800 | AEC42: 1800 | AED42: 1800 | AEE42: 1800
D43: S-curve | G43: % | H43: =J43=1 -> FALSE | J43: =SUM(L43:XFD43) -> 0
D44: Capital Expenditures | G44: Euro

Sheet Annual Operating
E2: Period | K2: 1 | L2: 2 | M2: 3 | N2: 4 | O2: 5 | P2: 6 | Q2: 7 | R2: 8 | S2: 9 | T2: 10 | U2: 11 | V2: 12 | W2: 13 | X2: 14 | Y2: 15 | Z2: 16 | AA2: 17 | AB2: 18 | AC2: 19 | AD2: 20 | AE2: 21 | AF2: 22 | AG2: 23 | AH2: 24 | AI2: 25 | AJ2: 26 | AK2: 27 | AL2: 28 | AM2: 29 | AN2: 30 | AO2: 31 | AP2: 32 | AQ2: 33 | AR2: 34 | AS2: 35 | AT2: 36 | AU2: 37 | AV2: 38 | AW2: 39 | AX2: 40
F3: Flow | G3: Balance | J3: Total | K3: =YEAR('InputC - Operations'!F7) -> 2023 | L3: =K3+1 -> 2024 | M3: =L3+1 -> 2025 | N3: 2026 | O3: 2027 | P3: 2028 | Q3: 2029 | R3: 2030 | S3: 2031 | T3: 2032 | U3: 2033 | V3: 2034 | W3: 2035 | X3: 2036 | Y3: 2037 | Z3: 2038 | AA3: 2039 | AB3: 2040 | AC3: 2041 | AD3: 2042 | AE3: 2043 | AF3: 2044 | AG3: 2045 | AH3: 2046 | AI3: 2047 | AJ3: 2048 | AK3: 2049 | AL3: 2050 | AM3: 2051 | AN3: 2052 | AO3: 2053 | AP3: 2054 | AQ3: 2055 | AR3: 2056 | AS3: 2057 | AT3: 2058 | AU3: 2059 | AV3: 2060 | AW3: 2061 | AX3: 2062 | AY3: =AX3+1 -> 2063
E5: EBITDA Real | I5: Euro
E6: EBITDA Nominal | I6: Euro
E8: Capital Expenditure | I8: Euro
E10: Free Cash Flow | K10: =K6-K8 -> 0 | L10: =L6-L8 -> 0 | M10: 0 | N10: 0 | O10: 0 | P10: 0 | Q10: 0 | R10: 0 | S10: 0 | T10: 0 | U10: 0 | V10: 0 | W10: 0 | X10: 0 | Y10: 0 | Z10: 0 | AA10: 0 | AB10: 0 | AC10: 0 | AD10: 0 | AE10: 0 | AF10: 0 | AG10: 0 | AH10: 0 | AI10: 0 | AJ10: 0 | AK10: 0 | AL10: 0 | AM10: 0 | AN10: 0 | AO10: 0 | AP10: 0 | AQ10: 0 | AR10: 0 | AS10: 0 | AT10: 0 | AU10: 0 | AV10: 0 | AW10: 0 | AX10: 0 | AY10: 0
E11: Project IRR

Sheet Monthly Debt Schedule
E2: Constant | F2: Constant | G2: Unit | H2: Test | J2: Sum/Total
D3: Period Number (600) | G3: Number | L3: 1 | M3: 2 | N3: 3 | O3: 4 | P3: 5 | Q3: 6 | R3: 7 | S3: 8 | T3: 9 | U3: 10 | V3: 11 | W3: 12 | X3: 13 | Y3: 14 | Z3: 15 | AA3: 16 | AB3: 17 | AC3: 18 | AD3: 19 | AE3: 20 | AF3: 21 | AG3: 22 | AH3: 23 | AI3: 24 | AJ3: 25 | AK3: 26 | AL3: 27 | AM3: 28 | AN3: 29 | AO3: 30 | AP3: 31 | AQ3: 32 | AR3: 33 | AS3: 34 | AT3: 35 | AU3: 36 | AV3: 37 | AW3: 38 | AX3: 39 | AY3: 40 | AZ3: 41 | BA3: 42 | BB3: 43 | BC3: 44 | BD3: 45 | BE3: 46 | BF3: 47 | BG3: 48 | BH3: 49 | BI3: 50 | BJ3: 51 | BK3: 52 | BL3: 53 | BM3: 54 | BN3: 55 | BO3: 56 | BP3: 57 | BQ3: 58 | BR3: 59 | BS3: 60 | BT3: 61 | BU3: 62 | BV3: 63 | BW3: 64 | BX3: 65 | BY3: 66 | BZ3: 67 | CA3: 68 | CB3: 69 | CC3: 70 | CD3: 71 | CE3: 72 | CF3: 73 | CG3: 74 | CH3: 75 | CI3: 76 | CJ3: 77 | CK3: 78 | CL3: 79 | CM3: 80 | CN3: 81 | CO3: 82 | CP3: 83 | CQ3: 84 | CR3: 85 | CS3: 86 | CT3: 87 | CU3: 88 | CV3: 89 | CW3: 90 | CX3: 91 | CY3: 92 | CZ3: 93 | DA3: 94 | DB3: 95 | DC3: 96 | DD3: 97 | DE3: 98 | DF3: 99 | DG3: 100 | DH3: 101 | DI3: 102 | DJ3: 103 | DK3: 104 | DL3: 105 | DM3: 106 | DN3: 107 | DO3: 108 | DP3: 109 | DQ3: 110 | DR3: 111 | DS3: 112 | DT3: 113 | DU3: 114 | DV3: 115 | DW3: 116 | DX3: 117 | DY3: 118 | DZ3: 119 | EA3: 120 | EB3: 121 | EC3: 122 | ED3: 123 | EE3: 124 | EF3: 125 | EG3: 126 | EH3: 127 | EI3: 128 | EJ3: 129 | EK3: 130 | EL3: 131 | EM3: 132 | EN3: 133 | EO3: 134 | EP3: 135 | EQ3: 136 | ER3: 137 | ES3: 138 | ET3: 139 | EU3: 140 | EV3: 141 | EW3: 142 | EX3: 143 | EY3: 144 | EZ3: 145 | FA3: 146 | FB3: 147 | FC3: 148 | FD3: 149 | FE3: 150 | FF3: 151 | FG3: 152 | FH3: 153 | FI3: 154 | FJ3: 155 | FK3: 156 | FL3: 157 | FM3: 158 | FN3: 159 | FO3: 160 | FP3: 161 | FQ3: 162 | FR3: 163 | FS3: 164 | FT3: 165 | FU3: 166 | FV3: 167 | FW3: 168 | FX3: 169 | FY3: 170 | FZ3: 171 | GA3: 172 | GB3: 173 | GC3: 174 | GD3: 175 | GE3: 176 | GF3: 177 | GG3: 178 | GH3: 179 | GI3: 180 | GJ3: 181 | GK3: 182 | GL3: 183 | GM3: 184 | GN3: 185 | GO3: 186 | GP3: 187 | GQ3: 188 | GR3: 189 | GS3: 190 | GT3: 191 | GU3: 192 | GV3: 193 | GW3: 194 | GX3: 195 | GY3: 196 | GZ3: 197 | HA3: 198 | HB3: 199 | HC3: 200 | HD3: 201 | HE3: 202 | HF3: 203 | HG3: 204 | HH3: 205 | HI3: 206 | HJ3: 207 | HK3: 208 | HL3: 209 | HM3: 210 | HN3: 211 | HO3: 212 | HP3: 213 | HQ3: 214 | HR3: 215 | HS3: 216 | HT3: 217 | HU3: 218 | HV3: 219 | HW3: 220 | HX3: 221 | HY3: 222 | HZ3: 223 | IA3: 224 | IB3: 225 | IC3: 226 | ID3: 227 | IE3: 228 | IF3: 229 | IG3: 230 | IH3: 231 | II3: 232 | IJ3: 233 | IK3: 234 | IL3: 235 | IM3: 236 | IN3: 237 | IO3: 238 | IP3: 239 | IQ3: 240 | IR3: 241 | IS3: 242 | IT3: 243 | IU3: 244 | IV3: 245 | IW3: 246 | IX3: 247 | IY3: 248 | IZ3: 249 | JA3: 250 | JB3: 251 | JC3: 252 | JD3: 253 | JE3: 254 | JF3: 255 | JG3: 256 | JH3: 257 | JI3: 258 | JJ3: 259 | JK3: 260 | JL3: 261 | JM3: 262 | JN3: 263 | JO3: 264 | JP3: 265 | JQ3: 266 | JR3: 267 | JS3: 268 | JT3: 269 | JU3: 270 | JV3: 271 | JW3: 272 | JX3: 273 | JY3: 274 | JZ3: 275 | KA3: 276 | KB3: 277 | KC3: 278 | KD3: 279 | KE3: 280 | KF3: 281 | KG3: 282 | KH3: 283 | KI3: 284 | KJ3: 285 | KK3: 286 | KL3: 287 | KM3: 288 | KN3: 289 | KO3: 290 | KP3: 291 | KQ3: 292 | KR3: 293 | KS3: 294 | KT3: 295 | KU3: 296 | KV3: 297 | KW3: 298 | KX3: 299 | KY3: 300 | KZ3: 301 | LA3: 302 | LB3: 303 | LC3: 304 | LD3: 305 | LE3: 306 | LF3: 307 | LG3: 308 | LH3: 309 | LI3: 310 | LJ3: 311 | LK3: 312 | LL3: 313 | LM3: 314 | LN3: 315 | LO3: 316 | LP3: 317 | LQ3: 318 | LR3: 319 | LS3: 320 | LT3: 321 | LU3: 322 | LV3: 323 | LW3: 324 | LX3: 325 | LY3: 326 | LZ3: 327 | MA3: 328 | MB3: 329 | MC3: 330 | MD3: 331 | ME3: 332 | MF3: 333 | MG3: 334 | MH3: 335 | MI3: 336 | MJ3: 337 | MK3: 338 | ML3: 339 | MM3: 340 | MN3: 341 | MO3: 342 | MP3: 343 | MQ3: 344 | MR3: 345 | MS3: 346 | MT3: 347 | MU3: 348 | MV3: 349 | MW3: 350 | MX3: 351 | MY3: 352 | MZ3: 353 | NA3: 354 | NB3: 355 | NC3: 356 | ND3: 357 | NE3: 358 | NF3: 359 | NG3: 360 | NH3: 361 | NI3: 362 | NJ3: 363 | NK3: 364 | NL3: 365 | NM3: 366 | NN3: 367 | NO3: 368 | NP3: 369 | NQ3: 370 | NR3: 371 | NS3: 372 | NT3: 373 | NU3: 374 | NV3: 375 | NW3: 376 | NX3: 377 | NY3: 378 | NZ3: 379 | OA3: 380 | OB3: 381 | OC3: 382 | OD3: 383 | OE3: 384 | OF3: 385 | OG3: 386 | OH3: 387 | OI3: 388 | OJ3: 389 | OK3: 390 | OL3: 391 | OM3: 392 | ON3: 393 | OO3: 394 | OP3: 395 | OQ3: 396 | OR3: 397 | OS3: 398 | OT3: 399 | OU3: 400 | OV3: 401 | OW3: 402 | OX3: 403 | OY3: 404 | OZ3: 405 | PA3: 406 | PB3: 407 | PC3: 408 | PD3: 409 | PE3: 410 | PF3: 411 | PG3: 412 | PH3: 413 | PI3: 414 | PJ3: 415 | PK3: 416 | PL3: 417 | PM3: 418 | PN3: 419 | PO3: 420 | PP3: 421 | PQ3: 422 | PR3: 423 | PS3: 424 | PT3: 425 | PU3: 426 | PV3: 427 | PW3: 428 | PX3: 429 | PY3: 430 | PZ3: 431 | QA3: 432 | QB3: 433 | QC3: 434 | QD3: 435 | QE3: 436 | QF3: 437 | QG3: 438 | QH3: 439 | QI3: 440 | QJ3: 441 | QK3: 442 | QL3: 443 | QM3: 444 | QN3: 445 | QO3: 446 | QP3: 447 | QQ3: 448 | QR3: 449 | QS3: 450 | QT3: 451 | QU3: 452 | QV3: 453 | QW3: 454 | QX3: 455 | QY3: 456 | QZ3: 457 | RA3: 458 | RB3: 459 | RC3: 460 | RD3: 461 | RE3: 462 | RF3: 463 | RG3: 464 | RH3: 465 | RI3: 466 | RJ3: 467 | RK3: 468 | RL3: 469 | RM3: 470 | RN3: 471 | RO3: 472 | RP3: 473 | RQ3: 474 | RR3: 475 | RS3: 476 | RT3: 477 | RU3: 478 | RV3: 479 | RW3: 480 | RX3: 481 | RY3: 482 | RZ3: 483 | SA3: 484 | SB3: 485 | SC3: 486 | SD3: 487 | SE3: 488 | SF3: 489 | SG3: 490 | SH3: 491 | SI3: 492 | SJ3: 493 | SK3: 494 | SL3: 495 | SM3: 496 | SN3: 497 | SO3: 498 | SP3: 499 | SQ3: 500 | SR3: 501 | SS3: 502 | ST3: 503 | SU3: 504 | SV3: 505 | SW3: 506 | SX3: 507 | SY3: 508 | SZ3: 509 | TA3: 510 | TB3: 511 | TC3: 512 | TD3: 513 | TE3: 514 | TF3: 515 | TG3: 516 | TH3: 517 | TI3: 518 | TJ3: 519 | TK3: 520 | TL3: 521 | TM3: 522 | TN3: 523 | TO3: 524 | TP3: 525 | TQ3: 526 | TR3: 527 | TS3: 528 | TT3: 529 | TU3: 530 | TV3: 531 | TW3: 532 | TX3: 533 | TY3: 534 | TZ3: 535 | UA3: 536 | UB3: 537 | UC3: 538 | UD3: 539 | UE3: 540 | UF3: 541 | UG3: 542 | UH3: 543 | UI3: 544 | UJ3: 545 | UK3: 546 | UL3: 547 | UM3: 548 | UN3: 549 | UO3: 550 | UP3: 551 | UQ3: 552 | UR3: 553 | US3: 554 | UT3: 555 | UU3: 556 | UV3: 557 | UW3: 558 | UX3: 559 | UY3: 560 | UZ3: 561 | VA3: 562 | VB3: 563 | VC3: 564 | VD3: 565 | VE3: 566 | VF3: 567 | VG3: 568 | VH3: 569 | VI3: 570 | VJ3: 571 | VK3: 572 | VL3: 573 | VM3: 574 | VN3: 575 | VO3: 576 | VP3: 577 | VQ3: 578 | VR3: 579 | VS3: 580 | VT3: 581 | VU3: 582 | VV3: 583 | VW3: 584 | VX3: 585 | VY3: 586 | VZ3: 587 | WA3: 588 | WB3: 589 | WC3: 590 | WD3: 591 | WE3: 592 | WF3: 593 | WG3: 594 | WH3: 595 | WI3: 596 | WJ3: 597 | WK3: 598 | WL3: 599 | WM3: 600 | WN3: 601 | WO3: 602 | WP3: 603 | WQ3: 604 | WR3: 605 | WS3: 606 | WT3: 607 | WU3: 608 | WV3: 609 | WW3: 610 | WX3: 611 | WY3: 612 | WZ3: 613 | XA3: 614 | XB3: 615 | XC3: 616 | XD3: 617 | XE3: 618 | XF3: 619 | XG3: 620 | XH3: 621 | XI3: 622 | XJ3: 623 | XK3: 624 | XL3: 625 | XM3: 626 | XN3: 627 | XO3: 628 | XP3: 629 | XQ3: 630 | XR3: 631 | XS3: 632 | XT3: 633 | XU3: 634 | XV3: 635 | XW3: 636 | XX3: 637 | XY3: 638 | XZ3: 639 | YA3: 640 | YB3: 641 | YC3: 642 | YD3: 643 | YE3: 644 | YF3: 645 | YG3: 646 | YH3: 647 | YI3: 648 | YJ3: 649 | YK3: 650 | YL3: 651 | YM3: 652 | YN3: 653 | YO3: 654 | YP3: 655 | YQ3: 656 | YR3: 657 | YS3: 658 | YT3: 659 | YU3: 660 | YV3: 661 | YW3: 662 | YX3: 663 | YY3: 664 | YZ3: 665 | ZA3: 666 | ZB3: 667 | ZC3: 668 | ZD3: 669 | ZE3: 670 | ZF3: 671 | ZG3: 672 | ZH3: 673 | ZI3: 674 | ZJ3: 675 | ZK3: 676 | ZL3: 677 | ZM3: 678 | ZN3: 679 | ZO3: 680 | ZP3: 681 | ZQ3: 682 | ZR3: 683 | ZS3: 684 | ZT3: 685 | ZU3: 686 | ZV3: 687 | ZW3: 688 | ZX3: 689 | ZY3: 690 | ZZ3: 691 | AAA3: 692 | AAB3: 693 | AAC3: 694 | AAD3: 695 | AAE3: 696 | AAF3: 697 | AAG3: 698 | AAH3: 699 | AAI3: 700 | AAJ3: 701 | AAK3: 702 | AAL3: 703 | AAM3: 704 | AAN3: 705 | AAO3: 706 | AAP3: 707 | AAQ3: 708 | AAR3: 709 | AAS3: 710 | AAT3: 711 | AAU3: 712 | AAV3: 713 | AAW3: 714 | AAX3: 715 | AAY3: 716 | AAZ3: 717 | ABA3: 718 | ABB3: 719 | ABC3: 720 | ABD3: 721 | ABE3: 722 | ABF3: 723 | ABG3: 724 | ABH3: 725 | ABI3: 726 | ABJ3: 727 | ABK3: 728 | ABL3: 729 | ABM3: 730 | ABN3: 731 | ABO3: 732 | ABP3: 733 | ABQ3: 734 | ABR3: 735 | ABS3: 736 | ABT3: 737 | ABU3: 738 | ABV3: 739 | ABW3: 740 | ABX3: 741 | ABY3: 742 | ABZ3: 743 | ACA3: 744 | ACB3: 745 | ACC3: 746 | ACD3: 747 | ACE3: 748 | ACF3: 749 | ACG3: 750 | ACH3: 751 | ACI3: 752 | ACJ3: 753 | ACK3: 754 | ACL3: 755 | ACM3: 756 | ACN3: 757 | ACO3: 758 | ACP3: 759 | ACQ3: 760 | ACR3: 761 | ACS3: 762 | ACT3: 763 | ACU3: 764 | ACV3: 765 | ACW3: 766 | ACX3: 767 | ACY3: 768 | ACZ3: 769 | ADA3: 770 | ADB3: 771 | ADC3: 772 | ADD3: 773 | ADE3: 774 | ADF3: 775 | ADG3: 776 | ADH3: 777 | ADI3: 778 | ADJ3: 779 | ADK3: 780 | ADL3: 781 | ADM3: 782 | ADN3: 783 | ADO3: 784 | ADP3: 785 | ADQ3: 786 | ADR3: 787 | ADS3: 788 | ADT3: 789 | ADU3: 790 | ADV3: 791 | ADW3: 792 | ADX3: 793 | ADY3: 794 | ADZ3: 795 | AEA3: 796 | AEB3: 797 | AEC3: 798 | AED3: 799 | AEE3: 800
D4: Start of Period | E4: ='InputC - Operations'!$F$7 -> 2023-01-01 | G4: Date | L4: =K5+1 -> 2023-01-01 | M4: =L5+1 -> 2023-02-01 | N4: 2023-03-01 | O4: 2023-04-01 | P4: 2023-05-01 | Q4: 2023-06-01 | R4: 2023-07-01 | S4: 2023-08-01 | T4: 2023-09-01 | U4: 2023-10-01 | V4: 2023-11-01 | W4: 2023-12-01 | X4: 2024-01-01 | Y4: 2024-02-01 | Z4: 2024-03-01 | AA4: 2024-04-01 | AB4: 2024-05-01 | AC4: 2024-06-01 | AD4: 2024-07-01 | AE4: 2024-08-01 | AF4: 2024-09-01 | AG4: 2024-10-01 | AH4: 2024-11-01 | AI4: 2024-12-01 | AJ4: 2025-01-01 | AK4: 2025-02-01 | AL4: 2025-03-01 | AM4: 2025-04-01 | AN4: 2025-05-01 | AO4: 2025-06-01 | AP4: 2025-07-01 | AQ4: 2025-08-01 | AR4: 2025-09-01 | AS4: 2025-10-01 | AT4: 2025-11-01 | AU4: 2025-12-01 | AV4: 2026-01-01 | AW4: 2026-02-01 | AX4: 2026-03-01 | AY4: 2026-04-01 | AZ4: 2026-05-01 | BA4: 2026-06-01 | BB4: 2026-07-01 | BC4: 2026-08-01 | BD4: 2026-09-01 | BE4: 2026-10-01 | BF4: 2026-11-01 | BG4: 2026-12-01 | BH4: 2027-01-01 | BI4: 2027-02-01 | BJ4: 2027-03-01 | BK4: 2027-04-01 | BL4: 2027-05-01 | BM4: 2027-06-01 | BN4: 2027-07-01 | BO4: 2027-08-01 | BP4: 2027-09-01 | BQ4: 2027-10-01 | BR4: 2027-11-01 | BS4: 2027-12-01 | BT4: 2028-01-01 | BU4: 2028-02-01 | BV4: 2028-03-01 | BW4: 2028-04-01 | BX4: 2028-05-01 | BY4: =BX5+1 -> 2028-06-01 | BZ4: 2028-07-01 | CA4: 2028-08-01 | CB4: 2028-09-01 | CC4: 2028-10-01 | CD4: 2028-11-01 | CE4: 2028-12-01 | CF4: 2029-01-01 | CG4: 2029-02-01 | CH4: 2029-03-01 | CI4: 2029-04-01 | CJ4: 2029-05-01 | CK4: 2029-06-01 | CL4: 2029-07-01 | CM4: 2029-08-01 | CN4: 2029-09-01 | CO4: 2029-10-01 | CP4: 2029-11-01 | CQ4: 2029-12-01 | CR4: 2030-01-01 | CS4: 2030-02-01 | CT4: 2030-03-01 | CU4: 2030-04-01 | CV4: 2030-05-01 | CW4: 2030-06-01 | CX4: 2030-07-01 | CY4: 2030-08-01 | CZ4: 2030-09-01 | DA4: 2030-10-01 | DB4: 2030-11-01 | DC4: 2030-12-01 | DD4: 2031-01-01 | DE4: 2031-02-01 | DF4: 2031-03-01 | DG4: 2031-04-01 | DH4: 2031-05-01 | DI4: 2031-06-01 | DJ4: 2031-07-01 | DK4: 2031-08-01 | DL4: 2031-09-01 | DM4: 2031-10-01 | DN4: 2031-11-01 | DO4: 2031-12-01 | DP4: 2032-01-01 | DQ4: 2032-02-01 | DR4: 2032-03-01 | DS4: 2032-04-01 | DT4: 2032-05-01 | DU4: 2032-06-01 | DV4: 2032-07-01 | DW4: 2032-08-01 | DX4: 2032-09-01 | DY4: 2032-10-01 | DZ4: 2032-11-01 | EA4: 2032-12-01 | EB4: 2033-01-01 | EC4: 2033-02-01 | ED4: 2033-03-01 | EE4: 2033-04-01 | EF4: 2033-05-01 | EG4: 2033-06-01 | EH4: 2033-07-01 | EI4: 2033-08-01 | EJ4: 2033-09-01 | EK4: =EJ5+1 -> 2033-10-01 | EL4: 2033-11-01 | EM4: 2033-12-01 | EN4: 2034-01-01 | EO4: 2034-02-01 | EP4: 2034-03-01 | EQ4: 2034-04-01 | ER4: 2034-05-01 | ES4: 2034-06-01 | ET4: 2034-07-01 | EU4: 2034-08-01 | EV4: 2034-09-01 | EW4: 2034-10-01 | EX4: 2034-11-01 | EY4: 2034-12-01 | EZ4: 2035-01-01 | FA4: 2035-02-01 | FB4: 2035-03-01 | FC4: 2035-04-01 | FD4: 2035-05-01 | FE4: 2035-06-01 | FF4: 2035-07-01 | FG4: 2035-08-01 | FH4: 2035-09-01 | FI4: 2035-10-01 | FJ4: 2035-11-01 | FK4: 2035-12-01 | FL4: 2036-01-01 | FM4: 2036-02-01 | FN4: 2036-03-01 | FO4: 2036-04-01 | FP4: 2036-05-01 | FQ4: 2036-06-01 | FR4: 2036-07-01 | FS4: 2036-08-01 | FT4: 2036-09-01 | FU4: 2036-10-01 | FV4: 2036-11-01 | FW4: 2036-12-01 | FX4: 2037-01-01 | FY4: 2037-02-01 | FZ4: 2037-03-01 | GA4: 2037-04-01 | GB4: 2037-05-01 | GC4: 2037-06-01 | GD4: 2037-07-01 | GE4: 2037-08-01 | GF4: 2037-09-01 | GG4: 2037-10-01 | GH4: 2037-11-01 | GI4: 2037-12-01 | GJ4: 2038-01-01 | GK4: 2038-02-01 | GL4: 2038-03-01 | GM4: 2038-04-01 | GN4: 2038-05-01 | GO4: 2038-06-01 | GP4: 2038-07-01 | GQ4: 2038-08-01 | GR4: 2038-09-01 | GS4: 2038-10-01 | GT4: 2038-11-01 | GU4: 2038-12-01 | GV4: 2039-01-01 | GW4: =GV5+1 -> 2039-02-01 | GX4: 2039-03-01 | GY4: 2039-04-01 | GZ4: 2039-05-01 | HA4: 2039-06-01 | HB4: 2039-07-01 | HC4: 2039-08-01 | HD4: 2039-09-01 | HE4: 2039-10-01 | HF4: 2039-11-01 | HG4: 2039-12-01 | HH4: 2040-01-01 | HI4: 2040-02-01 | HJ4: 2040-03-01 | HK4: 2040-04-01 | HL4: 2040-05-01 | HM4: 2040-06-01 | HN4: 2040-07-01 | HO4: 2040-08-01 | HP4: 2040-09-01 | HQ4: 2040-10-01 | HR4: 2040-11-01 | HS4: 2040-12-01 | HT4: 2041-01-01 | HU4: 2041-02-01 | HV4: 2041-03-01 | HW4: 2041-04-01 | HX4: 2041-05-01 | HY4: 2041-06-01 | HZ4: 2041-07-01 | IA4: 2041-08-01 | IB4: 2041-09-01 | IC4: 2041-10-01 | ID4: 2041-11-01 | IE4: 2041-12-01 | IF4: 2042-01-01 | IG4: 2042-02-01 | IH4: 2042-03-01 | II4: 2042-04-01 | IJ4: 2042-05-01 | IK4: 2042-06-01 | IL4: 2042-07-01 | IM4: 2042-08-01 | IN4: 2042-09-01 | IO4: 2042-10-01 | IP4: 2042-11-01 | IQ4: 2042-12-01 | IR4: 2043-01-01 | IS4: 2043-02-01 | IT4: 2043-03-01 | IU4: 2043-04-01 | IV4: 2043-05-01 | IW4: 2043-06-01 | IX4: 2043-07-01 | IY4: 2043-08-01 | IZ4: 2043-09-01 | JA4: 2043-10-01 | JB4: 2043-11-01 | JC4: 2043-12-01 | JD4: 2044-01-01 | JE4: 2044-02-01 | JF4: 2044-03-01 | JG4: 2044-04-01 | JH4: 2044-05-01 | JI4: =JH5+1 -> 2044-06-01 | JJ4: 2044-07-01 | JK4: 2044-08-01 | JL4: 2044-09-01 | JM4: 2044-10-01 | JN4: 2044-11-01 | JO4: 2044-12-01 | JP4: 2045-01-01 | JQ4: 2045-02-01 | JR4: 2045-03-01 | JS4: 2045-04-01 | JT4: 2045-05-01 | JU4: 2045-06-01 | JV4: 2045-07-01 | JW4: 2045-08-01 | JX4: 2045-09-01 | JY4: 2045-10-01 | JZ4: 2045-11-01 | KA4: 2045-12-01 | KB4: 2046-01-01 | KC4: 2046-02-01 | KD4: 2046-03-01 | KE4: 2046-04-01 | KF4: 2046-05-01 | KG4: 2046-06-01 | KH4: 2046-07-01 | KI4: 2046-08-01 | KJ4: 2046-09-01 | KK4: 2046-10-01 | KL4: 2046-11-01 | KM4: 2046-12-01 | KN4: 2047-01-01 | KO4: 2047-02-01 | KP4: 2047-03-01 | KQ4: 2047-04-01 | KR4: 2047-05-01 | KS4: 2047-06-01 | KT4: 2047-07-01 | KU4: 2047-08-01 | KV4: 2047-09-01 | KW4: 2047-10-01 | KX4: 2047-11-01 | KY4: 2047-12-01 | KZ4: 2048-01-01 | LA4: 2048-02-01 | LB4: 2048-03-01 | LC4: 2048-04-01 | LD4: 2048-05-01 | LE4: 2048-06-01 | LF4: 2048-07-01 | LG4: 2048-08-01 | LH4: 2048-09-01 | LI4: 2048-10-01 | LJ4: 2048-11-01 | LK4: 2048-12-01 | LL4: 2049-01-01 | LM4: 2049-02-01 | LN4: 2049-03-01 | LO4: 2049-04-01 | LP4: 2049-05-01 | LQ4: 2049-06-01 | LR4: 2049-07-01 | LS4: 2049-08-01 | LT4: 2049-09-01 | LU4: =LT5+1 -> 2049-10-01 | LV4: 2049-11-01 | LW4: 2049-12-01 | LX4: 2050-01-01 | LY4: 2050-02-01 | LZ4: 2050-03-01 | MA4: 2050-04-01 | MB4: 2050-05-01 | MC4: 2050-06-01 | MD4: 2050-07-01 | ME4: 2050-08-01 | MF4: 2050-09-01 | MG4: 2050-10-01 | MH4: 2050-11-01 | MI4: 2050-12-01 | MJ4: 2051-01-01 | MK4: 2051-02-01 | ML4: 2051-03-01 | MM4: 2051-04-01 | MN4: 2051-05-01 | MO4: 2051-06-01 | MP4: 2051-07-01 | MQ4: 2051-08-01 | MR4: 2051-09-01 | MS4: 2051-10-01 | MT4: 2051-11-01 | MU4: 2051-12-01 | MV4: 2052-01-01 | MW4: 2052-02-01 | MX4: 2052-03-01 | MY4: 2052-04-01 | MZ4: 2052-05-01 | NA4: 2052-06-01 | NB4: 2052-07-01 | NC4: 2052-08-01 | ND4: 2052-09-01 | NE4: 2052-10-01 | NF4: 2052-11-01 | NG4: 2052-12-01 | NH4: 2053-01-01 | NI4: 2053-02-01 | NJ4: 2053-03-01 | NK4: 2053-04-01 | NL4: 2053-05-01 | NM4: 2053-06-01 | NN4: 2053-07-01 | NO4: 2053-08-01 | NP4: 2053-09-01 | NQ4: 2053-10-01 | NR4: 2053-11-01 | NS4: 2053-12-01 | NT4: 2054-01-01 | NU4: 2054-02-01 | NV4: 2054-03-01 | NW4: 2054-04-01 | NX4: 2054-05-01 | NY4: 2054-06-01 | NZ4: 2054-07-01 | OA4: 2054-08-01 | OB4: 2054-09-01 | OC4: 2054-10-01 | OD4: 2054-11-01 | OE4: 2054-12-01 | OF4: 2055-01-01 | OG4: =OF5+1 -> 2055-02-01 | OH4: 2055-03-01 | OI4: 2055-04-01 | OJ4: 2055-05-01 | OK4: 2055-06-01 | OL4: 2055-07-01 | OM4: 2055-08-01 | ON4: 2055-09-01 | OO4: 2055-10-01 | OP4: 2055-11-01 | OQ4: 2055-12-01 | OR4: 2056-01-01 | OS4: 2056-02-01 | OT4: 2056-03-01 | OU4: 2056-04-01 | OV4: 2056-05-01 | OW4: 2056-06-01 | OX4: 2056-07-01 | OY4: 2056-08-01 | OZ4: 2056-09-01 | PA4: 2056-10-01 | PB4: 2056-11-01 | PC4: 2056-12-01 | PD4: 2057-01-01 | PE4: 2057-02-01 | PF4: 2057-03-01 | PG4: 2057-04-01 | PH4: 2057-05-01 | PI4: 2057-06-01 | PJ4: 2057-07-01 | PK4: 2057-08-01 | PL4: 2057-09-01 | PM4: 2057-10-01 | PN4: 2057-11-01 | PO4: 2057-12-01 | PP4: 2058-01-01 | PQ4: 2058-02-01 | PR4: 2058-03-01 | PS4: 2058-04-01 | PT4: 2058-05-01 | PU4: 2058-06-01 | PV4: 2058-07-01 | PW4: 2058-08-01 | PX4: 2058-09-01 | PY4: 2058-10-01 | PZ4: 2058-11-01 | QA4: 2058-12-01 | QB4: 2059-01-01 | QC4: 2059-02-01 | QD4: 2059-03-01 | QE4: 2059-04-01 | QF4: 2059-05-01 | QG4: 2059-06-01 | QH4: 2059-07-01 | QI4: 2059-08-01 | QJ4: 2059-09-01 | QK4: 2059-10-01 | QL4: 2059-11-01 | QM4: 2059-12-01 | QN4: 2060-01-01 | QO4: 2060-02-01 | QP4: 2060-03-01 | QQ4: 2060-04-01 | QR4: 2060-05-01 | QS4: =QR5+1 -> 2060-06-01 | QT4: 2060-07-01 | QU4: 2060-08-01 | QV4: 2060-09-01 | QW4: 2060-10-01 | QX4: 2060-11-01 | QY4: 2060-12-01 | QZ4: 2061-01-01 | RA4: 2061-02-01 | RB4: 2061-03-01 | RC4: 2061-04-01 | RD4: 2061-05-01 | RE4: 2061-06-01 | RF4: 2061-07-01 | RG4: 2061-08-01 | RH4: 2061-09-01 | RI4: 2061-10-01 | RJ4: 2061-11-01 | RK4: 2061-12-01 | RL4: 2062-01-01 | RM4: 2062-02-01 | RN4: 2062-03-01 | RO4: 2062-04-01 | RP4: 2062-05-01 | RQ4: 2062-06-01 | RR4: 2062-07-01 | RS4: 2062-08-01 | RT4: 2062-09-01 | RU4: 2062-10-01 | RV4: 2062-11-01 | RW4: 2062-12-01 | RX4: 2063-01-01 | RY4: 2063-02-01 | RZ4: 2063-03-01 | SA4: 2063-04-01 | SB4: 2063-05-01 | SC4: 2063-06-01 | SD4: 2063-07-01 | SE4: 2063-08-01 | SF4: 2063-09-01 | SG4: 2063-10-01 | SH4: 2063-11-01 | SI4: 2063-12-01 | SJ4: 2064-01-01 | SK4: 2064-02-01 | SL4: 2064-03-01 | SM4: 2064-04-01 | SN4: 2064-05-01 | SO4: 2064-06-01 | SP4: 2064-07-01 | SQ4: 2064-08-01 | SR4: 2064-09-01 | SS4: 2064-10-01 | ST4: 2064-11-01 | SU4: 2064-12-01 | SV4: 2065-01-01 | SW4: 2065-02-01 | SX4: 2065-03-01 | SY4: 2065-04-01 | SZ4: 2065-05-01 | TA4: 2065-06-01 | TB4: 2065-07-01 | TC4: 2065-08-01 | TD4: 2065-09-01 | TE4: =TD5+1 -> 2065-10-01 | TF4: 2065-11-01 | TG4: 2065-12-01 | TH4: 2066-01-01 | TI4: 2066-02-01 | TJ4: 2066-03-01 | TK4: 2066-04-01 | TL4: 2066-05-01 | TM4: 2066-06-01 | TN4: 2066-07-01 | TO4: 2066-08-01 | TP4: 2066-09-01 | TQ4: 2066-10-01 | TR4: 2066-11-01 | TS4: 2066-12-01 | TT4: 2067-01-01 | TU4: 2067-02-01 | TV4: 2067-03-01 | TW4: 2067-04-01 | TX4: 2067-05-01 | TY4: 2067-06-01 | TZ4: 2067-07-01 | UA4: 2067-08-01 | UB4: 2067-09-01 | UC4: 2067-10-01 | UD4: 2067-11-01 | UE4: 2067-12-01 | UF4: 2068-01-01 | UG4: 2068-02-01 | UH4: 2068-03-01 | UI4: 2068-04-01 | UJ4: 2068-05-01 | UK4: 2068-06-01 | UL4: 2068-07-01 | UM4: 2068-08-01 | UN4: 2068-09-01 | UO4: 2068-10-01 | UP4: 2068-11-01 | UQ4: 2068-12-01 | UR4: 2069-01-01 | US4: 2069-02-01 | UT4: 2069-03-01 | UU4: 2069-04-01 | UV4: 2069-05-01 | UW4: 2069-06-01 | UX4: 2069-07-01 | UY4: 2069-08-01 | UZ4: 2069-09-01 | VA4: 2069-10-01 | VB4: 2069-11-01 | VC4: 2069-12-01 | VD4: 2070-01-01 | VE4: 2070-02-01 | VF4: 2070-03-01 | VG4: 2070-04-01 | VH4: 2070-05-01 | VI4: 2070-06-01 | VJ4: 2070-07-01 | VK4: 2070-08-01 | VL4: 2070-09-01 | VM4: 2070-10-01 | VN4: 2070-11-01 | VO4: 2070-12-01 | VP4: 2071-01-01 | VQ4: =VP5+1 -> 2071-02-01 | VR4: 2071-03-01 | VS4: 2071-04-01 | VT4: 2071-05-01 | VU4: 2071-06-01 | VV4: 2071-07-01 | VW4: 2071-08-01 | VX4: 2071-09-01 | VY4: 2071-10-01 | VZ4: 2071-11-01 | WA4: 2071-12-01 | WB4: 2072-01-01 | WC4: 2072-02-01 | WD4: 2072-03-01 | WE4: 2072-04-01 | WF4: 2072-05-01 | WG4: 2072-06-01 | WH4: 2072-07-01 | WI4: 2072-08-01 | WJ4: 2072-09-01 | WK4: 2072-10-01 | WL4: 2072-11-01 | WM4: 2072-12-01 | WN4: 2073-01-01 | WO4: 2073-02-01 | WP4: 2073-03-01 | WQ4: 2073-04-01 | WR4: 2073-05-01 | WS4: 2073-06-01 | WT4: 2073-07-01 | WU4: 2073-08-01 | WV4: 2073-09-01 | WW4: 2073-10-01 | WX4: 2073-11-01 | WY4: 2073-12-01 | WZ4: 2074-01-01 | XA4: 2074-02-01 | XB4: 2074-03-01 | XC4: 2074-04-01 | XD4: 2074-05-01 | XE4: 2074-06-01 | XF4: 2074-07-01 | XG4: 2074-08-01 | XH4: 2074-09-01 | XI4: 2074-10-01 | XJ4: 2074-11-01 | XK4: 2074-12-01 | XL4: 2075-01-01 | XM4: 2075-02-01 | XN4: 2075-03-01 | XO4: 2075-04-01 | XP4: 2075-05-01 | XQ4: 2075-06-01 | XR4: 2075-07-01 | XS4: 2075-08-01 | XT4: 2075-09-01 | XU4: 2075-10-01 | XV4: 2075-11-01 | XW4: 2075-12-01 | XX4: 2076-01-01 | XY4: 2076-02-01 | XZ4: 2076-03-01 | YA4: 2076-04-01 | YB4: 2076-05-01 | YC4: =YB5+1 -> 2076-06-01 | YD4: 2076-07-01 | YE4: 2076-08-01 | YF4: 2076-09-01 | YG4: 2076-10-01 | YH4: 2076-11-01 | YI4: 2076-12-01 | YJ4: 2077-01-01 | YK4: 2077-02-01 | YL4: 2077-03-01 | YM4: 2077-04-01 | YN4: 2077-05-01 | YO4: 2077-06-01 | YP4: 2077-07-01 | YQ4: 2077-08-01 | YR4: 2077-09-01 | YS4: 2077-10-01 | YT4: 2077-11-01 | YU4: 2077-12-01 | YV4: 2078-01-01 | YW4: 2078-02-01 | YX4: 2078-03-01 | YY4: 2078-04-01 | YZ4: 2078-05-01 | ZA4: 2078-06-01 | ZB4: 2078-07-01 | ZC4: 2078-08-01 | ZD4: 2078-09-01 | ZE4: 2078-10-01 | ZF4: 2078-11-01 | ZG4: 2078-12-01 | ZH4: 2079-01-01 | ZI4: 2079-02-01 | ZJ4: 2079-03-01 | ZK4: 2079-04-01 | ZL4: 2079-05-01 | ZM4: 2079-06-01 | ZN4: 2079-07-01 | ZO4: 2079-08-01 | ZP4: 2079-09-01 | ZQ4: 2079-10-01 | ZR4: 2079-11-01 | ZS4: 2079-12-01 | ZT4: 2080-01-01 | ZU4: 2080-02-01 | ZV4: 2080-03-01 | ZW4: 2080-04-01 | ZX4: 2080-05-01 | ZY4: 2080-06-01 | ZZ4: 2080-07-01 | AAA4: 2080-08-01 | AAB4: 2080-09-01 | AAC4: 2080-10-01 | AAD4: 2080-11-01 | AAE4: 2080-12-01 | AAF4: 2081-01-01 | AAG4: 2081-02-01 | AAH4: 2081-03-01 | AAI4: 2081-04-01 | AAJ4: 2081-05-01 | AAK4: 2081-06-01 | AAL4: 2081-07-01 | AAM4: 2081-08-01 | AAN4: 2081-09-01 | AAO4: =AAN5+1 -> 2081-10-01 | AAP4: 2081-11-01 | AAQ4: 2081-12-01 | AAR4: 2082-01-01 | AAS4: 2082-02-01 | AAT4: 2082-03-01 | AAU4: 2082-04-01 | AAV4: 2082-05-01 | AAW4: 2082-06-01 | AAX4: 2082-07-01 | AAY4: 2082-08-01 | AAZ4: 2082-09-01 | ABA4: 2082-10-01 | ABB4: 2082-11-01 | ABC4: 2082-12-01 | ABD4: 2083-01-01 | ABE4: 2083-02-01 | ABF4: 2083-03-01 | ABG4: 2083-04-01 | ABH4: 2083-05-01 | ABI4: 2083-06-01 | ABJ4: 2083-07-01 | ABK4: 2083-08-01 | ABL4: 2083-09-01 | ABM4: 2083-10-01 | ABN4: 2083-11-01 | ABO4: 2083-12-01 | ABP4: 2084-01-01 | ABQ4: 2084-02-01 | ABR4: 2084-03-01 | ABS4: 2084-04-01 | ABT4: 2084-05-01 | ABU4: 2084-06-01 | ABV4: 2084-07-01 | ABW4: 2084-08-01 | ABX4: 2084-09-01 | ABY4: 2084-10-01 | ABZ4: 2084-11-01 | ACA4: 2084-12-01 | ACB4: 2085-01-01 | ACC4: 2085-02-01 | ACD4: 2085-03-01 | ACE4: 2085-04-01 | ACF4: 2085-05-01 | ACG4: 2085-06-01 | ACH4: 2085-07-01 | ACI4: 2085-08-01 | ACJ4: 2085-09-01 | ACK4: 2085-10-01 | ACL4: 2085-11-01 | ACM4: 2085-12-01 | ACN4: 2086-01-01 | ACO4: 2086-02-01 | ACP4: 2086-03-01 | ACQ4: 2086-04-01 | ACR4: 2086-05-01 | ACS4: 2086-06-01 | ACT4: 2086-07-01 | ACU4: 2086-08-01 | ACV4: 2086-09-01 | ACW4: 2086-10-01 | ACX4: 2086-11-01 | ACY4: 2086-12-01 | ACZ4: 2087-01-01 | ADA4: =ACZ5+1 -> 2087-02-01 | ADB4: 2087-03-01 | ADC4: 2087-04-01 | ADD4: 2087-05-01 | ADE4: 2087-06-01 | ADF4: 2087-07-01 | ADG4: 2087-08-01 | ADH4: 2087-09-01 | ADI4: 2087-10-01 | ADJ4: 2087-11-01 | ADK4: 2087-12-01 | ADL4: 2088-01-01 | ADM4: 2088-02-01 | ADN4: 2088-03-01 | ADO4: 2088-04-01 | ADP4: 2088-05-01 | ADQ4: 2088-06-01 | ADR4: 2088-07-01 | ADS4: 2088-08-01 | ADT4: 2088-09-01 | ADU4: 2088-10-01 | ADV4: 2088-11-01 | ADW4: 2088-12-01 | ADX4: 2089-01-01 | ADY4: 2089-02-01 | ADZ4: 2089-03-01 | AEA4: 2089-04-01 | AEB4: 2089-05-01 | AEC4: 2089-06-01 | AED4: 2089-07-01 | AEE4: 2089-08-01
D5: End of Period | G5: Date | K5: ='InputC - Operations'!E7-1 -> 2022-12-31 | L5: =EDATE(L4,1)-1 -> 2023-01-31 | M5: =EDATE(M4,1)-1 -> 2023-02-28 | N5: 2023-03-31 | O5: 2023-04-30 | P5: 2023-05-31 | Q5: 2023-06-30 | R5: 2023-07-31 | S5: 2023-08-31 | T5: 2023-09-30 | U5: 2023-10-31 | V5: 2023-11-30 | W5: 2023-12-31 | X5: 2024-01-31 | Y5: 2024-02-29 | Z5: 2024-03-31 | AA5: 2024-04-30 | AB5: 2024-05-31 | AC5: 2024-06-30 | AD5: 2024-07-31 | AE5: 2024-08-31 | AF5: 2024-09-30 | AG5: 2024-10-31 | AH5: 2024-11-30 | AI5: 2024-12-31 | AJ5: 2025-01-31 | AK5: 2025-02-28 | AL5: 2025-03-31 | AM5: 2025-04-30 | AN5: 2025-05-31 | AO5: 2025-06-30 | AP5: 2025-07-31 | AQ5: 2025-08-31 | AR5: 2025-09-30 | AS5: 2025-10-31 | AT5: 2025-11-30 | AU5: 2025-12-31 | AV5: 2026-01-31 | AW5: 2026-02-28 | AX5: 2026-03-31 | AY5: 2026-04-30 | AZ5: 2026-05-31 | BA5: 2026-06-30 | BB5: 2026-07-31 | BC5: 2026-08-31 | BD5: 2026-09-30 | BE5: 2026-10-31 | BF5: 2026-11-30 | BG5: 2026-12-31 | BH5: 2027-01-31 | BI5: 2027-02-28 | BJ5: 2027-03-31 | BK5: 2027-04-30 | BL5: 2027-05-31 | BM5: 2027-06-30 | BN5: 2027-07-31 | BO5: 2027-08-31 | BP5: 2027-09-30 | BQ5: 2027-10-31 | BR5: 2027-11-30 | BS5: 2027-12-31 | BT5: 2028-01-31 | BU5: 2028-02-29 | BV5: 2028-03-31 | BW5: 2028-04-30 | BX5: 2028-05-31 | BY5: =EDATE(BY4,1)-1 -> 2028-06-30 | BZ5: 2028-07-31 | CA5: 2028-08-31 | CB5: 2028-09-30 | CC5: 2028-10-31 | CD5: 2028-11-30 | CE5: 2028-12-31 | CF5: 2029-01-31 | CG5: 2029-02-28 | CH5: 2029-03-31 | CI5: 2029-04-30 | CJ5: 2029-05-31 | CK5: 2029-06-30 | CL5: 2029-07-31 | CM5: 2029-08-31 | CN5: 2029-09-30 | CO5: 2029-10-31 | CP5: 2029-11-30 | CQ5: 2029-12-31 | CR5: 2030-01-31 | CS5: 2030-02-28 | CT5: 2030-03-31 | CU5: 2030-04-30 | CV5: 2030-05-31 | CW5: 2030-06-30 | CX5: 2030-07-31 | CY5: 2030-08-31 | CZ5: 2030-09-30 | DA5: 2030-10-31 | DB5: 2030-11-30 | DC5: 2030-12-31 | DD5: 2031-01-31 | DE5: 2031-02-28 | DF5: 2031-03-31 | DG5: 2031-04-30 | DH5: 2031-05-31 | DI5: 2031-06-30 | DJ5: 2031-07-31 | DK5: 2031-08-31 | DL5: 2031-09-30 | DM5: 2031-10-31 | DN5: 2031-11-30 | DO5: 2031-12-31 | DP5: 2032-01-31 | DQ5: 2032-02-29 | DR5: 2032-03-31 | DS5: 2032-04-30 | DT5: 2032-05-31 | DU5: 2032-06-30 | DV5: 2032-07-31 | DW5: 2032-08-31 | DX5: 2032-09-30 | DY5: 2032-10-31 | DZ5: 2032-11-30 | EA5: 2032-12-31 | EB5: 2033-01-31 | EC5: 2033-02-28 | ED5: 2033-03-31 | EE5: 2033-04-30 | EF5: 2033-05-31 | EG5: 2033-06-30 | EH5: 2033-07-31 | EI5: 2033-08-31 | EJ5: 2033-09-30 | EK5: =EDATE(EK4,1)-1 -> 2033-10-31 | EL5: 2033-11-30 | EM5: 2033-12-31 | EN5: 2034-01-31 | EO5: 2034-02-28 | EP5: 2034-03-31 | EQ5: 2034-04-30 | ER5: 2034-05-31 | ES5: 2034-06-30 | ET5: 2034-07-31 | EU5: 2034-08-31 | EV5: 2034-09-30 | EW5: 2034-10-31 | EX5: 2034-11-30 | EY5: 2034-12-31 | EZ5: 2035-01-31 | FA5: 2035-02-28 | FB5: 2035-03-31 | FC5: 2035-04-30 | FD5: 2035-05-31 | FE5: 2035-06-30 | FF5: 2035-07-31 | FG5: 2035-08-31 | FH5: 2035-09-30 | FI5: 2035-10-31 | FJ5: 2035-11-30 | FK5: 2035-12-31 | FL5: 2036-01-31 | FM5: 2036-02-29 | FN5: 2036-03-31 | FO5: 2036-04-30 | FP5: 2036-05-31 | FQ5: 2036-06-30 | FR5: 2036-07-31 | FS5: 2036-08-31 | FT5: 2036-09-30 | FU5: 2036-10-31 | FV5: 2036-11-30 | FW5: 2036-12-31 | FX5: 2037-01-31 | FY5: 2037-02-28 | FZ5: 2037-03-31 | GA5: 2037-04-30 | GB5: 2037-05-31 | GC5: 2037-06-30 | GD5: 2037-07-31 | GE5: 2037-08-31 | GF5: 2037-09-30 | GG5: 2037-10-31 | GH5: 2037-11-30 | GI5: 2037-12-31 | GJ5: 2038-01-31 | GK5: 2038-02-28 | GL5: 2038-03-31 | GM5: 2038-04-30 | GN5: 2038-05-31 | GO5: 2038-06-30 | GP5: 2038-07-31 | GQ5: 2038-08-31 | GR5: 2038-09-30 | GS5: 2038-10-31 | GT5: 2038-11-30 | GU5: 2038-12-31 | GV5: 2039-01-31 | GW5: =EDATE(GW4,1)-1 -> 2039-02-28 | GX5: 2039-03-31 | GY5: 2039-04-30 | GZ5: 2039-05-31 | HA5: 2039-06-30 | HB5: 2039-07-31 | HC5: 2039-08-31 | HD5: 2039-09-30 | HE5: 2039-10-31 | HF5: 2039-11-30 | HG5: 2039-12-31 | HH5: 2040-01-31 | HI5: 2040-02-29 | HJ5: 2040-03-31 | HK5: 2040-04-30 | HL5: 2040-05-31 | HM5: 2040-06-30 | HN5: 2040-07-31 | HO5: 2040-08-31 | HP5: 2040-09-30 | HQ5: 2040-10-31 | HR5: 2040-11-30 | HS5: 2040-12-31 | HT5: 2041-01-31 | HU5: 2041-02-28 | HV5: 2041-03-31 | HW5: 2041-04-30 | HX5: 2041-05-31 | HY5: 2041-06-30 | HZ5: 2041-07-31 | IA5: 2041-08-31 | IB5: 2041-09-30 | IC5: 2041-10-31 | ID5: 2041-11-30 | IE5: 2041-12-31 | IF5: 2042-01-31 | IG5: 2042-02-28 | IH5: 2042-03-31 | II5: 2042-04-30 | IJ5: 2042-05-31 | IK5: 2042-06-30 | IL5: 2042-07-31 | IM5: 2042-08-31 | IN5: 2042-09-30 | IO5: 2042-10-31 | IP5: 2042-11-30 | IQ5: 2042-12-31 | IR5: 2043-01-31 | IS5: 2043-02-28 | IT5: 2043-03-31 | IU5: 2043-04-30 | IV5: 2043-05-31 | IW5: 2043-06-30 | IX5: 2043-07-31 | IY5: 2043-08-31 | IZ5: 2043-09-30 | JA5: 2043-10-31 | JB5: 2043-11-30 | JC5: 2043-12-31 | JD5: 2044-01-31 | JE5: 2044-02-29 | JF5: 2044-03-31 | JG5: 2044-04-30 | JH5: 2044-05-31 | JI5: =EDATE(JI4,1)-1 -> 2044-06-30 | JJ5: 2044-07-31 | JK5: 2044-08-31 | JL5: 2044-09-30 | JM5: 2044-10-31 | JN5: 2044-11-30 | JO5: 2044-12-31 | JP5: 2045-01-31 | JQ5: 2045-02-28 | JR5: 2045-03-31 | JS5: 2045-04-30 | JT5: 2045-05-31 | JU5: 2045-06-30 | JV5: 2045-07-31 | JW5: 2045-08-31 | JX5: 2045-09-30 | JY5: 2045-10-31 | JZ5: 2045-11-30 | KA5: 2045-12-31 | KB5: 2046-01-31 | KC5: 2046-02-28 | KD5: 2046-03-31 | KE5: 2046-04-30 | KF5: 2046-05-31 | KG5: 2046-06-30 | KH5: 2046-07-31 | KI5: 2046-08-31 | KJ5: 2046-09-30 | KK5: 2046-10-31 | KL5: 2046-11-30 | KM5: 2046-12-31 | KN5: 2047-01-31 | KO5: 2047-02-28 | KP5: 2047-03-31 | KQ5: 2047-04-30 | KR5: 2047-05-31 | KS5: 2047-06-30 | KT5: 2047-07-31 | KU5: 2047-08-31 | KV5: 2047-09-30 | KW5: 2047-10-31 | KX5: 2047-11-30 | KY5: 2047-12-31 | KZ5: 2048-01-31 | LA5: 2048-02-29 | LB5: 2048-03-31 | LC5: 2048-04-30 | LD5: 2048-05-31 | LE5: 2048-06-30 | LF5: 2048-07-31 | LG5: 2048-08-31 | LH5: 2048-09-30 | LI5: 2048-10-31 | LJ5: 2048-11-30 | LK5: 2048-12-31 | LL5: 2049-01-31 | LM5: 2049-02-28 | LN5: 2049-03-31 | LO5: 2049-04-30 | LP5: 2049-05-31 | LQ5: 2049-06-30 | LR5: 2049-07-31 | LS5: 2049-08-31 | LT5: 2049-09-30 | LU5: =EDATE(LU4,1)-1 -> 2049-10-31 | LV5: 2049-11-30 | LW5: 2049-12-31 | LX5: 2050-01-31 | LY5: 2050-02-28 | LZ5: 2050-03-31 | MA5: 2050-04-30 | MB5: 2050-05-31 | MC5: 2050-06-30 | MD5: 2050-07-31 | ME5: 2050-08-31 | MF5: 2050-09-30 | MG5: 2050-10-31 | MH5: 2050-11-30 | MI5: 2050-12-31 | MJ5: 2051-01-31 | MK5: 2051-02-28 | ML5: 2051-03-31 | MM5: 2051-04-30 | MN5: 2051-05-31 | MO5: 2051-06-30 | MP5: 2051-07-31 | MQ5: 2051-08-31 | MR5: 2051-09-30 | MS5: 2051-10-31 | MT5: 2051-11-30 | MU5: 2051-12-31 | MV5: 2052-01-31 | MW5: 2052-02-29 | MX5: 2052-03-31 | MY5: 2052-04-30 | MZ5: 2052-05-31 | NA5: 2052-06-30 | NB5: 2052-07-31 | NC5: 2052-08-31 | ND5: 2052-09-30 | NE5: 2052-10-31 | NF5: 2052-11-30 | NG5: 2052-12-31 | NH5: 2053-01-31 | NI5: 2053-02-28 | NJ5: 2053-03-31 | NK5: 2053-04-30 | NL5: 2053-05-31 | NM5: 2053-06-30 | NN5: 2053-07-31 | NO5: 2053-08-31 | NP5: 2053-09-30 | NQ5: 2053-10-31 | NR5: 2053-11-30 | NS5: 2053-12-31 | NT5: 2054-01-31 | NU5: 2054-02-28 | NV5: 2054-03-31 | NW5: 2054-04-30 | NX5: 2054-05-31 | NY5: 2054-06-30 | NZ5: 2054-07-31 | OA5: 2054-08-31 | OB5: 2054-09-30 | OC5: 2054-10-31 | OD5: 2054-11-30 | OE5: 2054-12-31 | OF5: 2055-01-31 | OG5: =EDATE(OG4,1)-1 -> 2055-02-28 | OH5: 2055-03-31 | OI5: 2055-04-30 | OJ5: 2055-05-31 | OK5: 2055-06-30 | OL5: 2055-07-31 | OM5: 2055-08-31 | ON5: 2055-09-30 | OO5: 2055-10-31 | OP5: 2055-11-30 | OQ5: 2055-12-31 | OR5: 2056-01-31 | OS5: 2056-02-29 | OT5: 2056-03-31 | OU5: 2056-04-30 | OV5: 2056-05-31 | OW5: 2056-06-30 | OX5: 2056-07-31 | OY5: 2056-08-31 | OZ5: 2056-09-30 | PA5: 2056-10-31 | PB5: 2056-11-30 | PC5: 2056-12-31 | PD5: 2057-01-31 | PE5: 2057-02-28 | PF5: 2057-03-31 | PG5: 2057-04-30 | PH5: 2057-05-31 | PI5: 2057-06-30 | PJ5: 2057-07-31 | PK5: 2057-08-31 | PL5: 2057-09-30 | PM5: 2057-10-31 | PN5: 2057-11-30 | PO5: 2057-12-31 | PP5: 2058-01-31 | PQ5: 2058-02-28 | PR5: 2058-03-31 | PS5: 2058-04-30 | PT5: 2058-05-31 | PU5: 2058-06-30 | PV5: 2058-07-31 | PW5: 2058-08-31 | PX5: 2058-09-30 | PY5: 2058-10-31 | PZ5: 2058-11-30 | QA5: 2058-12-31 | QB5: 2059-01-31 | QC5: 2059-02-28 | QD5: 2059-03-31 | QE5: 2059-04-30 | QF5: 2059-05-31 | QG5: 2059-06-30 | QH5: 2059-07-31 | QI5: 2059-08-31 | QJ5: 2059-09-30 | QK5: 2059-10-31 | QL5: 2059-11-30 | QM5: 2059-12-31 | QN5: 2060-01-31 | QO5: 2060-02-29 | QP5: 2060-03-31 | QQ5: 2060-04-30 | QR5: 2060-05-31 | QS5: =EDATE(QS4,1)-1 -> 2060-06-30 | QT5: 2060-07-31 | QU5: 2060-08-31 | QV5: 2060-09-30 | QW5: 2060-10-31 | QX5: 2060-11-30 | QY5: 2060-12-31 | QZ5: 2061-01-31 | RA5: 2061-02-28 | RB5: 2061-03-31 | RC5: 2061-04-30 | RD5: 2061-05-31 | RE5: 2061-06-30 | RF5: 2061-07-31 | RG5: 2061-08-31 | RH5: 2061-09-30 | RI5: 2061-10-31 | RJ5: 2061-11-30 | RK5: 2061-12-31 | RL5: 2062-01-31 | RM5: 2062-02-28 | RN5: 2062-03-31 | RO5: 2062-04-30 | RP5: 2062-05-31 | RQ5: 2062-06-30 | RR5: 2062-07-31 | RS5: 2062-08-31 | RT5: 2062-09-30 | RU5: 2062-10-31 | RV5: 2062-11-30 | RW5: 2062-12-31 | RX5: 2063-01-31 | RY5: 2063-02-28 | RZ5: 2063-03-31 | SA5: 2063-04-30 | SB5: 2063-05-31 | SC5: 2063-06-30 | SD5: 2063-07-31 | SE5: 2063-08-31 | SF5: 2063-09-30 | SG5: 2063-10-31 | SH5: 2063-11-30 | SI5: 2063-12-31 | SJ5: 2064-01-31 | SK5: 2064-02-29 | SL5: 2064-03-31 | SM5: 2064-04-30 | SN5: 2064-05-31 | SO5: 2064-06-30 | SP5: 2064-07-31 | SQ5: 2064-08-31 | SR5: 2064-09-30 | SS5: 2064-10-31 | ST5: 2064-11-30 | SU5: 2064-12-31 | SV5: 2065-01-31 | SW5: 2065-02-28 | SX5: 2065-03-31 | SY5: 2065-04-30 | SZ5: 2065-05-31 | TA5: 2065-06-30 | TB5: 2065-07-31 | TC5: 2065-08-31 | TD5: 2065-09-30 | TE5: =EDATE(TE4,1)-1 -> 2065-10-31 | TF5: 2065-11-30 | TG5: 2065-12-31 | TH5: 2066-01-31 | TI5: 2066-02-28 | TJ5: 2066-03-31 | TK5: 2066-04-30 | TL5: 2066-05-31 | TM5: 2066-06-30 | TN5: 2066-07-31 | TO5: 2066-08-31 | TP5: 2066-09-30 | TQ5: 2066-10-31 | TR5: 2066-11-30 | TS5: 2066-12-31 | TT5: 2067-01-31 | TU5: 2067-02-28 | TV5: 2067-03-31 | TW5: 2067-04-30 | TX5: 2067-05-31 | TY5: 2067-06-30 | TZ5: 2067-07-31 | UA5: 2067-08-31 | UB5: 2067-09-30 | UC5: 2067-10-31 | UD5: 2067-11-30 | UE5: 2067-12-31 | UF5: 2068-01-31 | UG5: 2068-02-29 | UH5: 2068-03-31 | UI5: 2068-04-30 | UJ5: 2068-05-31 | UK5: 2068-06-30 | UL5: 2068-07-31 | UM5: 2068-08-31 | UN5: 2068-09-30 | UO5: 2068-10-31 | UP5: 2068-11-30 | UQ5: 2068-12-31 | UR5: 2069-01-31 | US5: 2069-02-28 | UT5: 2069-03-31 | UU5: 2069-04-30 | UV5: 2069-05-31 | UW5: 2069-06-30 | UX5: 2069-07-31 | UY5: 2069-08-31 | UZ5: 2069-09-30 | VA5: 2069-10-31 | VB5: 2069-11-30 | VC5: 2069-12-31 | VD5: 2070-01-31 | VE5: 2070-02-28 | VF5: 2070-03-31 | VG5: 2070-04-30 | VH5: 2070-05-31 | VI5: 2070-06-30 | VJ5: 2070-07-31 | VK5: 2070-08-31 | VL5: 2070-09-30 | VM5: 2070-10-31 | VN5: 2070-11-30 | VO5: 2070-12-31 | VP5: 2071-01-31 | VQ5: =EDATE(VQ4,1)-1 -> 2071-02-28 | VR5: 2071-03-31 | VS5: 2071-04-30 | VT5: 2071-05-31 | VU5: 2071-06-30 | VV5: 2071-07-31 | VW5: 2071-08-31 | VX5: 2071-09-30 | VY5: 2071-10-31 | VZ5: 2071-11-30 | WA5: 2071-12-31 | WB5: 2072-01-31 | WC5: 2072-02-29 | WD5: 2072-03-31 | WE5: 2072-04-30 | WF5: 2072-05-31 | WG5: 2072-06-30 | WH5: 2072-07-31 | WI5: 2072-08-31 | WJ5: 2072-09-30 | WK5: 2072-10-31 | WL5: 2072-11-30 | WM5: 2072-12-31 | WN5: 2073-01-31 | WO5: 2073-02-28 | WP5: 2073-03-31 | WQ5: 2073-04-30 | WR5: 2073-05-31 | WS5: 2073-06-30 | WT5: 2073-07-31 | WU5: 2073-08-31 | WV5: 2073-09-30 | WW5: 2073-10-31 | WX5: 2073-11-30 | WY5: 2073-12-31 | WZ5: 2074-01-31 | XA5: 2074-02-28 | XB5: 2074-03-31 | XC5: 2074-04-30 | XD5: 2074-05-31 | XE5: 2074-06-30 | XF5: 2074-07-31 | XG5: 2074-08-31 | XH5: 2074-09-30 | XI5: 2074-10-31 | XJ5: 2074-11-30 | XK5: 2074-12-31 | XL5: 2075-01-31 | XM5: 2075-02-28 | XN5: 2075-03-31 | XO5: 2075-04-30 | XP5: 2075-05-31 | XQ5: 2075-06-30 | XR5: 2075-07-31 | XS5: 2075-08-31 | XT5: 2075-09-30 | XU5: 2075-10-31 | XV5: 2075-11-30 | XW5: 2075-12-31 | XX5: 2076-01-31 | XY5: 2076-02-29 | XZ5: 2076-03-31 | YA5: 2076-04-30 | YB5: 2076-05-31 | YC5: =EDATE(YC4,1)-1 -> 2076-06-30 | YD5: 2076-07-31 | YE5: 2076-08-31 | YF5: 2076-09-30 | YG5: 2076-10-31 | YH5: 2076-11-30 | YI5: 2076-12-31 | YJ5: 2077-01-31 | YK5: 2077-02-28 | YL5: 2077-03-31 | YM5: 2077-04-30 | YN5: 2077-05-31 | YO5: 2077-06-30 | YP5: 2077-07-31 | YQ5: 2077-08-31 | YR5: 2077-09-30 | YS5: 2077-10-31 | YT5: 2077-11-30 | YU5: 2077-12-31 | YV5: 2078-01-31 | YW5: 2078-02-28 | YX5: 2078-03-31 | YY5: 2078-04-30 | YZ5: 2078-05-31 | ZA5: 2078-06-30 | ZB5: 2078-07-31 | ZC5: 2078-08-31 | ZD5: 2078-09-30 | ZE5: 2078-10-31 | ZF5: 2078-11-30 | ZG5: 2078-12-31 | ZH5: 2079-01-31 | ZI5: 2079-02-28 | ZJ5: 2079-03-31 | ZK5: 2079-04-30 | ZL5: 2079-05-31 | ZM5: 2079-06-30 | ZN5: 2079-07-31 | ZO5: 2079-08-31 | ZP5: 2079-09-30 | ZQ5: 2079-10-31 | ZR5: 2079-11-30 | ZS5: 2079-12-31 | ZT5: 2080-01-31 | ZU5: 2080-02-29 | ZV5: 2080-03-31 | ZW5: 2080-04-30 | ZX5: 2080-05-31 | ZY5: 2080-06-30 | ZZ5: 2080-07-31 | AAA5: 2080-08-31 | AAB5: 2080-09-30 | AAC5: 2080-10-31 | AAD5: 2080-11-30 | AAE5: 2080-12-31 | AAF5: 2081-01-31 | AAG5: 2081-02-28 | AAH5: 2081-03-31 | AAI5: 2081-04-30 | AAJ5: 2081-05-31 | AAK5: 2081-06-30 | AAL5: 2081-07-31 | AAM5: 2081-08-31 | AAN5: 2081-09-30 | AAO5: =EDATE(AAO4,1)-1 -> 2081-10-31 | AAP5: 2081-11-30 | AAQ5: 2081-12-31 | AAR5: 2082-01-31 | AAS5: 2082-02-28 | AAT5: 2082-03-31 | AAU5: 2082-04-30 | AAV5: 2082-05-31 | AAW5: 2082-06-30 | AAX5: 2082-07-31 | AAY5: 2082-08-31 | AAZ5: 2082-09-30 | ABA5: 2082-10-31 | ABB5: 2082-11-30 | ABC5: 2082-12-31 | ABD5: 2083-01-31 | ABE5: 2083-02-28 | ABF5: 2083-03-31 | ABG5: 2083-04-30 | ABH5: 2083-05-31 | ABI5: 2083-06-30 | ABJ5: 2083-07-31 | ABK5: 2083-08-31 | ABL5: 2083-09-30 | ABM5: 2083-10-31 | ABN5: 2083-11-30 | ABO5: 2083-12-31 | ABP5: 2084-01-31 | ABQ5: 2084-02-29 | ABR5: 2084-03-31 | ABS5: 2084-04-30 | ABT5: 2084-05-31 | ABU5: 2084-06-30 | ABV5: 2084-07-31 | ABW5: 2084-08-31 | ABX5: 2084-09-30 | ABY5: 2084-10-31 | ABZ5: 2084-11-30 | ACA5: 2084-12-31 | ACB5: 2085-01-31 | ACC5: 2085-02-28 | ACD5: 2085-03-31 | ACE5: 2085-04-30 | ACF5: 2085-05-31 | ACG5: 2085-06-30 | ACH5: 2085-07-31 | ACI5: 2085-08-31 | ACJ5: 2085-09-30 | ACK5: 2085-10-31 | ACL5: 2085-11-30 | ACM5: 2085-12-31 | ACN5: 2086-01-31 | ACO5: 2086-02-28 | ACP5: 2086-03-31 | ACQ5: 2086-04-30 | ACR5: 2086-05-31 | ACS5: 2086-06-30 | ACT5: 2086-07-31 | ACU5: 2086-08-31 | ACV5: 2086-09-30 | ACW5: 2086-10-31 | ACX5: 2086-11-30 | ACY5: 2086-12-31 | ACZ5: 2087-01-31 | ADA5: =EDATE(ADA4,1)-1 -> 2087-02-28 | ADB5: 2087-03-31 | ADC5: 2087-04-30 | ADD5: 2087-05-31 | ADE5: 2087-06-30 | ADF5: 2087-07-31 | ADG5: 2087-08-31 | ADH5: 2087-09-30 | ADI5: 2087-10-31 | ADJ5: 2087-11-30 | ADK5: 2087-12-31 | ADL5: 2088-01-31 | ADM5: 2088-02-29 | ADN5: 2088-03-31 | ADO5: 2088-04-30 | ADP5: 2088-05-31 | ADQ5: 2088-06-30 | ADR5: 2088-07-31 | ADS5: 2088-08-31 | ADT5: 2088-09-30 | ADU5: 2088-10-31 | ADV5: 2088-11-30 | ADW5: 2088-12-31 | ADX5: 2089-01-31 | ADY5: 2089-02-28 | ADZ5: 2089-03-31 | AEA5: 2089-04-30 | AEB5: 2089-05-31 | AEC5: 2089-06-30 | AED5: 2089-07-31 | AEE5: 2089-08-31
D6: Pre-COD Flag | E6: ='InputC - Operations'!$F$9 -> 00:00:00 | G6: Flag | L6: =(L4<$E$6)*1 -> 0 | M6: 0 | N6: 0 | O6: 0 | P6: 0 | Q6: 0 | R6: 0 | S6: 0 | T6: 0 | U6: 0 | V6: 0 | W6: 0 | X6: 0 | Y6: 0 | Z6: 0 | AA6: 0 | AB6: 0 | AC6: 0 | AD6: 0 | AE6: 0 | AF6: 0 | AG6: 0 | AH6: 0 | AI6: 0 | AJ6: 0 | AK6: 0 | AL6: 0 | AM6: 0 | AN6: 0 | AO6: 0 | AP6: 0 | AQ6: 0 | AR6: 0 | AS6: 0 | AT6: 0 | AU6: 0 | AV6: 0 | AW6: 0 | AX6: 0 | AY6: 0 | AZ6: 0 | BA6: 0 | BB6: 0 | BC6: 0 | BD6: 0 | BE6: 0 | BF6: 0 | BG6: 0 | BH6: 0 | BI6: 0 | BJ6: 0 | BK6: 0 | BL6: 0 | BM6: 0 | BN6: 0 | BO6: 0 | BP6: 0 | BQ6: 0 | BR6: 0 | BS6: 0 | BT6: 0 | BU6: 0 | BV6: 0 | BW6: 0 | BX6: =(BX4<$E$6)*1 -> 0 | BY6: 0 | BZ6: 0 | CA6: 0 | CB6: 0 | CC6: 0 | CD6: 0 | CE6: 0 | CF6: 0 | CG6: 0 | CH6: 0 | CI6: 0 | CJ6: 0 | CK6: 0 | CL6: 0 | CM6: 0 | CN6: 0 | CO6: 0 | CP6: 0 | CQ6: 0 | CR6: 0 | CS6: 0 | CT6: 0 | CU6: 0 | CV6: 0 | CW6: 0 | CX6: 0 | CY6: 0 | CZ6: 0 | DA6: 0 | DB6: 0 | DC6: 0 | DD6: 0 | DE6: 0 | DF6: 0 | DG6: 0 | DH6: 0 | DI6: 0 | DJ6: 0 | DK6: 0 | DL6: 0 | DM6: 0 | DN6: 0 | DO6: 0 | DP6: 0 | DQ6: 0 | DR6: 0 | DS6: 0 | DT6: 0 | DU6: 0 | DV6: 0 | DW6: 0 | DX6: 0 | DY6: 0 | DZ6: 0 | EA6: 0 | EB6: 0 | EC6: 0 | ED6: 0 | EE6: 0 | EF6: 0 | EG6: 0 | EH6: 0 | EI6: 0 | EJ6: =(EJ4<$E$6)*1 -> 0 | EK6: 0 | EL6: 0 | EM6: 0 | EN6: 0 | EO6: 0 | EP6: 0 | EQ6: 0 | ER6: 0 | ES6: 0 | ET6: 0 | EU6: 0 | EV6: 0 | EW6: 0 | EX6: 0 | EY6: 0 | EZ6: 0 | FA6: 0 | FB6: 0 | FC6: 0 | FD6: 0 | FE6: 0 | FF6: 0 | FG6: 0 | FH6: 0 | FI6: 0 | FJ6: 0 | FK6: 0 | FL6: 0 | FM6: 0 | FN6: 0 | FO6: 0 | FP6: 0 | FQ6: 0 | FR6: 0 | FS6: 0 | FT6: 0 | FU6: 0 | FV6: 0 | FW6: 0 | FX6: 0 | FY6: 0 | FZ6: 0 | GA6: 0 | GB6: 0 | GC6: 0 | GD6: 0 | GE6: 0 | GF6: 0 | GG6: 0 | GH6: 0 | GI6: 0 | GJ6: 0 | GK6: 0 | GL6: 0 | GM6: 0 | GN6: 0 | GO6: 0 | GP6: 0 | GQ6: 0 | GR6: 0 | GS6: 0 | GT6: 0 | GU6: 0 | GV6: =(GV4<$E$6)*1 -> 0 | GW6: 0 | GX6: 0 | GY6: 0 | GZ6: 0 | HA6: 0 | HB6: 0 | HC6: 0 | HD6: 0 | HE6: 0 | HF6: 0 | HG6: 0 | HH6: 0 | HI6: 0 | HJ6: 0 | HK6: 0 | HL6: 0 | HM6: 0 | HN6: 0 | HO6: 0 | HP6: 0 | HQ6: 0 | HR6: 0 | HS6: 0 | HT6: 0 | HU6: 0 | HV6: 0 | HW6: 0 | HX6: 0 | HY6: 0 | HZ6: 0 | IA6: 0 | IB6: 0 | IC6: 0 | ID6: 0 | IE6: 0 | IF6: 0 | IG6: 0 | IH6: 0 | II6: 0 | IJ6: 0 | IK6: 0 | IL6: 0 | IM6: 0 | IN6: 0 | IO6: 0 | IP6: 0 | IQ6: 0 | IR6: 0 | IS6: 0 | IT6: 0 | IU6: 0 | IV6: 0 | IW6: 0 | IX6: 0 | IY6: 0 | IZ6: 0 | JA6: 0 | JB6: 0 | JC6: 0 | JD6: 0 | JE6: 0 | JF6: 0 | JG6: 0 | JH6: =(JH4<$E$6)*1 -> 0 | JI6: 0 | JJ6: 0 | JK6: 0 | JL6: 0 | JM6: 0 | JN6: 0 | JO6: 0 | JP6: 0 | JQ6: 0 | JR6: 0 | JS6: 0 | JT6: 0 | JU6: 0 | JV6: 0 | JW6: 0 | JX6: 0 | JY6: 0 | JZ6: 0 | KA6: 0 | KB6: 0 | KC6: 0 | KD6: 0 | KE6: 0 | KF6: 0 | KG6: 0 | KH6: 0 | KI6: 0 | KJ6: 0 | KK6: 0 | KL6: 0 | KM6: 0 | KN6: 0 | KO6: 0 | KP6: 0 | KQ6: 0 | KR6: 0 | KS6: 0 | KT6: 0 | KU6: 0 | KV6: 0 | KW6: 0 | KX6: 0 | KY6: 0 | KZ6: 0 | LA6: 0 | LB6: 0 | LC6: 0 | LD6: 0 | LE6: 0 | LF6: 0 | LG6: 0 | LH6: 0 | LI6: 0 | LJ6: 0 | LK6: 0 | LL6: 0 | LM6: 0 | LN6: 0 | LO6: 0 | LP6: 0 | LQ6: 0 | LR6: 0 | LS6: 0 | LT6: =(LT4<$E$6)*1 -> 0 | LU6: 0 | LV6: 0 | LW6: 0 | LX6: 0 | LY6: 0 | LZ6: 0 | MA6: 0 | MB6: 0 | MC6: 0 | MD6: 0 | ME6: 0 | MF6: 0 | MG6: 0 | MH6: 0 | MI6: 0 | MJ6: 0 | MK6: 0 | ML6: 0 | MM6: 0 | MN6: 0 | MO6: 0 | MP6: 0 | MQ6: 0 | MR6: 0 | MS6: 0 | MT6: 0 | MU6: 0 | MV6: 0 | MW6: 0 | MX6: 0 | MY6: 0 | MZ6: 0 | NA6: 0 | NB6: 0 | NC6: 0 | ND6: 0 | NE6: 0 | NF6: 0 | NG6: 0 | NH6: 0 | NI6: 0 | NJ6: 0 | NK6: 0 | NL6: 0 | NM6: 0 | NN6: 0 | NO6: 0 | NP6: 0 | NQ6: 0 | NR6: 0 | NS6: 0 | NT6: 0 | NU6: 0 | NV6: 0 | NW6: 0 | NX6: 0 | NY6: 0 | NZ6: 0 | OA6: 0 | OB6: 0 | OC6: 0 | OD6: 0 | OE6: 0 | OF6: =(OF4<$E$6)*1 -> 0 | OG6: 0 | OH6: 0 | OI6: 0 | OJ6: 0 | OK6: 0 | OL6: 0 | OM6: 0 | ON6: 0 | OO6: 0 | OP6: 0 | OQ6: 0 | OR6: 0 | OS6: 0 | OT6: 0 | OU6: 0 | OV6: 0 | OW6: 0 | OX6: 0 | OY6: 0 | OZ6: 0 | PA6: 0 | PB6: 0 | PC6: 0 | PD6: 0 | PE6: 0 | PF6: 0 | PG6: 0 | PH6: 0 | PI6: 0 | PJ6: 0 | PK6: 0 | PL6: 0 | PM6: 0 | PN6: 0 | PO6: 0 | PP6: 0 | PQ6: 0 | PR6: 0 | PS6: 0 | PT6: 0 | PU6: 0 | PV6: 0 | PW6: 0 | PX6: 0 | PY6: 0 | PZ6: 0 | QA6: 0 | QB6: 0 | QC6: 0 | QD6: 0 | QE6: 0 | QF6: 0 | QG6: 0 | QH6: 0 | QI6: 0 | QJ6: 0 | QK6: 0 | QL6: 0 | QM6: 0 | QN6: 0 | QO6: 0 | QP6: 0 | QQ6: 0 | QR6: =(QR4<$E$6)*1 -> 0 | QS6: 0 | QT6: 0 | QU6: 0 | QV6: 0 | QW6: 0 | QX6: 0 | QY6: 0 | QZ6: 0 | RA6: 0 | RB6: 0 | RC6: 0 | RD6: 0 | RE6: 0 | RF6: 0 | RG6: 0 | RH6: 0 | RI6: 0 | RJ6: 0 | RK6: 0 | RL6: 0 | RM6: 0 | RN6: 0 | RO6: 0 | RP6: 0 | RQ6: 0 | RR6: 0 | RS6: 0 | RT6: 0 | RU6: 0 | RV6: 0 | RW6: 0 | RX6: 0 | RY6: 0 | RZ6: 0 | SA6: 0 | SB6: 0 | SC6: 0 | SD6: 0 | SE6: 0 | SF6: 0 | SG6: 0 | SH6: 0 | SI6: 0 | SJ6: 0 | SK6: 0 | SL6: 0 | SM6: 0 | SN6: 0 | SO6: 0 | SP6: 0 | SQ6: 0 | SR6: 0 | SS6: 0 | ST6: 0 | SU6: 0 | SV6: 0 | SW6: 0 | SX6: 0 | SY6: 0 | SZ6: 0 | TA6: 0 | TB6: 0 | TC6: 0 | TD6: =(TD4<$E$6)*1 -> 0 | TE6: 0 | TF6: 0 | TG6: 0 | TH6: 0 | TI6: 0 | TJ6: 0 | TK6: 0 | TL6: 0 | TM6: 0 | TN6: 0 | TO6: 0 | TP6: 0 | TQ6: 0 | TR6: 0 | TS6: 0 | TT6: 0 | TU6: 0 | TV6: 0 | TW6: 0 | TX6: 0 | TY6: 0 | TZ6: 0 | UA6: 0 | UB6: 0 | UC6: 0 | UD6: 0 | UE6: 0 | UF6: 0 | UG6: 0 | UH6: 0 | UI6: 0 | UJ6: 0 | UK6: 0 | UL6: 0 | UM6: 0 | UN6: 0 | UO6: 0 | UP6: 0 | UQ6: 0 | UR6: 0 | US6: 0 | UT6: 0 | UU6: 0 | UV6: 0 | UW6: 0 | UX6: 0 | UY6: 0 | UZ6: 0 | VA6: 0 | VB6: 0 | VC6: 0 | VD6: 0 | VE6: 0 | VF6: 0 | VG6: 0 | VH6: 0 | VI6: 0 | VJ6: 0 | VK6: 0 | VL6: 0 | VM6: 0 | VN6: 0 | VO6: 0 | VP6: =(VP4<$E$6)*1 -> 0 | VQ6: 0 | VR6: 0 | VS6: 0 | VT6: 0 | VU6: 0 | VV6: 0 | VW6: 0 | VX6: 0 | VY6: 0 | VZ6: 0 | WA6: 0 | WB6: 0 | WC6: 0 | WD6: 0 | WE6: 0 | WF6: 0 | WG6: 0 | WH6: 0 | WI6: 0 | WJ6: 0 | WK6: 0 | WL6: 0 | WM6: 0 | WN6: 0 | WO6: 0 | WP6: 0 | WQ6: 0 | WR6: 0 | WS6: 0 | WT6: 0 | WU6: 0 | WV6: 0 | WW6: 0 | WX6: 0 | WY6: 0 | WZ6: 0 | XA6: 0 | XB6: 0 | XC6: 0 | XD6: 0 | XE6: 0 | XF6: 0 | XG6: 0 | XH6: 0 | XI6: 0 | XJ6: 0 | XK6: 0 | XL6: 0 | XM6: 0 | XN6: 0 | XO6: 0 | XP6: 0 | XQ6: 0 | XR6: 0 | XS6: 0 | XT6: 0 | XU6: 0 | XV6: 0 | XW6: 0 | XX6: 0 | XY6: 0 | XZ6: 0 | YA6: 0 | YB6: =(YB4<$E$6)*1 -> 0 | YC6: 0 | YD6: 0 | YE6: 0 | YF6: 0 | YG6: 0 | YH6: 0 | YI6: 0 | YJ6: 0 | YK6: 0 | YL6: 0 | YM6: 0 | YN6: 0 | YO6: 0 | YP6: 0 | YQ6: 0 | YR6: 0 | YS6: 0 | YT6: 0 | YU6: 0 | YV6: 0 | YW6: 0 | YX6: 0 | YY6: 0 | YZ6: 0 | ZA6: 0 | ZB6: 0 | ZC6: 0 | ZD6: 0 | ZE6: 0 | ZF6: 0 | ZG6: 0 | ZH6: 0 | ZI6: 0 | ZJ6: 0 | ZK6: 0 | ZL6: 0 | ZM6: 0 | ZN6: 0 | ZO6: 0 | ZP6: 0 | ZQ6: 0 | ZR6: 0 | ZS6: 0 | ZT6: 0 | ZU6: 0 | ZV6: 0 | ZW6: 0 | ZX6: 0 | ZY6: 0 | ZZ6: 0 | AAA6: 0 | AAB6: 0 | AAC6: 0 | AAD6: 0 | AAE6: 0 | AAF6: 0 | AAG6: 0 | AAH6: 0 | AAI6: 0 | AAJ6: 0 | AAK6: 0 | AAL6: 0 | AAM6: 0 | AAN6: =(AAN4<$E$6)*1 -> 0 | AAO6: 0 | AAP6: 0 | AAQ6: 0 | AAR6: 0 | AAS6: 0 | AAT6: 0 | AAU6: 0 | AAV6: 0 | AAW6: 0 | AAX6: 0 | AAY6: 0 | AAZ6: 0 | ABA6: 0 | ABB6: 0 | ABC6: 0 | ABD6: 0 | ABE6: 0 | ABF6: 0 | ABG6: 0 | ABH6: 0 | ABI6: 0 | ABJ6: 0 | ABK6: 0 | ABL6: 0 | ABM6: 0 | ABN6: 0 | ABO6: 0 | ABP6: 0 | ABQ6: 0 | ABR6: 0 | ABS6: 0 | ABT6: 0 | ABU6: 0 | ABV6: 0 | ABW6: 0 | ABX6: 0 | ABY6: 0 | ABZ6: 0 | ACA6: 0 | ACB6: 0 | ACC6: 0 | ACD6: 0 | ACE6: 0 | ACF6: 0 | ACG6: 0 | ACH6: 0 | ACI6: 0 | ACJ6: 0 | ACK6: 0 | ACL6: 0 | ACM6: 0 | ACN6: 0 | ACO6: 0 | ACP6: 0 | ACQ6: 0 | ACR6: 0 | ACS6: 0 | ACT6: 0 | ACU6: 0 | ACV6: 0 | ACW6: 0 | ACX6: 0 | ACY6: 0 | ACZ6: =(ACZ4<$E$6)*1 -> 0 | ADA6: 0 | ADB6: 0 | ADC6: 0 | ADD6: 0 | ADE6: 0 | ADF6: 0 | ADG6: 0 | ADH6: 0 | ADI6: 0 | ADJ6: 0 | ADK6: 0 | ADL6: 0 | ADM6: 0 | ADN6: 0 | ADO6: 0 | ADP6: 0 | ADQ6: 0 | ADR6: 0 | ADS6: 0 | ADT6: 0 | ADU6: 0 | ADV6: 0 | ADW6: 0 | ADX6: 0 | ADY6: 0 | ADZ6: 0 | AEA6: 0 | AEB6: 0 | AEC6: 0 | AED6: 0 | AEE6: 0
D7: Operations Flag | E7: ='InputC - Operations'!$F$9 -> 00:00:00 | F7: ='InputC - Operations'!$F$11 -> 00:00:00 | G7: Flag | L7: =(AND(L4>=$E$7,L$4<$F$7))*1 -> 0 | M7: =(AND(M4>=$E$7,M$4<$F$7))*1 -> 0 | N7: 0 | O7: 0 | P7: 0 | Q7: 0 | R7: 0 | S7: 0 | T7: 0 | U7: 0 | V7: 0 | W7: 0 | X7: 0 | Y7: 0 | Z7: 0 | AA7: 0 | AB7: 0 | AC7: 0 | AD7: 0 | AE7: 0 | AF7: 0 | AG7: 0 | AH7: 0 | AI7: 0 | AJ7: 0 | AK7: 0 | AL7: 0 | AM7: 0 | AN7: 0 | AO7: 0 | AP7: 0 | AQ7: 0 | AR7: 0 | AS7: 0 | AT7: 0 | AU7: 0 | AV7: 0 | AW7: 0 | AX7: 0 | AY7: 0 | AZ7: 0 | BA7: 0 | BB7: 0 | BC7: 0 | BD7: 0 | BE7: 0 | BF7: 0 | BG7: 0 | BH7: 0 | BI7: 0 | BJ7: 0 | BK7: 0 | BL7: 0 | BM7: 0 | BN7: 0 | BO7: 0 | BP7: 0 | BQ7: 0 | BR7: 0 | BS7: 0 | BT7: 0 | BU7: 0 | BV7: 0 | BW7: 0 | BX7: 0 | BY7: =(AND(BY4>=$E$7,BY$4<$F$7))*1 -> 0 | BZ7: 0 | CA7: 0 | CB7: 0 | CC7: 0 | CD7: 0 | CE7: 0 | CF7: 0 | CG7: 0 | CH7: 0 | CI7: 0 | CJ7: 0 | CK7: 0 | CL7: 0 | CM7: 0 | CN7: 0 | CO7: 0 | CP7: 0 | CQ7: 0 | CR7: 0 | CS7: 0 | CT7: 0 | CU7: 0 | CV7: 0 | CW7: 0 | CX7: 0 | CY7: 0 | CZ7: 0 | DA7: 0 | DB7: 0 | DC7: 0 | DD7: 0 | DE7: 0 | DF7: 0 | DG7: 0 | DH7: 0 | DI7: 0 | DJ7: 0 | DK7: 0 | DL7: 0 | DM7: 0 | DN7: 0 | DO7: 0 | DP7: 0 | DQ7: 0 | DR7: 0 | DS7: 0 | DT7: 0 | DU7: 0 | DV7: 0 | DW7: 0 | DX7: 0 | DY7: 0 | DZ7: 0 | EA7: 0 | EB7: 0 | EC7: 0 | ED7: 0 | EE7: 0 | EF7: 0 | EG7: 0 | EH7: 0 | EI7: 0 | EJ7: 0 | EK7: =(AND(EK4>=$E$7,EK$4<$F$7))*1 -> 0 | EL7: 0 | EM7: 0 | EN7: 0 | EO7: 0 | EP7: 0 | EQ7: 0 | ER7: 0 | ES7: 0 | ET7: 0 | EU7: 0 | EV7: 0 | EW7: 0 | EX7: 0 | EY7: 0 | EZ7: 0 | FA7: 0 | FB7: 0 | FC7: 0 | FD7: 0 | FE7: 0 | FF7: 0 | FG7: 0 | FH7: 0 | FI7: 0 | FJ7: 0 | FK7: 0 | FL7: 0 | FM7: 0 | FN7: 0 | FO7: 0 | FP7: 0 | FQ7: 0 | FR7: 0 | FS7: 0 | FT7: 0 | FU7: 0 | FV7: 0 | FW7: 0 | FX7: 0 | FY7: 0 | FZ7: 0 | GA7: 0 | GB7: 0 | GC7: 0 | GD7: 0 | GE7: 0 | GF7: 0 | GG7: 0 | GH7: 0 | GI7: 0 | GJ7: 0 | GK7: 0 | GL7: 0 | GM7: 0 | GN7: 0 | GO7: 0 | GP7: 0 | GQ7: 0 | GR7: 0 | GS7: 0 | GT7: 0 | GU7: 0 | GV7: 0 | GW7: =(AND(GW4>=$E$7,GW$4<$F$7))*1 -> 0 | GX7: 0 | GY7: 0 | GZ7: 0 | HA7: 0 | HB7: 0 | HC7: 0 | HD7: 0 | HE7: 0 | HF7: 0 | HG7: 0 | HH7: 0 | HI7: 0 | HJ7: 0 | HK7: 0 | HL7: 0 | HM7: 0 | HN7: 0 | HO7: 0 | HP7: 0 | HQ7: 0 | HR7: 0 | HS7: 0 | HT7: 0 | HU7: 0 | HV7: 0 | HW7: 0 | HX7: 0 | HY7: 0 | HZ7: 0 | IA7: 0 | IB7: 0 | IC7: 0 | ID7: 0 | IE7: 0 | IF7: 0 | IG7: 0 | IH7: 0 | II7: 0 | IJ7: 0 | IK7: 0 | IL7: 0 | IM7: 0 | IN7: 0 | IO7: 0 | IP7: 0 | IQ7: 0 | IR7: 0 | IS7: 0 | IT7: 0 | IU7: 0 | IV7: 0 | IW7: 0 | IX7: 0 | IY7: 0 | IZ7: 0 | JA7: 0 | JB7: 0 | JC7: 0 | JD7: 0 | JE7: 0 | JF7: 0 | JG7: 0 | JH7: 0 | JI7: =(AND(JI4>=$E$7,JI$4<$F$7))*1 -> 0 | JJ7: 0 | JK7: 0 | JL7: 0 | JM7: 0 | JN7: 0 | JO7: 0 | JP7: 0 | JQ7: 0 | JR7: 0 | JS7: 0 | JT7: 0 | JU7: 0 | JV7: 0 | JW7: 0 | JX7: 0 | JY7: 0 | JZ7: 0 | KA7: 0 | KB7: 0 | KC7: 0 | KD7: 0 | KE7: 0 | KF7: 0 | KG7: 0 | KH7: 0 | KI7: 0 | KJ7: 0 | KK7: 0 | KL7: 0 | KM7: 0 | KN7: 0 | KO7: 0 | KP7: 0 | KQ7: 0 | KR7: 0 | KS7: 0 | KT7: 0 | KU7: 0 | KV7: 0 | KW7: 0 | KX7: 0 | KY7: 0 | KZ7: 0 | LA7: 0 | LB7: 0 | LC7: 0 | LD7: 0 | LE7: 0 | LF7: 0 | LG7: 0 | LH7: 0 | LI7: 0 | LJ7: 0 | LK7: 0 | LL7: 0 | LM7: 0 | LN7: 0 | LO7: 0 | LP7: 0 | LQ7: 0 | LR7: 0 | LS7: 0 | LT7: 0 | LU7: =(AND(LU4>=$E$7,LU$4<$F$7))*1 -> 0 | LV7: 0 | LW7: 0 | LX7: 0 | LY7: 0 | LZ7: 0 | MA7: 0 | MB7: 0 | MC7: 0 | MD7: 0 | ME7: 0 | MF7: 0 | MG7: 0 | MH7: 0 | MI7: 0 | MJ7: 0 | MK7: 0 | ML7: 0 | MM7: 0 | MN7: 0 | MO7: 0 | MP7: 0 | MQ7: 0 | MR7: 0 | MS7: 0 | MT7: 0 | MU7: 0 | MV7: 0 | MW7: 0 | MX7: 0 | MY7: 0 | MZ7: 0 | NA7: 0 | NB7: 0 | NC7: 0 | ND7: 0 | NE7: 0 | NF7: 0 | NG7: 0 | NH7: 0 | NI7: 0 | NJ7: 0 | NK7: 0 | NL7: 0 | NM7: 0 | NN7: 0 | NO7: 0 | NP7: 0 | NQ7: 0 | NR7: 0 | NS7: 0 | NT7: 0 | NU7: 0 | NV7: 0 | NW7: 0 | NX7: 0 | NY7: 0 | NZ7: 0 | OA7: 0 | OB7: 0 | OC7: 0 | OD7: 0 | OE7: 0 | OF7: 0 | OG7: =(AND(OG4>=$E$7,OG$4<$F$7))*1 -> 0 | OH7: 0 | OI7: 0 | OJ7: 0 | OK7: 0 | OL7: 0 | OM7: 0 | ON7: 0 | OO7: 0 | OP7: 0 | OQ7: 0 | OR7: 0 | OS7: 0 | OT7: 0 | OU7: 0 | OV7: 0 | OW7: 0 | OX7: 0 | OY7: 0 | OZ7: 0 | PA7: 0 | PB7: 0 | PC7: 0 | PD7: 0 | PE7: 0 | PF7: 0 | PG7: 0 | PH7: 0 | PI7: 0 | PJ7: 0 | PK7: 0 | PL7: 0 | PM7: 0 | PN7: 0 | PO7: 0 | PP7: 0 | PQ7: 0 | PR7: 0 | PS7: 0 | PT7: 0 | PU7: 0 | PV7: 0 | PW7: 0 | PX7: 0 | PY7: 0 | PZ7: 0 | QA7: 0 | QB7: 0 | QC7: 0 | QD7: 0 | QE7: 0 | QF7: 0 | QG7: 0 | QH7: 0 | QI7: 0 | QJ7: 0 | QK7: 0 | QL7: 0 | QM7: 0 | QN7: 0 | QO7: 0 | QP7: 0 | QQ7: 0 | QR7: 0 | QS7: =(AND(QS4>=$E$7,QS$4<$F$7))*1 -> 0 | QT7: 0 | QU7: 0 | QV7: 0 | QW7: 0 | QX7: 0 | QY7: 0 | QZ7: 0 | RA7: 0 | RB7: 0 | RC7: 0 | RD7: 0 | RE7: 0 | RF7: 0 | RG7: 0 | RH7: 0 | RI7: 0 | RJ7: 0 | RK7: 0 | RL7: 0 | RM7: 0 | RN7: 0 | RO7: 0 | RP7: 0 | RQ7: 0 | RR7: 0 | RS7: 0 | RT7: 0 | RU7: 0 | RV7: 0 | RW7: 0 | RX7: 0 | RY7: 0 | RZ7: 0 | SA7: 0 | SB7: 0 | SC7: 0 | SD7: 0 | SE7: 0 | SF7: 0 | SG7: 0 | SH7: 0 | SI7: 0 | SJ7: 0 | SK7: 0 | SL7: 0 | SM7: 0 | SN7: 0 | SO7: 0 | SP7: 0 | SQ7: 0 | SR7: 0 | SS7: 0 | ST7: 0 | SU7: 0 | SV7: 0 | SW7: 0 | SX7: 0 | SY7: 0 | SZ7: 0 | TA7: 0 | TB7: 0 | TC7: 0 | TD7: 0 | TE7: =(AND(TE4>=$E$7,TE$4<$F$7))*1 -> 0 | TF7: 0 | TG7: 0 | TH7: 0 | TI7: 0 | TJ7: 0 | TK7: 0 | TL7: 0 | TM7: 0 | TN7: 0 | TO7: 0 | TP7: 0 | TQ7: 0 | TR7: 0 | TS7: 0 | TT7: 0 | TU7: 0 | TV7: 0 | TW7: 0 | TX7: 0 | TY7: 0 | TZ7: 0 | UA7: 0 | UB7: 0 | UC7: 0 | UD7: 0 | UE7: 0 | UF7: 0 | UG7: 0 | UH7: 0 | UI7: 0 | UJ7: 0 | UK7: 0 | UL7: 0 | UM7: 0 | UN7: 0 | UO7: 0 | UP7: 0 | UQ7: 0 | UR7: 0 | US7: 0 | UT7: 0 | UU7: 0 | UV7: 0 | UW7: 0 | UX7: 0 | UY7: 0 | UZ7: 0 | VA7: 0 | VB7: 0 | VC7: 0 | VD7: 0 | VE7: 0 | VF7: 0 | VG7: 0 | VH7: 0 | VI7: 0 | VJ7: 0 | VK7: 0 | VL7: 0 | VM7: 0 | VN7: 0 | VO7: 0 | VP7: 0 | VQ7: =(AND(VQ4>=$E$7,VQ$4<$F$7))*1 -> 0 | VR7: 0 | VS7: 0 | VT7: 0 | VU7: 0 | VV7: 0 | VW7: 0 | VX7: 0 | VY7: 0 | VZ7: 0 | WA7: 0 | WB7: 0 | WC7: 0 | WD7: 0 | WE7: 0 | WF7: 0 | WG7: 0 | WH7: 0 | WI7: 0 | WJ7: 0 | WK7: 0 | WL7: 0 | WM7: 0 | WN7: 0 | WO7: 0 | WP7: 0 | WQ7: 0 | WR7: 0 | WS7: 0 | WT7: 0 | WU7: 0 | WV7: 0 | WW7: 0 | WX7: 0 | WY7: 0 | WZ7: 0 | XA7: 0 | XB7: 0 | XC7: 0 | XD7: 0 | XE7: 0 | XF7: 0 | XG7: 0 | XH7: 0 | XI7: 0 | XJ7: 0 | XK7: 0 | XL7: 0 | XM7: 0 | XN7: 0 | XO7: 0 | XP7: 0 | XQ7: 0 | XR7: 0 | XS7: 0 | XT7: 0 | XU7: 0 | XV7: 0 | XW7: 0 | XX7: 0 | XY7: 0 | XZ7: 0 | YA7: 0 | YB7: 0 | YC7: =(AND(YC4>=$E$7,YC$4<$F$7))*1 -> 0 | YD7: 0 | YE7: 0 | YF7: 0 | YG7: 0 | YH7: 0 | YI7: 0 | YJ7: 0 | YK7: 0 | YL7: 0 | YM7: 0 | YN7: 0 | YO7: 0 | YP7: 0 | YQ7: 0 | YR7: 0 | YS7: 0 | YT7: 0 | YU7: 0 | YV7: 0 | YW7: 0 | YX7: 0 | YY7: 0 | YZ7: 0 | ZA7: 0 | ZB7: 0 | ZC7: 0 | ZD7: 0 | ZE7: 0 | ZF7: 0 | ZG7: 0 | ZH7: 0 | ZI7: 0 | ZJ7: 0 | ZK7: 0 | ZL7: 0 | ZM7: 0 | ZN7: 0 | ZO7: 0 | ZP7: 0 | ZQ7: 0 | ZR7: 0 | ZS7: 0 | ZT7: 0 | ZU7: 0 | ZV7: 0 | ZW7: 0 | ZX7: 0 | ZY7: 0 | ZZ7: 0 | AAA7: 0 | AAB7: 0 | AAC7: 0 | AAD7: 0 | AAE7: 0 | AAF7: 0 | AAG7: 0 | AAH7: 0 | AAI7: 0 | AAJ7: 0 | AAK7: 0 | AAL7: 0 | AAM7: 0 | AAN7: 0 | AAO7: =(AND(AAO4>=$E$7,AAO$4<$F$7))*1 -> 0 | AAP7: 0 | AAQ7: 0 | AAR7: 0 | AAS7: 0 | AAT7: 0 | AAU7: 0 | AAV7: 0 | AAW7: 0 | AAX7: 0 | AAY7: 0 | AAZ7: 0 | ABA7: 0 | ABB7: 0 | ABC7: 0 | ABD7: 0 | ABE7: 0 | ABF7: 0 | ABG7: 0 | ABH7: 0 | ABI7: 0 | ABJ7: 0 | ABK7: 0 | ABL7: 0 | ABM7: 0 | ABN7: 0 | ABO7: 0 | ABP7: 0 | ABQ7: 0 | ABR7: 0 | ABS7: 0 | ABT7: 0 | ABU7: 0 | ABV7: 0 | ABW7: 0 | ABX7: 0 | ABY7: 0 | ABZ7: 0 | ACA7: 0 | ACB7: 0 | ACC7: 0 | ACD7: 0 | ACE7: 0 | ACF7: 0 | ACG7: 0 | ACH7: 0 | ACI7: 0 | ACJ7: 0 | ACK7: 0 | ACL7: 0 | ACM7: 0 | ACN7: 0 | ACO7: 0 | ACP7: 0 | ACQ7: 0 | ACR7: 0 | ACS7: 0 | ACT7: 0 | ACU7: 0 | ACV7: 0 | ACW7: 0 | ACX7: 0 | ACY7: 0 | ACZ7: 0 | ADA7: =(AND(ADA4>=$E$7,ADA$4<$F$7))*1 -> 0 | ADB7: 0 | ADC7: 0 | ADD7: 0 | ADE7: 0 | ADF7: 0 | ADG7: 0 | ADH7: 0 | ADI7: 0 | ADJ7: 0 | ADK7: 0 | ADL7: 0 | ADM7: 0 | ADN7: 0 | ADO7: 0 | ADP7: 0 | ADQ7: 0 | ADR7: 0 | ADS7: 0 | ADT7: 0 | ADU7: 0 | ADV7: 0 | ADW7: 0 | ADX7: 0 | ADY7: 0 | ADZ7: 0 | AEA7: 0 | AEB7: 0 | AEC7: 0 | AED7: 0 | AEE7: 0
D8: Year | G8: Year | L8: =YEAR(L5) -> 2023 | M8: =YEAR(M5) -> 2023 | N8: 2023 | O8: 2023 | P8: 2023 | Q8: 2023 | R8: 2023 | S8: 2023 | T8: 2023 | U8: 2023 | V8: 2023 | W8: 2023 | X8: 2024 | Y8: 2024 | Z8: 2024 | AA8: 2024 | AB8: 2024 | AC8: 2024 | AD8: 2024 | AE8: 2024 | AF8: 2024 | AG8: 2024 | AH8: 2024 | AI8: 2024 | AJ8: 2025 | AK8: 2025 | AL8: 2025 | AM8: 2025 | AN8: 2025 | AO8: 2025 | AP8: 2025 | AQ8: 2025 | AR8: 2025 | AS8: 2025 | AT8: 2025 | AU8: 2025 | AV8: 2026 | AW8: 2026 | AX8: 2026 | AY8: 2026 | AZ8: 2026 | BA8: 2026 | BB8: 2026 | BC8: 2026 | BD8: 2026 | BE8: 2026 | BF8: 2026 | BG8: 2026 | BH8: 2027 | BI8: 2027 | BJ8: 2027 | BK8: 2027 | BL8: 2027 | BM8: 2027 | BN8: 2027 | BO8: 2027 | BP8: 2027 | BQ8: 2027 | BR8: 2027 | BS8: 2027 | BT8: 2028 | BU8: 2028 | BV8: 2028 | BW8: 2028 | BX8: 2028 | BY8: =YEAR(BY5) -> 2028 | BZ8: 2028 | CA8: 2028 | CB8: 2028 | CC8: 2028 | CD8: 2028 | CE8: 2028 | CF8: 2029 | CG8: 2029 | CH8: 2029 | CI8: 2029 | CJ8: 2029 | CK8: 2029 | CL8: 2029 | CM8: 2029 | CN8: 2029 | CO8: 2029 | CP8: 2029 | CQ8: 2029 | CR8: 2030 | CS8: 2030 | CT8: 2030 | CU8: 2030 | CV8: 2030 | CW8: 2030 | CX8: 2030 | CY8: 2030 | CZ8: 2030 | DA8: 2030 | DB8: 2030 | DC8: 2030 | DD8: 2031 | DE8: 2031 | DF8: 2031 | DG8: 2031 | DH8: 2031 | DI8: 2031 | DJ8: 2031 | DK8: 2031 | DL8: 2031 | DM8: 2031 | DN8: 2031 | DO8: 2031 | DP8: 2032 | DQ8: 2032 | DR8: 2032 | DS8: 2032 | DT8: 2032 | DU8: 2032 | DV8: 2032 | DW8: 2032 | DX8: 2032 | DY8: 2032 | DZ8: 2032 | EA8: 2032 | EB8: 2033 | EC8: 2033 | ED8: 2033 | EE8: 2033 | EF8: 2033 | EG8: 2033 | EH8: 2033 | EI8: 2033 | EJ8: 2033 | EK8: =YEAR(EK5) -> 2033 | EL8: 2033 | EM8: 2033 | EN8: 2034 | EO8: 2034 | EP8: 2034 | EQ8: 2034 | ER8: 2034 | ES8: 2034 | ET8: 2034 | EU8: 2034 | EV8: 2034 | EW8: 2034 | EX8: 2034 | EY8: 2034 | EZ8: 2035 | FA8: 2035 | FB8: 2035 | FC8: 2035 | FD8: 2035 | FE8: 2035 | FF8: 2035 | FG8: 2035 | FH8: 2035 | FI8: 2035 | FJ8: 2035 | FK8: 2035 | FL8: 2036 | FM8: 2036 | FN8: 2036 | FO8: 2036 | FP8: 2036 | FQ8: 2036 | FR8: 2036 | FS8: 2036 | FT8: 2036 | FU8: 2036 | FV8: 2036 | FW8: 2036 | FX8: 2037 | FY8: 2037 | FZ8: 2037 | GA8: 2037 | GB8: 2037 | GC8: 2037 | GD8: 2037 | GE8: 2037 | GF8: 2037 | GG8: 2037 | GH8: 2037 | GI8: 2037 | GJ8: 2038 | GK8: 2038 | GL8: 2038 | GM8: 2038 | GN8: 2038 | GO8: 2038 | GP8: 2038 | GQ8: 2038 | GR8: 2038 | GS8: 2038 | GT8: 2038 | GU8: 2038 | GV8: 2039 | GW8: =YEAR(GW5) -> 2039 | GX8: 2039 | GY8: 2039 | GZ8: 2039 | HA8: 2039 | HB8: 2039 | HC8: 2039 | HD8: 2039 | HE8: 2039 | HF8: 2039 | HG8: 2039 | HH8: 2040 | HI8: 2040 | HJ8: 2040 | HK8: 2040 | HL8: 2040 | HM8: 2040 | HN8: 2040 | HO8: 2040 | HP8: 2040 | HQ8: 2040 | HR8: 2040 | HS8: 2040 | HT8: 2041 | HU8: 2041 | HV8: 2041 | HW8: 2041 | HX8: 2041 | HY8: 2041 | HZ8: 2041 | IA8: 2041 | IB8: 2041 | IC8: 2041 | ID8: 2041 | IE8: 2041 | IF8: 2042 | IG8: 2042 | IH8: 2042 | II8: 2042 | IJ8: 2042 | IK8: 2042 | IL8: 2042 | IM8: 2042 | IN8: 2042 | IO8: 2042 | IP8: 2042 | IQ8: 2042 | IR8: 2043 | IS8: 2043 | IT8: 2043 | IU8: 2043 | IV8: 2043 | IW8: 2043 | IX8: 2043 | IY8: 2043 | IZ8: 2043 | JA8: 2043 | JB8: 2043 | JC8: 2043 | JD8: 2044 | JE8: 2044 | JF8: 2044 | JG8: 2044 | JH8: 2044 | JI8: =YEAR(JI5) -> 2044 | JJ8: 2044 | JK8: 2044 | JL8: 2044 | JM8: 2044 | JN8: 2044 | JO8: 2044 | JP8: 2045 | JQ8: 2045 | JR8: 2045 | JS8: 2045 | JT8: 2045 | JU8: 2045 | JV8: 2045 | JW8: 2045 | JX8: 2045 | JY8: 2045 | JZ8: 2045 | KA8: 2045 | KB8: 2046 | KC8: 2046 | KD8: 2046 | KE8: 2046 | KF8: 2046 | KG8: 2046 | KH8: 2046 | KI8: 2046 | KJ8: 2046 | KK8: 2046 | KL8: 2046 | KM8: 2046 | KN8: 2047 | KO8: 2047 | KP8: 2047 | KQ8: 2047 | KR8: 2047 | KS8: 2047 | KT8: 2047 | KU8: 2047 | KV8: 2047 | KW8: 2047 | KX8: 2047 | KY8: 2047 | KZ8: 2048 | LA8: 2048 | LB8: 2048 | LC8: 2048 | LD8: 2048 | LE8: 2048 | LF8: 2048 | LG8: 2048 | LH8: 2048 | LI8: 2048 | LJ8: 2048 | LK8: 2048 | LL8: 2049 | LM8: 2049 | LN8: 2049 | LO8: 2049 | LP8: 2049 | LQ8: 2049 | LR8: 2049 | LS8: 2049 | LT8: 2049 | LU8: =YEAR(LU5) -> 2049 | LV8: 2049 | LW8: 2049 | LX8: 2050 | LY8: 2050 | LZ8: 2050 | MA8: 2050 | MB8: 2050 | MC8: 2050 | MD8: 2050 | ME8: 2050 | MF8: 2050 | MG8: 2050 | MH8: 2050 | MI8: 2050 | MJ8: 2051 | MK8: 2051 | ML8: 2051 | MM8: 2051 | MN8: 2051 | MO8: 2051 | MP8: 2051 | MQ8: 2051 | MR8: 2051 | MS8: 2051 | MT8: 2051 | MU8: 2051 | MV8: 2052 | MW8: 2052 | MX8: 2052 | MY8: 2052 | MZ8: 2052 | NA8: 2052 | NB8: 2052 | NC8: 2052 | ND8: 2052 | NE8: 2052 | NF8: 2052 | NG8: 2052 | NH8: 2053 | NI8: 2053 | NJ8: 2053 | NK8: 2053 | NL8: 2053 | NM8: 2053 | NN8: 2053 | NO8: 2053 | NP8: 2053 | NQ8: 2053 | NR8: 2053 | NS8: 2053 | NT8: 2054 | NU8: 2054 | NV8: 2054 | NW8: 2054 | NX8: 2054 | NY8: 2054 | NZ8: 2054 | OA8: 2054 | OB8: 2054 | OC8: 2054 | OD8: 2054 | OE8: 2054 | OF8: 2055 | OG8: =YEAR(OG5) -> 2055 | OH8: 2055 | OI8: 2055 | OJ8: 2055 | OK8: 2055 | OL8: 2055 | OM8: 2055 | ON8: 2055 | OO8: 2055 | OP8: 2055 | OQ8: 2055 | OR8: 2056 | OS8: 2056 | OT8: 2056 | OU8: 2056 | OV8: 2056 | OW8: 2056 | OX8: 2056 | OY8: 2056 | OZ8: 2056 | PA8: 2056 | PB8: 2056 | PC8: 2056 | PD8: 2057 | PE8: 2057 | PF8: 2057 | PG8: 2057 | PH8: 2057 | PI8: 2057 | PJ8: 2057 | PK8: 2057 | PL8: 2057 | PM8: 2057 | PN8: 2057 | PO8: 2057 | PP8: 2058 | PQ8: 2058 | PR8: 2058 | PS8: 2058 | PT8: 2058 | PU8: 2058 | PV8: 2058 | PW8: 2058 | PX8: 2058 | PY8: 2058 | PZ8: 2058 | QA8: 2058 | QB8: 2059 | QC8: 2059 | QD8: 2059 | QE8: 2059 | QF8: 2059 | QG8: 2059 | QH8: 2059 | QI8: 2059 | QJ8: 2059 | QK8: 2059 | QL8: 2059 | QM8: 2059 | QN8: 2060 | QO8: 2060 | QP8: 2060 | QQ8: 2060 | QR8: 2060 | QS8: =YEAR(QS5) -> 2060 | QT8: 2060 | QU8: 2060 | QV8: 2060 | QW8: 2060 | QX8: 2060 | QY8: 2060 | QZ8: 2061 | RA8: 2061 | RB8: 2061 | RC8: 2061 | RD8: 2061 | RE8: 2061 | RF8: 2061 | RG8: 2061 | RH8: 2061 | RI8: 2061 | RJ8: 2061 | RK8: 2061 | RL8: 2062 | RM8: 2062 | RN8: 2062 | RO8: 2062 | RP8: 2062 | RQ8: 2062 | RR8: 2062 | RS8: 2062 | RT8: 2062 | RU8: 2062 | RV8: 2062 | RW8: 2062 | RX8: 2063 | RY8: 2063 | RZ8: 2063 | SA8: 2063 | SB8: 2063 | SC8: 2063 | SD8: 2063 | SE8: 2063 | SF8: 2063 | SG8: 2063 | SH8: 2063 | SI8: 2063 | SJ8: 2064 | SK8: 2064 | SL8: 2064 | SM8: 2064 | SN8: 2064 | SO8: 2064 | SP8: 2064 | SQ8: 2064 | SR8: 2064 | SS8: 2064 | ST8: 2064 | SU8: 2064 | SV8: 2065 | SW8: 2065 | SX8: 2065 | SY8: 2065 | SZ8: 2065 | TA8: 2065 | TB8: 2065 | TC8: 2065 | TD8: 2065 | TE8: =YEAR(TE5) -> 2065 | TF8: 2065 | TG8: 2065 | TH8: 2066 | TI8: 2066 | TJ8: 2066 | TK8: 2066 | TL8: 2066 | TM8: 2066 | TN8: 2066 | TO8: 2066 | TP8: 2066 | TQ8: 2066 | TR8: 2066 | TS8: 2066 | TT8: 2067 | TU8: 2067 | TV8: 2067 | TW8: 2067 | TX8: 2067 | TY8: 2067 | TZ8: 2067 | UA8: 2067 | UB8: 2067 | UC8: 2067 | UD8: 2067 | UE8: 2067 | UF8: 2068 | UG8: 2068 | UH8: 2068 | UI8: 2068 | UJ8: 2068 | UK8: 2068 | UL8: 2068 | UM8: 2068 | UN8: 2068 | UO8: 2068 | UP8: 2068 | UQ8: 2068 | UR8: 2069 | US8: 2069 | UT8: 2069 | UU8: 2069 | UV8: 2069 | UW8: 2069 | UX8: 2069 | UY8: 2069 | UZ8: 2069 | VA8: 2069 | VB8: 2069 | VC8: 2069 | VD8: 2070 | VE8: 2070 | VF8: 2070 | VG8: 2070 | VH8: 2070 | VI8: 2070 | VJ8: 2070 | VK8: 2070 | VL8: 2070 | VM8: 2070 | VN8: 2070 | VO8: 2070 | VP8: 2071 | VQ8: =YEAR(VQ5) -> 2071 | VR8: 2071 | VS8: 2071 | VT8: 2071 | VU8: 2071 | VV8: 2071 | VW8: 2071 | VX8: 2071 | VY8: 2071 | VZ8: 2071 | WA8: 2071 | WB8: 2072 | WC8: 2072 | WD8: 2072 | WE8: 2072 | WF8: 2072 | WG8: 2072 | WH8: 2072 | WI8: 2072 | WJ8: 2072 | WK8: 2072 | WL8: 2072 | WM8: 2072 | WN8: 2073 | WO8: 2073 | WP8: 2073 | WQ8: 2073 | WR8: 2073 | WS8: 2073 | WT8: 2073 | WU8: 2073 | WV8: 2073 | WW8: 2073 | WX8: 2073 | WY8: 2073 | WZ8: 2074 | XA8: 2074 | XB8: 2074 | XC8: 2074 | XD8: 2074 | XE8: 2074 | XF8: 2074 | XG8: 2074 | XH8: 2074 | XI8: 2074 | XJ8: 2074 | XK8: 2074 | XL8: 2075 | XM8: 2075 | XN8: 2075 | XO8: 2075 | XP8: 2075 | XQ8: 2075 | XR8: 2075 | XS8: 2075 | XT8: 2075 | XU8: 2075 | XV8: 2075 | XW8: 2075 | XX8: 2076 | XY8: 2076 | XZ8: 2076 | YA8: 2076 | YB8: 2076 | YC8: =YEAR(YC5) -> 2076 | YD8: 2076 | YE8: 2076 | YF8: 2076 | YG8: 2076 | YH8: 2076 | YI8: 2076 | YJ8: 2077 | YK8: 2077 | YL8: 2077 | YM8: 2077 | YN8: 2077 | YO8: 2077 | YP8: 2077 | YQ8: 2077 | YR8: 2077 | YS8: 2077 | YT8: 2077 | YU8: 2077 | YV8: 2078 | YW8: 2078 | YX8: 2078 | YY8: 2078 | YZ8: 2078 | ZA8: 2078 | ZB8: 2078 | ZC8: 2078 | ZD8: 2078 | ZE8: 2078 | ZF8: 2078 | ZG8: 2078 | ZH8: 2079 | ZI8: 2079 | ZJ8: 2079 | ZK8: 2079 | ZL8: 2079 | ZM8: 2079 | ZN8: 2079 | ZO8: 2079 | ZP8: 2079 | ZQ8: 2079 | ZR8: 2079 | ZS8: 2079 | ZT8: 2080 | ZU8: 2080 | ZV8: 2080 | ZW8: 2080 | ZX8: 2080 | ZY8: 2080 | ZZ8: 2080 | AAA8: 2080 | AAB8: 2080 | AAC8: 2080 | AAD8: 2080 | AAE8: 2080 | AAF8: 2081 | AAG8: 2081 | AAH8: 2081 | AAI8: 2081 | AAJ8: 2081 | AAK8: 2081 | AAL8: 2081 | AAM8: 2081 | AAN8: 2081 | AAO8: =YEAR(AAO5) -> 2081 | AAP8: 2081 | AAQ8: 2081 | AAR8: 2082 | AAS8: 2082 | AAT8: 2082 | AAU8: 2082 | AAV8: 2082 | AAW8: 2082 | AAX8: 2082 | AAY8: 2082 | AAZ8: 2082 | ABA8: 2082 | ABB8: 2082 | ABC8: 2082 | ABD8: 2083 | ABE8: 2083 | ABF8: 2083 | ABG8: 2083 | ABH8: 2083 | ABI8: 2083 | ABJ8: 2083 | ABK8: 2083 | ABL8: 2083 | ABM8: 2083 | ABN8: 2083 | ABO8: 2083 | ABP8: 2084 | ABQ8: 2084 | ABR8: 2084 | ABS8: 2084 | ABT8: 2084 | ABU8: 2084 | ABV8: 2084 | ABW8: 2084 | ABX8: 2084 | ABY8: 2084 | ABZ8: 2084 | ACA8: 2084 | ACB8: 2085 | ACC8: 2085 | ACD8: 2085 | ACE8: 2085 | ACF8: 2085 | ACG8: 2085 | ACH8: 2085 | ACI8: 2085 | ACJ8: 2085 | ACK8: 2085 | ACL8: 2085 | ACM8: 2085 | ACN8: 2086 | ACO8: 2086 | ACP8: 2086 | ACQ8: 2086 | ACR8: 2086 | ACS8: 2086 | ACT8: 2086 | ACU8: 2086 | ACV8: 2086 | ACW8: 2086 | ACX8: 2086 | ACY8: 2086 | ACZ8: 2087 | ADA8: =YEAR(ADA5) -> 2087 | ADB8: 2087 | ADC8: 2087 | ADD8: 2087 | ADE8: 2087 | ADF8: 2087 | ADG8: 2087 | ADH8: 2087 | ADI8: 2087 | ADJ8: 2087 | ADK8: 2087 | ADL8: 2088 | ADM8: 2088 | ADN8: 2088 | ADO8: 2088 | ADP8: 2088 | ADQ8: 2088 | ADR8: 2088 | ADS8: 2088 | ADT8: 2088 | ADU8: 2088 | ADV8: 2088 | ADW8: 2088 | ADX8: 2089 | ADY8: 2089 | ADZ8: 2089 | AEA8: 2089 | AEB8: 2089 | AEC8: 2089 | AED8: 2089 | AEE8: 2089
B10: Operations
D11: Nominal EBITDA | G11: Euro | H11: =J11='Operation Monthly'!J37 -> TRUE | J11: =SUM(L11:XFD11) -> 0
D12: Real EBITDA | G12: Euro | H12: =J12='Operation Monthly'!J36 -> TRUE | J12: =SUM(L12:XFD12) -> 0
D13: Capital Expenditures | G13: Euro | J13: =SUM(L13:XFD13) -> 0
B15: Simple Debt
D16: Debt Percent and Amount | E16: ='InputC-Financing'!E14 -> 0.8 | F16: =E16*J13 -> 0
D17: Interest Rate | E17: ='InputC-Financing'!E20 -> 0.043 | F17: =E17/12 -> 0.003583333333 | G17: % p.p. | L17: =$F$17 -> 0.003583333333 | M17: =$F$17 -> 0.003583333333 | N17: 0.003583333333 | O17: 0.003583333333 | P17: 0.003583333333 | Q17: 0.003583333333 | R17: 0.003583333333 | S17: 0.003583333333 | T17: 0.003583333333 | U17: 0.003583333333 | V17: 0.003583333333 | W17: 0.003583333333 | X17: 0.003583333333 | Y17: 0.003583333333 | Z17: 0.003583333333 | AA17: 0.003583333333 | AB17: 0.003583333333 | AC17: 0.003583333333 | AD17: 0.003583333333 | AE17: 0.003583333333 | AF17: 0.003583333333 | AG17: 0.003583333333 | AH17: 0.003583333333 | AI17: 0.003583333333 | AJ17: 0.003583333333 | AK17: 0.003583333333 | AL17: 0.003583333333 | AM17: 0.003583333333 | AN17: 0.003583333333 | AO17: 0.003583333333 | AP17: 0.003583333333 | AQ17: 0.003583333333 | AR17: 0.003583333333 | AS17: 0.003583333333 | AT17: 0.003583333333 | AU17: 0.003583333333 | AV17: 0.003583333333 | AW17: 0.003583333333 | AX17: 0.003583333333 | AY17: 0.003583333333 | AZ17: 0.003583333333 | BA17: 0.003583333333 | BB17: 0.003583333333 | BC17: 0.003583333333 | BD17: 0.003583333333 | BE17: 0.003583333333 | BF17: 0.003583333333 | BG17: 0.003583333333 | BH17: 0.003583333333 | BI17: 0.003583333333 | BJ17: 0.003583333333 | BK17: 0.003583333333 | BL17: 0.003583333333 | BM17: 0.003583333333 | BN17: 0.003583333333 | BO17: 0.003583333333 | BP17: 0.003583333333 | BQ17: 0.003583333333 | BR17: 0.003583333333 | BS17: 0.003583333333 | BT17: 0.003583333333 | BU17: 0.003583333333 | BV17: 0.003583333333 | BW17: 0.003583333333 | BX17: 0.003583333333 | BY17: =$F$17 -> 0.003583333333 | BZ17: 0.003583333333 | CA17: 0.003583333333 | CB17: 0.003583333333 | CC17: 0.003583333333 | CD17: 0.003583333333 | CE17: 0.003583333333 | CF17: 0.003583333333 | CG17: 0.003583333333 | CH17: 0.003583333333 | CI17: 0.003583333333 | CJ17: 0.003583333333 | CK17: 0.003583333333 | CL17: 0.003583333333 | CM17: 0.003583333333 | CN17: 0.003583333333 | CO17: 0.003583333333 | CP17: 0.003583333333 | CQ17: 0.003583333333 | CR17: 0.003583333333 | CS17: 0.003583333333 | CT17: 0.003583333333 | CU17: 0.003583333333 | CV17: 0.003583333333 | CW17: 0.003583333333 | CX17: 0.003583333333 | CY17: 0.003583333333 | CZ17: 0.003583333333 | DA17: 0.003583333333 | DB17: 0.003583333333 | DC17: 0.003583333333 | DD17: 0.003583333333 | DE17: 0.003583333333 | DF17: 0.003583333333 | DG17: 0.003583333333 | DH17: 0.003583333333 | DI17: 0.003583333333 | DJ17: 0.003583333333 | DK17: 0.003583333333 | DL17: 0.003583333333 | DM17: 0.003583333333 | DN17: 0.003583333333 | DO17: 0.003583333333 | DP17: 0.003583333333 | DQ17: 0.003583333333 | DR17: 0.003583333333 | DS17: 0.003583333333 | DT17: 0.003583333333 | DU17: 0.003583333333 | DV17: 0.003583333333 | DW17: 0.003583333333 | DX17: 0.003583333333 | DY17: 0.003583333333 | DZ17: 0.003583333333 | EA17: 0.003583333333 | EB17: 0.003583333333 | EC17: 0.003583333333 | ED17: 0.003583333333 | EE17: 0.003583333333 | EF17: 0.003583333333 | EG17: 0.003583333333 | EH17: 0.003583333333 | EI17: 0.003583333333 | EJ17: 0.003583333333 | EK17: =$F$17 -> 0.003583333333 | EL17: 0.003583333333 | EM17: 0.003583333333 | EN17: 0.003583333333 | EO17: 0.003583333333 | EP17: 0.003583333333 | EQ17: 0.003583333333 | ER17: 0.003583333333 | ES17: 0.003583333333 | ET17: 0.003583333333 | EU17: 0.003583333333 | EV17: 0.003583333333 | EW17: 0.003583333333 | EX17: 0.003583333333 | EY17: 0.003583333333 | EZ17: 0.003583333333 | FA17: 0.003583333333 | FB17: 0.003583333333 | FC17: 0.003583333333 | FD17: 0.003583333333 | FE17: 0.003583333333 | FF17: 0.003583333333 | FG17: 0.003583333333 | FH17: 0.003583333333 | FI17: 0.003583333333 | FJ17: 0.003583333333 | FK17: 0.003583333333 | FL17: 0.003583333333 | FM17: 0.003583333333 | FN17: 0.003583333333 | FO17: 0.003583333333 | FP17: 0.003583333333 | FQ17: 0.003583333333 | FR17: 0.003583333333 | FS17: 0.003583333333 | FT17: 0.003583333333 | FU17: 0.003583333333 | FV17: 0.003583333333 | FW17: 0.003583333333 | FX17: 0.003583333333 | FY17: 0.003583333333 | FZ17: 0.003583333333 | GA17: 0.003583333333 | GB17: 0.003583333333 | GC17: 0.003583333333 | GD17: 0.003583333333 | GE17: 0.003583333333 | GF17: 0.003583333333 | GG17: 0.003583333333 | GH17: 0.003583333333 | GI17: 0.003583333333 | GJ17: 0.003583333333 | GK17: 0.003583333333 | GL17: 0.003583333333 | GM17: 0.003583333333 | GN17: 0.003583333333 | GO17: 0.003583333333 | GP17: 0.003583333333 | GQ17: 0.003583333333 | GR17: 0.003583333333 | GS17: 0.003583333333 | GT17: 0.003583333333 | GU17: 0.003583333333 | GV17: 0.003583333333 | GW17: =$F$17 -> 0.003583333333 | GX17: 0.003583333333 | GY17: 0.003583333333 | GZ17: 0.003583333333 | HA17: 0.003583333333 | HB17: 0.003583333333 | HC17: 0.003583333333 | HD17: 0.003583333333 | HE17: 0.003583333333 | HF17: 0.003583333333 | HG17: 0.003583333333 | HH17: 0.003583333333 | HI17: 0.003583333333 | HJ17: 0.003583333333 | HK17: 0.003583333333 | HL17: 0.003583333333 | HM17: 0.003583333333 | HN17: 0.003583333333 | HO17: 0.003583333333 | HP17: 0.003583333333 | HQ17: 0.003583333333 | HR17: 0.003583333333 | HS17: 0.003583333333 | HT17: 0.003583333333 | HU17: 0.003583333333 | HV17: 0.003583333333 | HW17: 0.003583333333 | HX17: 0.003583333333 | HY17: 0.003583333333 | HZ17: 0.003583333333 | IA17: 0.003583333333 | IB17: 0.003583333333 | IC17: 0.003583333333 | ID17: 0.003583333333 | IE17: 0.003583333333 | IF17: 0.003583333333 | IG17: 0.003583333333 | IH17: 0.003583333333 | II17: 0.003583333333 | IJ17: 0.003583333333 | IK17: 0.003583333333 | IL17: 0.003583333333 | IM17: 0.003583333333 | IN17: 0.003583333333 | IO17: 0.003583333333 | IP17: 0.003583333333 | IQ17: 0.003583333333 | IR17: 0.003583333333 | IS17: 0.003583333333 | IT17: 0.003583333333 | IU17: 0.003583333333 | IV17: 0.003583333333 | IW17: 0.003583333333 | IX17: 0.003583333333 | IY17: 0.003583333333 | IZ17: 0.003583333333 | JA17: 0.003583333333 | JB17: 0.003583333333 | JC17: 0.003583333333 | JD17: 0.003583333333 | JE17: 0.003583333333 | JF17: 0.003583333333 | JG17: 0.003583333333 | JH17: 0.003583333333 | JI17: =$F$17 -> 0.003583333333 | JJ17: 0.003583333333 | JK17: 0.003583333333 | JL17: 0.003583333333 | JM17: 0.003583333333 | JN17: 0.003583333333 | JO17: 0.003583333333 | JP17: 0.003583333333 | JQ17: 0.003583333333 | JR17: 0.003583333333 | JS17: 0.003583333333 | JT17: 0.003583333333 | JU17: 0.003583333333 | JV17: 0.003583333333 | JW17: 0.003583333333 | JX17: 0.003583333333 | JY17: 0.003583333333 | JZ17: 0.003583333333 | KA17: 0.003583333333 | KB17: 0.003583333333 | KC17: 0.003583333333 | KD17: 0.003583333333 | KE17: 0.003583333333 | KF17: 0.003583333333 | KG17: 0.003583333333 | KH17: 0.003583333333 | KI17: 0.003583333333 | KJ17: 0.003583333333 | KK17: 0.003583333333 | KL17: 0.003583333333 | KM17: 0.003583333333 | KN17: 0.003583333333 | KO17: 0.003583333333 | KP17: 0.003583333333 | KQ17: 0.003583333333 | KR17: 0.003583333333 | KS17: 0.003583333333 | KT17: 0.003583333333 | KU17: 0.003583333333 | KV17: 0.003583333333 | KW17: 0.003583333333 | KX17: 0.003583333333 | KY17: 0.003583333333 | KZ17: 0.003583333333 | LA17: 0.003583333333 | LB17: 0.003583333333 | LC17: 0.003583333333 | LD17: 0.003583333333 | LE17: 0.003583333333 | LF17: 0.003583333333 | LG17: 0.003583333333 | LH17: 0.003583333333 | LI17: 0.003583333333 | LJ17: 0.003583333333 | LK17: 0.003583333333 | LL17: 0.003583333333 | LM17: 0.003583333333 | LN17: 0.003583333333 | LO17: 0.003583333333 | LP17: 0.003583333333 | LQ17: 0.003583333333 | LR17: 0.003583333333 | LS17: 0.003583333333 | LT17: 0.003583333333 | LU17: =$F$17 -> 0.003583333333 | LV17: 0.003583333333 | LW17: 0.003583333333 | LX17: 0.003583333333 | LY17: 0.003583333333 | LZ17: 0.003583333333 | MA17: 0.003583333333 | MB17: 0.003583333333 | MC17: 0.003583333333 | MD17: 0.003583333333 | ME17: 0.003583333333 | MF17: 0.003583333333 | MG17: 0.003583333333 | MH17: 0.003583333333 | MI17: 0.003583333333 | MJ17: 0.003583333333 | MK17: 0.003583333333 | ML17: 0.003583333333 | MM17: 0.003583333333 | MN17: 0.003583333333 | MO17: 0.003583333333 | MP17: 0.003583333333 | MQ17: 0.003583333333 | MR17: 0.003583333333 | MS17: 0.003583333333 | MT17: 0.003583333333 | MU17: 0.003583333333 | MV17: 0.003583333333 | MW17: 0.003583333333 | MX17: 0.003583333333 | MY17: 0.003583333333 | MZ17: 0.003583333333 | NA17: 0.003583333333 | NB17: 0.003583333333 | NC17: 0.003583333333 | ND17: 0.003583333333 | NE17: 0.003583333333 | NF17: 0.003583333333 | NG17: 0.003583333333 | NH17: 0.003583333333 | NI17: 0.003583333333 | NJ17: 0.003583333333 | NK17: 0.003583333333 | NL17: 0.003583333333 | NM17: 0.003583333333 | NN17: 0.003583333333 | NO17: 0.003583333333 | NP17: 0.003583333333 | NQ17: 0.003583333333 | NR17: 0.003583333333 | NS17: 0.003583333333 | NT17: 0.003583333333 | NU17: 0.003583333333 | NV17: 0.003583333333 | NW17: 0.003583333333 | NX17: 0.003583333333 | NY17: 0.003583333333 | NZ17: 0.003583333333 | OA17: 0.003583333333 | OB17: 0.003583333333 | OC17: 0.003583333333 | OD17: 0.003583333333 | OE17: 0.003583333333 | OF17: 0.003583333333 | OG17: =$F$17 -> 0.003583333333 | OH17: 0.003583333333 | OI17: 0.003583333333 | OJ17: 0.003583333333 | OK17: 0.003583333333 | OL17: 0.003583333333 | OM17: 0.003583333333 | ON17: 0.003583333333 | OO17: 0.003583333333 | OP17: 0.003583333333 | OQ17: 0.003583333333 | OR17: 0.003583333333 | OS17: 0.003583333333 | OT17: 0.003583333333 | OU17: 0.003583333333 | OV17: 0.003583333333 | OW17: 0.003583333333 | OX17: 0.003583333333 | OY17: 0.003583333333 | OZ17: 0.003583333333 | PA17: 0.003583333333 | PB17: 0.003583333333 | PC17: 0.003583333333 | PD17: 0.003583333333 | PE17: 0.003583333333 | PF17: 0.003583333333 | PG17: 0.003583333333 | PH17: 0.003583333333 | PI17: 0.003583333333 | PJ17: 0.003583333333 | PK17: 0.003583333333 | PL17: 0.003583333333 | PM17: 0.003583333333 | PN17: 0.003583333333 | PO17: 0.003583333333 | PP17: 0.003583333333 | PQ17: 0.003583333333 | PR17: 0.003583333333 | PS17: 0.003583333333 | PT17: 0.003583333333 | PU17: 0.003583333333 | PV17: 0.003583333333 | PW17: 0.003583333333 | PX17: 0.003583333333 | PY17: 0.003583333333 | PZ17: 0.003583333333 | QA17: 0.003583333333 | QB17: 0.003583333333 | QC17: 0.003583333333 | QD17: 0.003583333333 | QE17: 0.003583333333 | QF17: 0.003583333333 | QG17: 0.003583333333 | QH17: 0.003583333333 | QI17: 0.003583333333 | QJ17: 0.003583333333 | QK17: 0.003583333333 | QL17: 0.003583333333 | QM17: 0.003583333333 | QN17: 0.003583333333 | QO17: 0.003583333333 | QP17: 0.003583333333 | QQ17: 0.003583333333 | QR17: 0.003583333333 | QS17: =$F$17 -> 0.003583333333 | QT17: 0.003583333333 | QU17: 0.003583333333 | QV17: 0.003583333333 | QW17: 0.003583333333 | QX17: 0.003583333333 | QY17: 0.003583333333 | QZ17: 0.003583333333 | RA17: 0.003583333333 | RB17: 0.003583333333 | RC17: 0.003583333333 | RD17: 0.003583333333 | RE17: 0.003583333333 | RF17: 0.003583333333 | RG17: 0.003583333333 | RH17: 0.003583333333 | RI17: 0.003583333333 | RJ17: 0.003583333333 | RK17: 0.003583333333 | RL17: 0.003583333333 | RM17: 0.003583333333 | RN17: 0.003583333333 | RO17: 0.003583333333 | RP17: 0.003583333333 | RQ17: 0.003583333333 | RR17: 0.003583333333 | RS17: 0.003583333333 | RT17: 0.003583333333 | RU17: 0.003583333333 | RV17: 0.003583333333 | RW17: 0.003583333333 | RX17: 0.003583333333 | RY17: 0.003583333333 | RZ17: 0.003583333333 | SA17: 0.003583333333 | SB17: 0.003583333333 | SC17: 0.003583333333 | SD17: 0.003583333333 | SE17: 0.003583333333 | SF17: 0.003583333333 | SG17: 0.003583333333 | SH17: 0.003583333333 | SI17: 0.003583333333 | SJ17: 0.003583333333 | SK17: 0.003583333333 | SL17: 0.003583333333 | SM17: 0.003583333333 | SN17: 0.003583333333 | SO17: 0.003583333333 | SP17: 0.003583333333 | SQ17: 0.003583333333 | SR17: 0.003583333333 | SS17: 0.003583333333 | ST17: 0.003583333333 | SU17: 0.003583333333 | SV17: 0.003583333333 | SW17: 0.003583333333 | SX17: 0.003583333333 | SY17: 0.003583333333 | SZ17: 0.003583333333 | TA17: 0.003583333333 | TB17: 0.003583333333 | TC17: 0.003583333333 | TD17: 0.003583333333 | TE17: =$F$17 -> 0.003583333333 | TF17: 0.003583333333 | TG17: 0.003583333333 | TH17: 0.003583333333 | TI17: 0.003583333333 | TJ17: 0.003583333333 | TK17: 0.003583333333 | TL17: 0.003583333333 | TM17: 0.003583333333 | TN17: 0.003583333333 | TO17: 0.003583333333 | TP17: 0.003583333333 | TQ17: 0.003583333333 | TR17: 0.003583333333 | TS17: 0.003583333333 | TT17: 0.003583333333 | TU17: 0.003583333333 | TV17: 0.003583333333 | TW17: 0.003583333333 | TX17: 0.003583333333 | TY17: 0.003583333333 | TZ17: 0.003583333333 | UA17: 0.003583333333 | UB17: 0.003583333333 | UC17: 0.003583333333 | UD17: 0.003583333333 | UE17: 0.003583333333 | UF17: 0.003583333333 | UG17: 0.003583333333 | UH17: 0.003583333333 | UI17: 0.003583333333 | UJ17: 0.003583333333 | UK17: 0.003583333333 | UL17: 0.003583333333 | UM17: 0.003583333333 | UN17: 0.003583333333 | UO17: 0.003583333333 | UP17: 0.003583333333 | UQ17: 0.003583333333 | UR17: 0.003583333333 | US17: 0.003583333333 | UT17: 0.003583333333 | UU17: 0.003583333333 | UV17: 0.003583333333 | UW17: 0.003583333333 | UX17: 0.003583333333 | UY17: 0.003583333333 | UZ17: 0.003583333333 | VA17: 0.003583333333 | VB17: 0.003583333333 | VC17: 0.003583333333 | VD17: 0.003583333333 | VE17: 0.003583333333 | VF17: 0.003583333333 | VG17: 0.003583333333 | VH17: 0.003583333333 | VI17: 0.003583333333 | VJ17: 0.003583333333 | VK17: 0.003583333333 | VL17: 0.003583333333 | VM17: 0.003583333333 | VN17: 0.003583333333 | VO17: 0.003583333333 | VP17: 0.003583333333 | VQ17: =$F$17 -> 0.003583333333 | VR17: 0.003583333333 | VS17: 0.003583333333 | VT17: 0.003583333333 | VU17: 0.003583333333 | VV17: 0.003583333333 | VW17: 0.003583333333 | VX17: 0.003583333333 | VY17: 0.003583333333 | VZ17: 0.003583333333 | WA17: 0.003583333333 | WB17: 0.003583333333 | WC17: 0.003583333333 | WD17: 0.003583333333 | WE17: 0.003583333333 | WF17: 0.003583333333 | WG17: 0.003583333333 | WH17: 0.003583333333 | WI17: 0.003583333333 | WJ17: 0.003583333333 | WK17: 0.003583333333 | WL17: 0.003583333333 | WM17: 0.003583333333 | WN17: 0.003583333333 | WO17: 0.003583333333 | WP17: 0.003583333333 | WQ17: 0.003583333333 | WR17: 0.003583333333 | WS17: 0.003583333333 | WT17: 0.003583333333 | WU17: 0.003583333333 | WV17: 0.003583333333 | WW17: 0.003583333333 | WX17: 0.003583333333 | WY17: 0.003583333333 | WZ17: 0.003583333333 | XA17: 0.003583333333 | XB17: 0.003583333333 | XC17: 0.003583333333 | XD17: 0.003583333333 | XE17: 0.003583333333 | XF17: 0.003583333333 | XG17: 0.003583333333 | XH17: 0.003583333333 | XI17: 0.003583333333 | XJ17: 0.003583333333 | XK17: 0.003583333333 | XL17: 0.003583333333 | XM17: 0.003583333333 | XN17: 0.003583333333 | XO17: 0.003583333333 | XP17: 0.003583333333 | XQ17: 0.003583333333 | XR17: 0.003583333333 | XS17: 0.003583333333 | XT17: 0.003583333333 | XU17: 0.003583333333 | XV17: 0.003583333333 | XW17: 0.003583333333 | XX17: 0.003583333333 | XY17: 0.003583333333 | XZ17: 0.003583333333 | YA17: 0.003583333333 | YB17: 0.003583333333 | YC17: =$F$17 -> 0.003583333333 | YD17: 0.003583333333 | YE17: 0.003583333333 | YF17: 0.003583333333 | YG17: 0.003583333333 | YH17: 0.003583333333 | YI17: 0.003583333333 | YJ17: 0.003583333333 | YK17: 0.003583333333 | YL17: 0.003583333333 | YM17: 0.003583333333 | YN17: 0.003583333333 | YO17: 0.003583333333 | YP17: 0.003583333333 | YQ17: 0.003583333333 | YR17: 0.003583333333 | YS17: 0.003583333333 | YT17: 0.003583333333 | YU17: 0.003583333333 | YV17: 0.003583333333 | YW17: 0.003583333333 | YX17: 0.003583333333 | YY17: 0.003583333333 | YZ17: 0.003583333333 | ZA17: 0.003583333333 | ZB17: 0.003583333333 | ZC17: 0.003583333333 | ZD17: 0.003583333333 | ZE17: 0.003583333333 | ZF17: 0.003583333333 | ZG17: 0.003583333333 | ZH17: 0.003583333333 | ZI17: 0.003583333333 | ZJ17: 0.003583333333 | ZK17: 0.003583333333 | ZL17: 0.003583333333 | ZM17: 0.003583333333 | ZN17: 0.003583333333 | ZO17: 0.003583333333 | ZP17: 0.003583333333 | ZQ17: 0.003583333333 | ZR17: 0.003583333333 | ZS17: 0.003583333333 | ZT17: 0.003583333333 | ZU17: 0.003583333333 | ZV17: 0.003583333333 | ZW17: 0.003583333333 | ZX17: 0.003583333333 | ZY17: 0.003583333333 | ZZ17: 0.003583333333 | AAA17: 0.003583333333 | AAB17: 0.003583333333 | AAC17: 0.003583333333 | AAD17: 0.003583333333 | AAE17: 0.003583333333 | AAF17: 0.003583333333 | AAG17: 0.003583333333 | AAH17: 0.003583333333 | AAI17: 0.003583333333 | AAJ17: 0.003583333333 | AAK17: 0.003583333333 | AAL17: 0.003583333333 | AAM17: 0.003583333333 | AAN17: 0.003583333333 | AAO17: =$F$17 -> 0.003583333333 | AAP17: 0.003583333333 | AAQ17: 0.003583333333 | AAR17: 0.003583333333 | AAS17: 0.003583333333 | AAT17: 0.003583333333 | AAU17: 0.003583333333 | AAV17: 0.003583333333 | AAW17: 0.003583333333 | AAX17: 0.003583333333 | AAY17: 0.003583333333 | AAZ17: 0.003583333333 | ABA17: 0.003583333333 | ABB17: 0.003583333333 | ABC17: 0.003583333333 | ABD17: 0.003583333333 | ABE17: 0.003583333333 | ABF17: 0.003583333333 | ABG17: 0.003583333333 | ABH17: 0.003583333333 | ABI17: 0.003583333333 | ABJ17: 0.003583333333 | ABK17: 0.003583333333 | ABL17: 0.003583333333 | ABM17: 0.003583333333 | ABN17: 0.003583333333 | ABO17: 0.003583333333 | ABP17: 0.003583333333 | ABQ17: 0.003583333333 | ABR17: 0.003583333333 | ABS17: 0.003583333333 | ABT17: 0.003583333333 | ABU17: 0.003583333333 | ABV17: 0.003583333333 | ABW17: 0.003583333333 | ABX17: 0.003583333333 | ABY17: 0.003583333333 | ABZ17: 0.003583333333 | ACA17: 0.003583333333 | ACB17: 0.003583333333 | ACC17: 0.003583333333 | ACD17: 0.003583333333 | ACE17: 0.003583333333 | ACF17: 0.003583333333 | ACG17: 0.003583333333 | ACH17: 0.003583333333 | ACI17: 0.003583333333 | ACJ17: 0.003583333333 | ACK17: 0.003583333333 | ACL17: 0.003583333333 | ACM17: 0.003583333333 | ACN17: 0.003583333333 | ACO17: 0.003583333333 | ACP17: 0.003583333333 | ACQ17: 0.003583333333 | ACR17: 0.003583333333 | ACS17: 0.003583333333 | ACT17: 0.003583333333 | ACU17: 0.003583333333 | ACV17: 0.003583333333 | ACW17: 0.003583333333 | ACX17: 0.003583333333 | ACY17: 0.003583333333 | ACZ17: 0.003583333333 | ADA17: =$F$17 -> 0.003583333333 | ADB17: 0.003583333333 | ADC17: 0.003583333333 | ADD17: 0.003583333333 | ADE17: 0.003583333333 | ADF17: 0.003583333333 | ADG17: 0.003583333333 | ADH17: 0.003583333333 | ADI17: 0.003583333333 | ADJ17: 0.003583333333 | ADK17: 0.003583333333 | ADL17: 0.003583333333 | ADM17: 0.003583333333 | ADN17: 0.003583333333 | ADO17: 0.003583333333 | ADP17: 0.003583333333 | ADQ17: 0.003583333333 | ADR17: 0.003583333333 | ADS17: 0.003583333333 | ADT17: 0.003583333333 | ADU17: 0.003583333333 | ADV17: 0.003583333333 | ADW17: 0.003583333333 | ADX17: 0.003583333333 | ADY17: 0.003583333333 | ADZ17: 0.003583333333 | AEA17: 0.003583333333 | AEB17: 0.003583333333 | AEC17: 0.003583333333 | AED17: 0.003583333333 | AEE17: 0.003583333333
D18: Tenure | E18: ='InputC-Financing'!E16*Months -> 300 | G18: Months
D20: Monthly Payment
D22: Payment Period | G22: Flag | J22: =SUM(L22:XFD22) -> 0
D24: Total Debt Service | E24: =E20 -> 0 | G24: Euro | L24: =$E$24*L22 -> 0 | M24: =$E$24*M22 -> 0 | N24: 0 | O24: 0 | P24: 0 | Q24: 0 | R24: 0 | S24: 0 | T24: 0 | U24: 0 | V24: 0 | W24: 0 | X24: 0 | Y24: 0 | Z24: 0 | AA24: 0 | AB24: 0 | AC24: 0 | AD24: 0 | AE24: 0 | AF24: 0 | AG24: 0 | AH24: 0 | AI24: 0 | AJ24: 0 | AK24: 0 | AL24: 0 | AM24: 0 | AN24: 0 | AO24: 0 | AP24: 0 | AQ24: 0 | AR24: 0 | AS24: 0 | AT24: 0 | AU24: 0 | AV24: 0 | AW24: 0 | AX24: 0 | AY24: 0 | AZ24: 0 | BA24: 0 | BB24: 0 | BC24: 0 | BD24: 0 | BE24: 0 | BF24: 0 | BG24: 0 | BH24: 0 | BI24: 0 | BJ24: 0 | BK24: 0 | BL24: 0 | BM24: 0 | BN24: 0 | BO24: 0 | BP24: 0 | BQ24: 0 | BR24: 0 | BS24: 0 | BT24: 0 | BU24: 0 | BV24: 0 | BW24: 0 | BX24: 0 | BY24: =$E$24*BY22 -> 0 | BZ24: 0 | CA24: 0 | CB24: 0 | CC24: 0 | CD24: 0 | CE24: 0 | CF24: 0 | CG24: 0 | CH24: 0 | CI24: 0 | CJ24: 0 | CK24: 0 | CL24: 0 | CM24: 0 | CN24: 0 | CO24: 0 | CP24: 0 | CQ24: 0 | CR24: 0 | CS24: 0 | CT24: 0 | CU24: 0 | CV24: 0 | CW24: 0 | CX24: 0 | CY24: 0 | CZ24: 0 | DA24: 0 | DB24: 0 | DC24: 0 | DD24: 0 | DE24: 0 | DF24: 0 | DG24: 0 | DH24: 0 | DI24: 0 | DJ24: 0 | DK24: 0 | DL24: 0 | DM24: 0 | DN24: 0 | DO24: 0 | DP24: 0 | DQ24: 0 | DR24: 0 | DS24: 0 | DT24: 0 | DU24: 0 | DV24: 0 | DW24: 0 | DX24: 0 | DY24: 0 | DZ24: 0 | EA24: 0 | EB24: 0 | EC24: 0 | ED24: 0 | EE24: 0 | EF24: 0 | EG24: 0 | EH24: 0 | EI24: 0 | EJ24: 0 | EK24: =$E$24*EK22 -> 0 | EL24: 0 | EM24: 0 | EN24: 0 | EO24: 0 | EP24: 0 | EQ24: 0 | ER24: 0 | ES24: 0 | ET24: 0 | EU24: 0 | EV24: 0 | EW24: 0 | EX24: 0 | EY24: 0 | EZ24: 0 | FA24: 0 | FB24: 0 | FC24: 0 | FD24: 0 | FE24: 0 | FF24: 0 | FG24: 0 | FH24: 0 | FI24: 0 | FJ24: 0 | FK24: 0 | FL24: 0 | FM24: 0 | FN24: 0 | FO24: 0 | FP24: 0 | FQ24: 0 | FR24: 0 | FS24: 0 | FT24: 0 | FU24: 0 | FV24: 0 | FW24: 0 | FX24: 0 | FY24: 0 | FZ24: 0 | GA24: 0 | GB24: 0 | GC24: 0 | GD24: 0 | GE24: 0 | GF24: 0 | GG24: 0 | GH24: 0 | GI24: 0 | GJ24: 0 | GK24: 0 | GL24: 0 | GM24: 0 | GN24: 0 | GO24: 0 | GP24: 0 | GQ24: 0 | GR24: 0 | GS24: 0 | GT24: 0 | GU24: 0 | GV24: 0 | GW24: =$E$24*GW22 -> 0 | GX24: 0 | GY24: 0 | GZ24: 0 | HA24: 0 | HB24: 0 | HC24: 0 | HD24: 0 | HE24: 0 | HF24: 0 | HG24: 0 | HH24: 0 | HI24: 0 | HJ24: 0 | HK24: 0 | HL24: 0 | HM24: 0 | HN24: 0 | HO24: 0 | HP24: 0 | HQ24: 0 | HR24: 0 | HS24: 0 | HT24: 0 | HU24: 0 | HV24: 0 | HW24: 0 | HX24: 0 | HY24: 0 | HZ24: 0 | IA24: 0 | IB24: 0 | IC24: 0 | ID24: 0 | IE24: 0 | IF24: 0 | IG24: 0 | IH24: 0 | II24: 0 | IJ24: 0 | IK24: 0 | IL24: 0 | IM24: 0 | IN24: 0 | IO24: 0 | IP24: 0 | IQ24: 0 | IR24: 0 | IS24: 0 | IT24: 0 | IU24: 0 | IV24: 0 | IW24: 0 | IX24: 0 | IY24: 0 | IZ24: 0 | JA24: 0 | JB24: 0 | JC24: 0 | JD24: 0 | JE24: 0 | JF24: 0 | JG24: 0 | JH24: 0 | JI24: =$E$24*JI22 -> 0 | JJ24: 0 | JK24: 0 | JL24: 0 | JM24: 0 | JN24: 0 | JO24: 0 | JP24: 0 | JQ24: 0 | JR24: 0 | JS24: 0 | JT24: 0 | JU24: 0 | JV24: 0 | JW24: 0 | JX24: 0 | JY24: 0 | JZ24: 0 | KA24: 0 | KB24: 0 | KC24: 0 | KD24: 0 | KE24: 0 | KF24: 0 | KG24: 0 | KH24: 0 | KI24: 0 | KJ24: 0 | KK24: 0 | KL24: 0 | KM24: 0 | KN24: 0 | KO24: 0 | KP24: 0 | KQ24: 0 | KR24: 0 | KS24: 0 | KT24: 0 | KU24: 0 | KV24: 0 | KW24: 0 | KX24: 0 | KY24: 0 | KZ24: 0 | LA24: 0 | LB24: 0 | LC24: 0 | LD24: 0 | LE24: 0 | LF24: 0 | LG24: 0 | LH24: 0 | LI24: 0 | LJ24: 0 | LK24: 0 | LL24: 0 | LM24: 0 | LN24: 0 | LO24: 0 | LP24: 0 | LQ24: 0 | LR24: 0 | LS24: 0 | LT24: 0 | LU24: =$E$24*LU22 -> 0 | LV24: 0 | LW24: 0 | LX24: 0 | LY24: 0 | LZ24: 0 | MA24: 0 | MB24: 0 | MC24: 0 | MD24: 0 | ME24: 0 | MF24: 0 | MG24: 0 | MH24: 0 | MI24: 0 | MJ24: 0 | MK24: 0 | ML24: 0 | MM24: 0 | MN24: 0 | MO24: 0 | MP24: 0 | MQ24: 0 | MR24: 0 | MS24: 0 | MT24: 0 | MU24: 0 | MV24: 0 | MW24: 0 | MX24: 0 | MY24: 0 | MZ24: 0 | NA24: 0 | NB24: 0 | NC24: 0 | ND24: 0 | NE24: 0 | NF24: 0 | NG24: 0 | NH24: 0 | NI24: 0 | NJ24: 0 | NK24: 0 | NL24: 0 | NM24: 0 | NN24: 0 | NO24: 0 | NP24: 0 | NQ24: 0 | NR24: 0 | NS24: 0 | NT24: 0 | NU24: 0 | NV24: 0 | NW24: 0 | NX24: 0 | NY24: 0 | NZ24: 0 | OA24: 0 | OB24: 0 | OC24: 0 | OD24: 0 | OE24: 0 | OF24: 0 | OG24: =$E$24*OG22 -> 0 | OH24: 0 | OI24: 0 | OJ24: 0 | OK24: 0 | OL24: 0 | OM24: 0 | ON24: 0 | OO24: 0 | OP24: 0 | OQ24: 0 | OR24: 0 | OS24: 0 | OT24: 0 | OU24: 0 | OV24: 0 | OW24: 0 | OX24: 0 | OY24: 0 | OZ24: 0 | PA24: 0 | PB24: 0 | PC24: 0 | PD24: 0 | PE24: 0 | PF24: 0 | PG24: 0 | PH24: 0 | PI24: 0 | PJ24: 0 | PK24: 0 | PL24: 0 | PM24: 0 | PN24: 0 | PO24: 0 | PP24: 0 | PQ24: 0 | PR24: 0 | PS24: 0 | PT24: 0 | PU24: 0 | PV24: 0 | PW24: 0 | PX24: 0 | PY24: 0 | PZ24: 0 | QA24: 0 | QB24: 0 | QC24: 0 | QD24: 0 | QE24: 0 | QF24: 0 | QG24: 0 | QH24: 0 | QI24: 0 | QJ24: 0 | QK24: 0 | QL24: 0 | QM24: 0 | QN24: 0 | QO24: 0 | QP24: 0 | QQ24: 0 | QR24: 0 | QS24: =$E$24*QS22 -> 0 | QT24: 0 | QU24: 0 | QV24: 0 | QW24: 0 | QX24: 0 | QY24: 0 | QZ24: 0 | RA24: 0 | RB24: 0 | RC24: 0 | RD24: 0 | RE24: 0 | RF24: 0 | RG24: 0 | RH24: 0 | RI24: 0 | RJ24: 0 | RK24: 0 | RL24: 0 | RM24: 0 | RN24: 0 | RO24: 0 | RP24: 0 | RQ24: 0 | RR24: 0 | RS24: 0 | RT24: 0 | RU24: 0 | RV24: 0 | RW24: 0 | RX24: 0 | RY24: 0 | RZ24: 0 | SA24: 0 | SB24: 0 | SC24: 0 | SD24: 0 | SE24: 0 | SF24: 0 | SG24: 0 | SH24: 0 | SI24: 0 | SJ24: 0 | SK24: 0 | SL24: 0 | SM24: 0 | SN24: 0 | SO24: 0 | SP24: 0 | SQ24: 0 | SR24: 0 | SS24: 0 | ST24: 0 | SU24: 0 | SV24: 0 | SW24: 0 | SX24: 0 | SY24: 0 | SZ24: 0 | TA24: 0 | TB24: 0 | TC24: 0 | TD24: 0 | TE24: =$E$24*TE22 -> 0 | TF24: 0 | TG24: 0 | TH24: 0 | TI24: 0 | TJ24: 0 | TK24: 0 | TL24: 0 | TM24: 0 | TN24: 0 | TO24: 0 | TP24: 0 | TQ24: 0 | TR24: 0 | TS24: 0 | TT24: 0 | TU24: 0 | TV24: 0 | TW24: 0 | TX24: 0 | TY24: 0 | TZ24: 0 | UA24: 0 | UB24: 0 | UC24: 0 | UD24: 0 | UE24: 0 | UF24: 0 | UG24: 0 | UH24: 0 | UI24: 0 | UJ24: 0 | UK24: 0 | UL24: 0 | UM24: 0 | UN24: 0 | UO24: 0 | UP24: 0 | UQ24: 0 | UR24: 0 | US24: 0 | UT24: 0 | UU24: 0 | UV24: 0 | UW24: 0 | UX24: 0 | UY24: 0 | UZ24: 0 | VA24: 0 | VB24: 0 | VC24: 0 | VD24: 0 | VE24: 0 | VF24: 0 | VG24: 0 | VH24: 0 | VI24: 0 | VJ24: 0 | VK24: 0 | VL24: 0 | VM24: 0 | VN24: 0 | VO24: 0 | VP24: 0 | VQ24: =$E$24*VQ22 -> 0 | VR24: 0 | VS24: 0 | VT24: 0 | VU24: 0 | VV24: 0 | VW24: 0 | VX24: 0 | VY24: 0 | VZ24: 0 | WA24: 0 | WB24: 0 | WC24: 0 | WD24: 0 | WE24: 0 | WF24: 0 | WG24: 0 | WH24: 0 | WI24: 0 | WJ24: 0 | WK24: 0 | WL24: 0 | WM24: 0 | WN24: 0 | WO24: 0 | WP24: 0 | WQ24: 0 | WR24: 0 | WS24: 0 | WT24: 0 | WU24: 0 | WV24: 0 | WW24: 0 | WX24: 0 | WY24: 0 | WZ24: 0 | XA24: 0 | XB24: 0 | XC24: 0 | XD24: 0 | XE24: 0 | XF24: 0 | XG24: 0 | XH24: 0 | XI24: 0 | XJ24: 0 | XK24: 0 | XL24: 0 | XM24: 0 | XN24: 0 | XO24: 0 | XP24: 0 | XQ24: 0 | XR24: 0 | XS24: 0 | XT24: 0 | XU24: 0 | XV24: 0 | XW24: 0 | XX24: 0 | XY24: 0 | XZ24: 0 | YA24: 0 | YB24: 0 | YC24: =$E$24*YC22 -> 0 | YD24: 0 | YE24: 0 | YF24: 0 | YG24: 0 | YH24: 0 | YI24: 0 | YJ24: 0 | YK24: 0 | YL24: 0 | YM24: 0 | YN24: 0 | YO24: 0 | YP24: 0 | YQ24: 0 | YR24: 0 | YS24: 0 | YT24: 0 | YU24: 0 | YV24: 0 | YW24: 0 | YX24: 0 | YY24: 0 | YZ24: 0 | ZA24: 0 | ZB24: 0 | ZC24: 0 | ZD24: 0 | ZE24: 0 | ZF24: 0 | ZG24: 0 | ZH24: 0 | ZI24: 0 | ZJ24: 0 | ZK24: 0 | ZL24: 0 | ZM24: 0 | ZN24: 0 | ZO24: 0 | ZP24: 0 | ZQ24: 0 | ZR24: 0 | ZS24: 0 | ZT24: 0 | ZU24: 0 | ZV24: 0 | ZW24: 0 | ZX24: 0 | ZY24: 0 | ZZ24: 0 | AAA24: 0 | AAB24: 0 | AAC24: 0 | AAD24: 0 | AAE24: 0 | AAF24: 0 | AAG24: 0 | AAH24: 0 | AAI24: 0 | AAJ24: 0 | AAK24: 0 | AAL24: 0 | AAM24: 0 | AAN24: 0 | AAO24: =$E$24*AAO22 -> 0 | AAP24: 0 | AAQ24: 0 | AAR24: 0 | AAS24: 0 | AAT24: 0 | AAU24: 0 | AAV24: 0 | AAW24: 0 | AAX24: 0 | AAY24: 0 | AAZ24: 0 | ABA24: 0 | ABB24: 0 | ABC24: 0 | ABD24: 0 | ABE24: 0 | ABF24: 0 | ABG24: 0 | ABH24: 0 | ABI24: 0 | ABJ24: 0 | ABK24: 0 | ABL24: 0 | ABM24: 0 | ABN24: 0 | ABO24: 0 | ABP24: 0 | ABQ24: 0 | ABR24: 0 | ABS24: 0 | ABT24: 0 | ABU24: 0 | ABV24: 0 | ABW24: 0 | ABX24: 0 | ABY24: 0 | ABZ24: 0 | ACA24: 0 | ACB24: 0 | ACC24: 0 | ACD24: 0 | ACE24: 0 | ACF24: 0 | ACG24: 0 | ACH24: 0 | ACI24: 0 | ACJ24: 0 | ACK24: 0 | ACL24: 0 | ACM24: 0 | ACN24: 0 | ACO24: 0 | ACP24: 0 | ACQ24: 0 | ACR24: 0 | ACS24: 0 | ACT24: 0 | ACU24: 0 | ACV24: 0 | ACW24: 0 | ACX24: 0 | ACY24: 0 | ACZ24: 0 | ADA24: =$E$24*ADA22 -> 0 | ADB24: 0 | ADC24: 0 | ADD24: 0 | ADE24: 0 | ADF24: 0 | ADG24: 0 | ADH24: 0 | ADI24: 0 | ADJ24: 0 | ADK24: 0 | ADL24: 0 | ADM24: 0 | ADN24: 0 | ADO24: 0 | ADP24: 0 | ADQ24: 0 | ADR24: 0 | ADS24: 0 | ADT24: 0 | ADU24: 0 | ADV24: 0 | ADW24: 0 | ADX24: 0 | ADY24: 0 | ADZ24: 0 | AEA24: 0 | AEB24: 0 | AEC24: 0 | AED24: 0 | AEE24: 0
D26: Pre-COD Period for Debt Issue Period | G26: Flag | J26: =SUM(L26:XFD26) -> 0
B28: Error - Monthly Cash
C29: Debt Account
D30: Balance BF | G30: Euro
D31: Debt Issue | E31: =F16 -> 0 | G31: Euro
D32: Debt Repayment | G32: Euro
D33: Closing Balance | G33: Euro
D34: Interest | E34: =F17 -> 0.003583333333 | G34: Euro
D36: Closing Test | G36: Test | H36: =ROUND(E36,0)=0 -> TRUE
D38: Project Cash Flow | G38: Euro | J38: =SUM(L38:XFD38) -> 0
D39: Project IRR
D41: Equity IRR without Construction Funding | G41: Euro | J41: =SUM(L41:XFD41) -> 0
D43: Equity IRR | G43: % p.a.
B45: Corect
C46: Month | G46: Month
C47: Flag for > COD | E47: =E6 -> 00:00:00 | G47: Flag
C48: Period of Debt Repayment | E48: ='InputC-Financing'!E10 -> 5 | F48: ='InputC-Financing'!E11 -> 11 | G48: Flag
C49: Repayment Counter for Sumif (Adjust by 1, Include Pre-COD) | G49: Counter
C50: Sumif for Interest | G50: Euro
C51: Sumif for Repayment | G51: Euro
C52: Sumif x Flag - Interest | G52: Euro
C53: Sumif x Flag - Repayment | G53: Euro
C55: Debt Account
D56: Opening Balance | G56: Euro
D57: Add: Draw | G57: Euro
D58: Less: Repayment | G58: Euro
D59: Closing | G59: Euro
D60: Interest | G60: Euro
D62: Operating Cash Flow from Sumif
D63: Project Cash Flow | G63: Euro
D64: Project IRR | E64: =IRR(L63:AEE63,0.01) ->  | F64: =(1+E64)^(Months)-1 -> 
D66: Equity Cash Flow | G66: Euro
D67: Equity IRR | E67: =IRR(L66:AEE66,0.01) ->  | F67: =(1+E67)^(Months)-1 ->  | G67: % p.a.
D68: Equity XIRR | F68: =XIRR(L66:AEE66,L5:AEE5) -> 
B70: Graph
D72: CFADS
D73: Debt Service

Sheet Project Finance Semi-Annual
A1: =MID(CELL("filename"),FIND("]",CELL("filename"),1)+1,250) -> Project Finance Semi-Annual
D2: Period Number (100) | F2: Constant | G2: Constant | H2: Unit | I2: Test | J2: Total
D3: Pre-COD Period | F3: ='InputC - Operations'!E8 -> 11
D4: Months in Period | F4: ='InputC - Operations'!E14 -> 1 | G4: ='InputC - Operations'!E13 -> 6
D5: Start of Period
D6: End of Period | L6: ='Operation Monthly'!K5 -> 2022-12-31
D7: Operating Flag | F7: ='InputC - Operations'!F9 -> 00:00:00 | G7: ='InputC - Operations'!F11 -> 00:00:00
D8: Year
B10: Transferred Variables
D11: EBITDA to Semi-Annual | H11: Euro | I11: =J11='Operation Monthly'!J37 -> TRUE | J11: =SUM(M11:XFD11) -> 0
D12: Capital Expenditures | H12: Euro | J12: =SUM(M12:XFD12) -> 0
D15: Pre-tax Project Cash Flow | H15: Euro | M15: =M11-M12 -> 0 | N15: =N11-N12 -> 0 | O15: 0 | P15: 0 | Q15: 0 | R15: 0 | S15: 0 | T15: 0 | U15: 0 | V15: 0 | W15: 0 | X15: 0 | Y15: 0 | Z15: 0 | AA15: 0 | AB15: 0 | AC15: 0 | AD15: 0 | AE15: 0 | AF15: 0 | AG15: 0 | AH15: 0 | AI15: 0 | AJ15: 0 | AK15: 0 | AL15: 0 | AM15: 0 | AN15: 0 | AO15: 0 | AP15: 0 | AQ15: 0 | AR15: 0 | AS15: 0 | AT15: 0 | AU15: 0 | AV15: 0 | AW15: 0 | AX15: 0 | AY15: 0 | AZ15: 0 | BA15: 0 | BB15: 0 | BC15: 0 | BD15: 0 | BE15: 0 | BF15: 0 | BG15: 0 | BH15: 0 | BI15: 0 | BJ15: 0 | BK15: 0 | BL15: 0 | BM15: 0 | BN15: 0 | BO15: 0 | BP15: 0 | BQ15: 0 | BR15: 0 | BS15: 0 | BT15: 0 | BU15: 0 | BV15: 0 | BW15: 0 | BX15: 0 | BY15: 0 | BZ15: =BZ11-BZ12 -> 0 | CA15: 0 | CB15: 0 | CC15: 0 | CD15: 0 | CE15: 0 | CF15: 0 | CG15: 0 | CH15: 0 | CI15: 0 | CJ15: 0 | CK15: 0 | CL15: 0 | CM15: 0 | CN15: 0 | CO15: 0 | CP15: 0 | CQ15: 0 | CR15: 0 | CS15: 0 | CT15: 0 | CU15: 0 | CV15: 0 | CW15: 0 | CX15: 0 | CY15: 0 | CZ15: 0 | DA15: 0 | DB15: 0 | DC15: 0 | DD15: 0 | DE15: 0 | DF15: 0 | DG15: 0 | DH15: 0
D16: Project IRR | H16: %
B18: Debt Repayment and Interest
D19: Debt Percent and Amount | F19: ='InputC-Financing'!E14 -> 0.8 | G19: =J12 -> 0 | I19: =G19*F19 -> 0
D20: Interest Rate | F20: ='InputC-Financing'!E20 -> 0.043 | G20: =F20/2 -> 0.0215
D21: Tenure | F21: ='InputC-Financing'!E16 -> 25 | G21: =F21*2 -> 50
D23: Semi-Annual Payment | F23: =PMT(G20,G21,-I19) -> 0
D25: Payment Period | F25: =F7 -> 00:00:00 | G25: =EDATE(F25,F21*12) -> 1924-12-31 | J25: =SUM(M25:XFD25) -> 0
D27: Total Debt Service | F27: =F23 -> 0 | M27: =$F$27*M25 -> 0 | N27: =$F$27*N25 -> 0 | O27: 0 | P27: 0 | Q27: 0 | R27: 0 | S27: 0 | T27: 0 | U27: 0 | V27: 0 | W27: 0 | X27: 0 | Y27: 0 | Z27: 0 | AA27: 0 | AB27: 0 | AC27: 0 | AD27: 0 | AE27: 0 | AF27: 0 | AG27: 0 | AH27: 0 | AI27: 0 | AJ27: 0 | AK27: 0 | AL27: 0 | AM27: 0 | AN27: 0 | AO27: 0 | AP27: 0 | AQ27: 0 | AR27: 0 | AS27: 0 | AT27: 0 | AU27: 0 | AV27: 0 | AW27: 0 | AX27: 0 | AY27: 0 | AZ27: 0 | BA27: 0 | BB27: 0 | BC27: 0 | BD27: 0 | BE27: 0 | BF27: 0 | BG27: 0 | BH27: 0 | BI27: 0 | BJ27: 0 | BK27: 0 | BL27: 0 | BM27: 0 | BN27: 0 | BO27: 0 | BP27: 0 | BQ27: 0 | BR27: 0 | BS27: 0 | BT27: 0 | BU27: 0 | BV27: 0 | BW27: 0 | BX27: 0 | BY27: 0 | BZ27: =$F$27*BZ25 -> 0 | CA27: 0 | CB27: 0 | CC27: 0 | CD27: 0 | CE27: 0 | CF27: 0 | CG27: 0 | CH27: 0 | CI27: 0 | CJ27: 0 | CK27: 0 | CL27: 0 | CM27: 0 | CN27: 0 | CO27: 0 | CP27: 0 | CQ27: 0 | CR27: 0 | CS27: 0 | CT27: 0 | CU27: 0 | CV27: 0 | CW27: 0 | CX27: 0 | CY27: 0 | CZ27: 0 | DA27: 0 | DB27: 0 | DC27: 0 | DD27: 0 | DE27: 0 | DF27: 0 | DG27: 0 | DH27: 0
D29: Pre-COD Month for Debt Issue | J29: =SUM(M29:XFD29) -> 100 | M29: =($F$29=M5)*1 -> 1 | N29: 1 | O29: 1 | P29: 1 | Q29: 1 | R29: 1 | S29: 1 | T29: 1 | U29: 1 | V29: 1 | W29: 1 | X29: 1 | Y29: 1 | Z29: 1 | AA29: 1 | AB29: 1 | AC29: 1 | AD29: 1 | AE29: 1 | AF29: 1 | AG29: 1 | AH29: 1 | AI29: 1 | AJ29: 1 | AK29: 1 | AL29: 1 | AM29: 1 | AN29: 1 | AO29: 1 | AP29: 1 | AQ29: 1 | AR29: 1 | AS29: =($F$29=AS5)*1 -> 1 | AT29: 1 | AU29: 1 | AV29: 1 | AW29: 1 | AX29: 1 | AY29: 1 | AZ29: 1 | BA29: 1 | BB29: 1 | BC29: 1 | BD29: 1 | BE29: 1 | BF29: 1 | BG29: 1 | BH29: 1 | BI29: 1 | BJ29: 1 | BK29: 1 | BL29: 1 | BM29: 1 | BN29: 1 | BO29: 1 | BP29: 1 | BQ29: 1 | BR29: 1 | BS29: 1 | BT29: 1 | BU29: 1 | BV29: 1 | BW29: 1 | BX29: 1 | BY29: =($F$29=BY5)*1 -> 1 | BZ29: 1 | CA29: 1 | CB29: 1 | CC29: 1 | CD29: 1 | CE29: 1 | CF29: 1 | CG29: 1 | CH29: 1 | CI29: 1 | CJ29: 1 | CK29: 1 | CL29: 1 | CM29: 1 | CN29: 1 | CO29: 1 | CP29: 1 | CQ29: 1 | CR29: 1 | CS29: 1 | CT29: 1 | CU29: 1 | CV29: 1 | CW29: 1 | CX29: 1 | CY29: 1 | CZ29: 1 | DA29: 1 | DB29: 1 | DC29: 1 | DD29: 1 | DE29: 1 | DF29: 1 | DG29: 1 | DH29: 1
C31: Debt Account
D32: Opening Balance | H32: Euro
D33: Add: Draw | F33: =I19 -> 0 | H33: Euro
D34: Less: Repayment | H34: Euro
D35: Closing | H35: Euro
D36: Interest | F36: =G20 -> 0.0215 | H36: Euro
D38: Pre-tax Cash Flow | H38: Euro | M38: =M15 -> 0 | N38: =N15 -> 0 | O38: 0 | P38: 0 | Q38: 0 | R38: 0 | S38: 0 | T38: 0 | U38: 0 | V38: 0 | W38: 0 | X38: 0 | Y38: 0 | Z38: 0 | AA38: 0 | AB38: 0 | AC38: 0 | AD38: 0 | AE38: 0 | AF38: 0 | AG38: 0 | AH38: 0 | AI38: 0 | AJ38: 0 | AK38: 0 | AL38: 0 | AM38: 0 | AN38: 0 | AO38: 0 | AP38: 0 | AQ38: 0 | AR38: 0 | AS38: 0 | AT38: 0 | AU38: 0 | AV38: 0 | AW38: 0 | AX38: 0 | AY38: 0 | AZ38: 0 | BA38: 0 | BB38: 0 | BC38: 0 | BD38: 0 | BE38: 0 | BF38: 0 | BG38: 0 | BH38: 0 | BI38: 0 | BJ38: 0 | BK38: 0 | BL38: 0 | BM38: 0 | BN38: 0 | BO38: 0 | BP38: 0 | BQ38: 0 | BR38: 0 | BS38: 0 | BT38: 0 | BU38: 0 | BV38: 0 | BW38: 0 | BX38: 0 | BY38: 0 | BZ38: =BZ15 -> 0 | CA38: 0 | CB38: 0 | CC38: 0 | CD38: 0 | CE38: 0 | CF38: 0 | CG38: 0 | CH38: 0 | CI38: 0 | CJ38: 0 | CK38: 0 | CL38: 0 | CM38: 0 | CN38: 0 | CO38: 0 | CP38: 0 | CQ38: 0 | CR38: 0 | CS38: 0 | CT38: 0 | CU38: 0 | CV38: 0 | CW38: 0 | CX38: 0 | CY38: 0 | CZ38: 0 | DA38: 0 | DB38: 0 | DC38: 0 | DD38: 0 | DE38: 0 | DF38: 0 | DG38: 0 | DH38: 0
D39: Debt Cash Flow | H39: Euro | M39: =+M33-M34-M36 -> 0 | N39: =+N33-N34-N36 -> 0 | O39: 0 | P39: 0 | Q39: 0 | R39: 0 | S39: 0 | T39: 0 | U39: 0 | V39: 0 | W39: 0 | X39: 0 | Y39: 0 | Z39: 0 | AA39: 0 | AB39: 0 | AC39: 0 | AD39: 0 | AE39: 0 | AF39: 0 | AG39: 0 | AH39: 0 | AI39: 0 | AJ39: 0 | AK39: 0 | AL39: 0 | AM39: 0 | AN39: 0 | AO39: 0 | AP39: 0 | AQ39: 0 | AR39: 0 | AS39: 0 | AT39: 0 | AU39: 0 | AV39: 0 | AW39: 0 | AX39: 0 | AY39: 0 | AZ39: 0 | BA39: 0 | BB39: 0 | BC39: 0 | BD39: 0 | BE39: 0 | BF39: 0 | BG39: 0 | BH39: 0 | BI39: 0 | BJ39: 0 | BK39: 0 | BL39: 0 | BM39: 0 | BN39: 0 | BO39: 0 | BP39: 0 | BQ39: 0 | BR39: 0 | BS39: 0 | BT39: 0 | BU39: 0 | BV39: 0 | BW39: 0 | BX39: 0 | BY39: 0 | BZ39: =+BZ33-BZ34-BZ36 -> 0 | CA39: 0 | CB39: 0 | CC39: 0 | CD39: 0 | CE39: 0 | CF39: 0 | CG39: 0 | CH39: 0 | CI39: 0 | CJ39: 0 | CK39: 0 | CL39: 0 | CM39: 0 | CN39: 0 | CO39: 0 | CP39: 0 | CQ39: 0 | CR39: 0 | CS39: 0 | CT39: 0 | CU39: 0 | CV39: 0 | CW39: 0 | CX39: 0 | CY39: 0 | CZ39: 0 | DA39: 0 | DB39: 0 | DC39: 0 | DD39: 0 | DE39: 0 | DF39: 0 | DG39: 0 | DH39: 0
D40: Equity Cash Flow | H40: Euro | M40: =M38+M39 -> 0 | N40: =N38+N39 -> 0 | O40: 0 | P40: 0 | Q40: 0 | R40: 0 | S40: 0 | T40: 0 | U40: 0 | V40: 0 | W40: 0 | X40: 0 | Y40: 0 | Z40: 0 | AA40: 0 | AB40: 0 | AC40: 0 | AD40: 0 | AE40: 0 | AF40: 0 | AG40: 0 | AH40: 0 | AI40: 0 | AJ40: 0 | AK40: 0 | AL40: 0 | AM40: 0 | AN40: 0 | AO40: 0 | AP40: 0 | AQ40: 0 | AR40: 0 | AS40: 0 | AT40: 0 | AU40: 0 | AV40: 0 | AW40: 0 | AX40: 0 | AY40: 0 | AZ40: 0 | BA40: 0 | BB40: 0 | BC40: 0 | BD40: 0 | BE40: 0 | BF40: 0 | BG40: 0 | BH40: 0 | BI40: 0 | BJ40: 0 | BK40: 0 | BL40: 0 | BM40: 0 | BN40: 0 | BO40: 0 | BP40: 0 | BQ40: 0 | BR40: 0 | BS40: 0 | BT40: 0 | BU40: 0 | BV40: 0 | BW40: 0 | BX40: 0 | BY40: 0 | BZ40: =BZ38+BZ39 -> 0 | CA40: 0 | CB40: 0 | CC40: 0 | CD40: 0 | CE40: 0 | CF40: 0 | CG40: 0 | CH40: 0 | CI40: 0 | CJ40: 0 | CK40: 0 | CL40: 0 | CM40: 0 | CN40: 0 | CO40: 0 | CP40: 0 | CQ40: 0 | CR40: 0 | CS40: 0 | CT40: 0 | CU40: 0 | CV40: 0 | CW40: 0 | CX40: 0 | CY40: 0 | CZ40: 0 | DA40: 0 | DB40: 0 | DC40: 0 | DD40: 0 | DE40: 0 | DF40: 0 | DG40: 0 | DH40: 0
D42: Equity IRR
